Workbook

Sheet COA (hidden)
A1: AMERICAN WATER
A2: CHART OF ACCOUNTS (SAP - AWTR)
A3: As of 6/29/14
A4: G/L Acct | B4: Long Text
A5: 10130100 | B5: UPIS - Organization
A6: 10130200 | B6: UPIS - Franchises
A7: 10130320 | B7: UPIS - Land & Land Rights - Source of Supply
A8: 10130330 | B8: UPIS - Land & Land Rights - Pumping
A9: 10130340 | B9: UPIS - Land & Land Rights - Water Treatment
A10: 10130350 | B10: UPIS - Land & Land Rights - Transmission & Distrib
A11: 10130360 | B11: UPIS - Land & Land Rights - Admin & General
A12: 10130410 | B12: UPIS - Struct & Imp - Source of Supply
A13: 10130420 | B13: UPIS - Struct & Imp - Pumping
A14: 10130430 | B14: UPIS - Struct & Imp - Water Treatment
A15: 10130440 | B15: UPIS - Struct & Imp - Transmission & Distribution
A16: 10130450 | B16: UPIS - Struct & Imp - Admin & General
A17: 10130500 | B17: UPIS - Collect & Impounding
A18: 10130600 | B18: UPIS - Lake & River & Other
A19: 10130700 | B19: UPIS - Wells & Springs
A20: 10130800 | B20: UPIS - Infiltration Galleries
A21: 10130900 | B21: UPIS - Supply Mains
A22: 10131000 | B22: UPIS - Power Generation Equipment
A23: 10131020 | B23: UPIS - Boiler Plant Equipment
A24: 10131110 | B24: UPIS - Pumping Equipment - Steam
A25: 10131120 | B25: UPIS - Pumping Equipment - Electric
A26: 10131130 | B26: UPIS - Pumping Equipment - Diesel
A27: 10131140 | B27: UPIS - Pumping Equipment - Hydraulic
A28: 10131150 | B28: UPIS - Pumping Equipment - Other
A29: 10131152 | B29: UPIS - Pumping Equipment - Source of Supply
A30: 10131153 | B30: UPIS - Pumping Equipment - Water Treatment
A31: 10131154 | B31: UPIS - Pumping Equipment - Transmission & Distrib
A32: 10132010 | B32: UPIS - Water Treatment Equipment
A33: 10133000 | B33: UPIS - Distribution Reservoirs & Standpipes
A34: 10133100 | B34: UPIS - Transmission & Distribution Mains
A35: 10133200 | B35: UPIS - Fire Mains
A36: 10133300 | B36: UPIS - Services
A37: 10133410 | B37: UPIS - Meters
A38: 10133420 | B38: UPIS - Meter Installations
A39: 10133500 | B39: UPIS - Hydrants
A40: 10133600 | B40: UPIS - Backflow Prevention
A41: 10133910 | B41: UPIS - Other P/E - Intangible
A42: 10133920 | B42: UPIS - Other P/E - Source of Supply
A43: 10133930 | B43: UPIS - Other P/E - Water Treatment
A44: 10133950 | B44: UPIS - Other P/E - Transmission & Distribution
A45: 10134010 | B45: UPIS - Office Furniture & Equipment
A46: 10134100 | B46: UPIS - Transportation Equipment
A47: 10134200 | B47: UPIS - Stores Equipment
A48: 10134300 | B48: UPIS - Tools-Shop-Garage Equipment
A49: 10134400 | B49: UPIS - Laboratory Equipment
A50: 10134500 | B50: UPIS - Power Operated Equipment
A51: 10134600 | B51: UPIS - Communication Equipment
A52: 10134700 | B52: UPIS - Misc Equipment
A53: 10134800 | B53: UPIS - Other Tangible Property
A54: 10135100 | B54: UPIS - WW Organization
A55: 10135200 | B55: UPIS - WW Franchises
A56: 10135220 | B56: UPIS - WW Other Intangible
A57: 10135320 | B57: UPIS - WW Land & Land Rights - Coll
A58: 10135330 | B58: UPIS - WW Land & Land Rights - SPP
A59: 10135340 | B59: UPIS - WW Land & Land Rights - TDP
A60: 10135350 | B60: UPIS - WW Land & Land Rights - General
A61: 10135420 | B61: UPIS - WW Struct & Imp - Coll
A62: 10135430 | B62: UPIS - WW Struct & Imp - SPP
A63: 10135440 | B63: UPIS - WW Struct & Imp - TDP
A64: 10135450 | B64: UPIS - WW Struct & Imp - General
A65: 10135520 | B65: UPIS - WW Pwr Gen Equipment - Col
A66: 10135530 | B66: UPIS - WW Pwr Gen Equipment - SPP
A67: 10135540 | B67: UPIS - WW Pwr Gen Equipment - TDP
A68: 10135550 | B68: UPIS - WW Pwr Gen Equipment - RWT
A69: 10135560 | B69: UPIS - WW Pwr Gen Equipment - RWD
A70: 10136000 | B70: UPIS - WW Collection Sewers
A71: 10136110 | B71: UPIS - WW Collecting Mains
A72: 10136200 | B72: UPIS - WW Special Coll Struct
A73: 10136300 | B73: UPIS - WW Services Sewer
A74: 10136400 | B74: UPIS - WW Flow Measuring Device
A75: 10136500 | B75: UPIS - WW Flow Measuring Install
A76: 10137000 | B76: UPIS - WW Receiving Wells
A77: 10137110 | B77: UPIS - WW Pump Equipment - Elect
A78: 10137120 | B78: UPIS - WW Pump Equipment - Oth Pwr
A79: 10138000 | B79: UPIS - WW - Transmission & D244Distribution Equip
A80: 10138100 | B80: UPIS - WW Plant Sewers
A81: 10138200 | B81: UPIS - WW Outfall Sewer Line
A82: 10138910 | B82: UPIS - WW Oth Plant & Misc Equipment
A83: 10138920 | B83: UPIS - WW Oth Plant & Misc Equipment - Coll
A84: 10138930 | B84: UPIS - WW Oth Plant & Misc Equipment - SPP
A85: 10138940 | B85: UPIS - WW Oth Plant & Misc Equipment - TDP
A86: 10139000 | B86: UPIS - WW Office Furniture
A87: 10139100 | B87: UPIS - WW Transportation Equipment
A88: 10139200 | B88: UPIS - WW Stores Equipment
A89: 10139300 | B89: UPIS - WW Tool Shop & Garage
A90: 10139400 | B90: UPIS - WW Laboratory Equipment
A91: 10139500 | B91: UPIS - WW Power Operated Equipment
A92: 10139600 | B92: UPIS - WW Communication Equipment
A93: 10139700 | B93: UPIS - WW Misc Equipment
A94: 10139800 | B94: UPIS - WW Other Tangible Pl
A95: 10190000 | B95: Reg Asset-AFUDC-Debt
A96: 10230100 | B96: Leased - Organization
A97: 10230320 | B97: Leased - Land & Land Rights - Source of Supply
A98: 10230330 | B98: Leased - Land & Land Rights - Pumping
A99: 10230340 | B99: Leased - Land & Land Rights - Water Treatment
A100: 10230350 | B100: Leased - Land & Land Rights - Transmission & Distr
A101: 10230360 | B101: Leased - Land & Land Rights - Admin & General
A102: 10230410 | B102: Leased - Struct & Imp - Source of Supply
A103: 10230420 | B103: Leased - Struct & Imp - Pumping
A104: 10230430 | B104: Leased - Struct & Imp - Water Treatment
A105: 10230440 | B105: Leased - Struct & Imp - Transmission & Distrib
A106: 10230450 | B106: Leased - Struct & Imp - Admin & General
A107: 10230500 | B107: Leased - Collect & Impounding
A108: 10230600 | B108: Leased - Lake - River & Other
A109: 10230900 | B109: Leased - Supply Mains
A110: 10231000 | B110: Leased - Power Generation Equipment
A111: 10231120 | B111: Leased - Pump Equipment Electric
A112: 10232010 | B112: Leased - WT Equipment
A113: 10233000 | B113: Leased - Distribution Reservoirs & Standpipes
A114: 10233100 | B114: Leased - TD Mains
A115: 10233300 | B115: Leased - Services
A116: 10233410 | B116: Leased - Meters
A117: 10233420 | B117: Leased - Meter Installations
A118: 10233500 | B118: Leased - Hydrants
A119: 10233950 | B119: Leased - Other P/E - Transmission & Distribution
A120: 10234010 | B120: Leased - Office Furniture & Equipment
A121: 10234100 | B121: Leased - Transportation Equipment
A122: 10234200 | B122: Leased - Stores Equipment
A123: 10234300 | B123: Leased - Tools-Shop-Garage Equipment
A124: 10234400 | B124: Leased - Laboratory Equipment
A125: 10234500 | B125: Leased - Power Operated Equipment
A126: 10234600 | B126: Leased - Comm Equipment Not Class
A127: 10234700 | B127: Leased - Misc Equipment
A128: 10300000 | B128: Property Held Future
A129: 10400000 | B129: Utility Plant Purchased or Sold
A130: 10630100 | B130: CCNC Organization
A131: 10630200 | B131: CCNC Franchises
A132: 10630320 | B132: CCNC Land & Land Rights - Source of Supply
A133: 10630330 | B133: CCNC Land & Land Rights - Pumping
A134: 10630340 | B134: CCNC Land & Land Rights - Water Treatment
A135: 10630350 | B135: CCNC Land & Land Rights - Transmssn & Distr
A136: 10630360 | B136: CCNC Land & Land Rights - Adm & Gen
A137: 10630410 | B137: CCNC Struct & Imp - Source of Supply
A138: 10630420 | B138: CCNC Struct & Imp - Pumping
A139: 10630430 | B139: CCNC Struct & Imp - Water Treatment
A140: 10630440 | B140: CCNC Struct & Imp - Transmission & Distribution
A141: 10630450 | B141: CCNC Struct & Imp - Admin & General
A142: 10630500 | B142: CCNC Collect & Impounding
A143: 10630600 | B143: CCNC Lake - River & Other
A144: 10630700 | B144: CCNC Wells & Springs
A145: 10630800 | B145: CCNC Infiltration Galleries
A146: 10630900 | B146: CCNC Supply Mains
A147: 10631000 | B147: CCNC Power Generation Equipment
A148: 10631020 | B148: CCNC Boiler Plant Equipment
A149: 10631110 | B149: CCNC Pumping Equipment - Steam
A150: 10631120 | B150: CCNC Pumping Equipment - Electric
A151: 10631130 | B151: CCNC Pumping Equipment - Diesel
A152: 10631140 | B152: CCNC Pumping Equipment - Hydraulic
A153: 10631150 | B153: CCNC Pumping Equipment - Other
A154: 10631152 | B154: CCNC Pumping Equipment - Source of Supply
A155: 10631153 | B155: CCNC Pumping Equipment - Water Treatment
A156: 10631154 | B156: CCNC Pumping Equipment - Transmssn & Distr
A157: 10632010 | B157: CCNC - Water Treatment Equipment - Non-Media
A158: 10633000 | B158: CCNC - Distribution Reservoirs & Standpipes
A159: 10633100 | B159: CCNC - Transmssn & Distr Mains Not Classified
A160: 10633200 | B160: CCNC Fire Mains
A161: 10633300 | B161: CCNC Services
A162: 10633410 | B162: CCNC Meters
A163: 10633420 | B163: CCNC Meter Installations
A164: 10633500 | B164: CCNC Hydrants
A165: 10633600 | B165: CCNC Backflow Prevention
A166: 10633910 | B166: CCNC Other P/E Intangible
A167: 10633920 | B167: CCNC Other P/E - Source of Supply
A168: 10633930 | B168: CCNC Other P/E - Water Treatment
A169: 10633950 | B169: CCNC Other P/E - Transmission & Distribution
A170: 10634010 | B170: CCNC Office Furniture & Equipment
A171: 10634100 | B171: CCNC Transportation Equipment Not Classified
A172: 10634200 | B172: CCNC Stores Equipment
A173: 10634300 | B173: CCNC Tools-Shop-Garage Equipment
A174: 10634400 | B174: CCNC Laboratory Equipment
A175: 10634500 | B175: CCNC Power Operated Equipment
A176: 10634600 | B176: CCNC Communication Equipment
A177: 10634700 | B177: CCNC Misc Equipment
A178: 10634800 | B178: CCNC Other Tangible Property
A179: 10635320 | B179: CCNC WW Land & Land Rights - Coll
A180: 10635330 | B180: CCNC WW Land & Land Rights - SPP
A181: 10635340 | B181: CCNC WW Land & Land Rights - TDP
A182: 10635350 | B182: CCNC WW Land & Land Rights - Gen
A183: 10635420 | B183: CCNC WW Struct & Imp - Coll
A184: 10635430 | B184: CCNC WW Struct & Imp - SPP
A185: 10635440 | B185: CCNC WW Struct & Imp - TDP
A186: 10635450 | B186: CCNC WW Struct & Imp - Gen
A187: 10635520 | B187: CCNC WW Power Gen Equipment - Col
A188: 10635530 | B188: CCNC WW Power Gen Equipment - SPP
A189: 10635540 | B189: CCNC WW Power Gen Equipment - TDP
A190: 10635550 | B190: CCNC WW Power Gen Equipment - RWT
A191: 10635560 | B191: CCNC WW Power Gen Equipment - RWD
A192: 10636000 | B192: CCNC WW Collection Sewers
A193: 10636110 | B193: CCNC WW Collecting Mains
A194: 10636200 | B194: CCNC WW Special Coll Stru
A195: 10636300 | B195: CCNC WW Services Sewer
A196: 10636400 | B196: CCNC WW Flow Measuring De
A197: 10636500 | B197: CCNC WW Flow Measuring In
A198: 10637000 | B198: CCNC WW Receiving Wells
A199: 10637110 | B199: CCNC WW Pump Equipment - Elect
A200: 10637120 | B200: CCNC WW Pump Equipment - Oth Pwr
... 1843 more rows

Sheet Additions Pivot (hidden)
A1: Deferred Depr Calc
B2: =+'Total Deferred Depr'!P4 -> 68011000 | C2: =+'Total Deferred Depr'!Q4 -> 68311000 | D2: =+'Total Deferred Depr'!R4 -> 68011000
A3: Work Order Number | B3: Sum of Life reserve | C3: Sum of COR Reserve | D3: Sum of Salvage Reserve | E3: Profit Center | F3: Cost Center | G3: Profit Center | H3: Cost Center
A4: R10-01K3.19-P-4031 | B4: -27301.4895 | C4: 0 | D4: 0 | E4: =MID(A4,2,5) -> 10-01 | F4: =E4&"05" -> 10-0105 | G4: =SUBSTITUTE(E4,"-","") -> 1001 | H4: =SUBSTITUTE(F4,"-","") -> 100105
A5: T10-0184-P-1000 | B5: -19606.14367 | C5: 0 | D5: 0 | E5: =MID(A5,2,5) -> 10-01 | F5: =E5&"05" -> 10-0105 | G5: =SUBSTITUTE(E5,"-","") -> 1001 | H5: =SUBSTITUTE(F5,"-","") -> 100105
A6: T10-0185-P-1000 | B6: -3538.769583 | C6: 0 | D6: 0 | E6: 10-01 | F6: 10-0105 | G6: 1001 | H6: 100105
A7: Grand Total | B7: -50446.40275 | C7: 0 | D7: 0
B8: =SUM(B4:B6) -> -50446.40275
G124: =SUBSTITUTE(E124,"-","") ->  | H124: =SUBSTITUTE(F124,"-","") -> 

Sheet Cover Page
D4: Cause No. 45609 SEI-1 S1
D5: Indiana American Water Company
D6: Workpaper GDS-4R

Sheet Total Deferred Depr
A1: CR query for UN,UP doc types so have each month of CWIP transfers for depr base calc | N1: 2022-10-01 | O1: redo this column monthly
O2: latest month errors; kept prior month convention
F4: when added to CPR | N4: =+F4 -> when added to CPR | P4: 68011000 | Q4: 68311000 | R4: 68011000
A5: Company | B5: Work Order Number | C5: Account | D5: Document Type | E5: Posting WBS | F5: Month Number | G5: Amount | H5: Depr Group | I5: Life Rate | J5: COR Rate | K5: Slvg Rate?? | L5: yr | M5: month | N5: Depr begins | O5: #months | P5: Life reserve | Q5: COR Reserve | R5: Salvage Reserve
A6: 1010 | B6: R10-01K3.19-P-4031 | C6: 10700000 | D6: UN | E6: R10-01K3.19-P-4031 | F6: 202103 | G6: 172430.46 | H6: =VLOOKUP($B6,'WBS by Depr info'!$A$5:$G$147,2,0) -> 10C:340300 | I6: =VLOOKUP($H6,'WBS by Depr info'!$B$4:$G$147,4,0) -> 0.1 | J6: =VLOOKUP($H6,'WBS by Depr info'!$B$4:$G$147,5,0) -> 0 | K6: =VLOOKUP($H6,'WBS by Depr info'!$B$4:$G$147,6,0) -> 0 | L6: =LEFT(F6,4) -> 2021 | M6: =RIGHT(F6,2) -> 03 | N6: =CONCATENATE(M6,"/",1,"/",L6) -> 03/1/2021 | O6: =((DAYS360($N6,$N$1)/30)) -> 19 | P6: =$G6*($I6/12)*$O6 -> 27301.4895 | Q6: =$G6*($J6/12)*$O6 -> 0 | R6: =$G6*($K6/12)*$O6 -> 0
A7: 1010 | B7: R10-01K3.19-P-4031 | C7: 10700000 | D7: UP | E7: R10-01K3.19-P-4031 | F7: 202203 | G7: 0 | H7: =VLOOKUP($B7,'WBS by Depr info'!$A$5:$G$147,2,0) -> 10C:340300 | I7: =VLOOKUP($H7,'WBS by Depr info'!$B$4:$G$147,4,0) -> 0.1 | J7: =VLOOKUP($H7,'WBS by Depr info'!$B$4:$G$147,5,0) -> 0 | K7: =VLOOKUP($H7,'WBS by Depr info'!$B$4:$G$147,6,0) -> 0 | L7: 2022 | M7: 03 | N7: 03/1/2022 | O7: =((DAYS360($N7,$N$1)/30)) -> 7 | P7: 0 | Q7: 0 | R7: 0
A8: 1010 | B8: T10-0184-P-1000 | C8: 10700000 | D8: UN | E8: T10-0184-P-1000 | F8: 202011 | G8: 85959.3 | H8: =VLOOKUP($B8,'WBS by Depr info'!$A$5:$G$147,2,0) -> 10C:340300 | I8: =VLOOKUP($H8,'WBS by Depr info'!$B$4:$G$147,4,0) -> 0.1 | J8: =VLOOKUP($H8,'WBS by Depr info'!$B$4:$G$147,5,0) -> 0 | K8: =VLOOKUP($H8,'WBS by Depr info'!$B$4:$G$147,6,0) -> 0 | L8: 2020 | M8: 11 | N8: 11/1/2020 | O8: 23 | P8: 16475.5325 | Q8: 0 | R8: 0
A9: 1010 | B9: T10-0184-P-1000 | C9: 10700000 | D9: UN | E9: T10-0184-P-1000 | F9: 202012 | G9: 16473.65 | H9: =VLOOKUP($B9,'WBS by Depr info'!$A$5:$G$147,2,0) -> 10C:340300 | I9: =VLOOKUP($H9,'WBS by Depr info'!$B$4:$G$147,4,0) -> 0.1 | J9: =VLOOKUP($H9,'WBS by Depr info'!$B$4:$G$147,5,0) -> 0 | K9: =VLOOKUP($H9,'WBS by Depr info'!$B$4:$G$147,6,0) -> 0 | L9: 2020 | M9: 12 | N9: 12/1/2020 | O9: 22 | P9: 3020.169167 | Q9: 0 | R9: 0
A10: 1010 | B10: T10-0184-P-1000 | C10: 10700000 | D10: UN | E10: T10-0184-P-1000 | F10: 202101 | G10: 615.86 | H10: =VLOOKUP($B10,'WBS by Depr info'!$A$5:$G$147,2,0) -> 10C:340300 | I10: =VLOOKUP($H10,'WBS by Depr info'!$B$4:$G$147,4,0) -> 0.1 | J10: =VLOOKUP($H10,'WBS by Depr info'!$B$4:$G$147,5,0) -> 0 | K10: =VLOOKUP($H10,'WBS by Depr info'!$B$4:$G$147,6,0) -> 0 | L10: 2021 | M10: 01 | N10: 01/1/2021 | O10: 21 | P10: 107.7755 | Q10: 0 | R10: 0
A11: 1010 | B11: T10-0184-P-1000 | C11: 10700000 | D11: UN | E11: T10-0184-P-1000 | F11: 202102 | G11: 517.67 | H11: =VLOOKUP($B11,'WBS by Depr info'!$A$5:$G$147,2,0) -> 10C:340300 | I11: =VLOOKUP($H11,'WBS by Depr info'!$B$4:$G$147,4,0) -> 0.1 | J11: =VLOOKUP($H11,'WBS by Depr info'!$B$4:$G$147,5,0) -> 0 | K11: =VLOOKUP($H11,'WBS by Depr info'!$B$4:$G$147,6,0) -> 0 | L11: 2021 | M11: 02 | N11: 02/1/2021 | O11: 20 | P11: 86.27833333 | Q11: 0 | R11: 0
A12: 1010 | B12: T10-0184-P-1000 | C12: 10700000 | D12: UN | E12: T10-0184-P-1000 | F12: 202103 | G12: -551.2 | H12: =VLOOKUP($B12,'WBS by Depr info'!$A$5:$G$147,2,0) -> 10C:340300 | I12: =VLOOKUP($H12,'WBS by Depr info'!$B$4:$G$147,4,0) -> 0.1 | J12: =VLOOKUP($H12,'WBS by Depr info'!$B$4:$G$147,5,0) -> 0 | K12: =VLOOKUP($H12,'WBS by Depr info'!$B$4:$G$147,6,0) -> 0 | L12: 2021 | M12: 03 | N12: 03/1/2021 | O12: 19 | P12: -87.27333333 | Q12: 0 | R12: 0
A13: 1010 | B13: T10-0184-P-1000 | C13: 10700000 | D13: UN | E13: T10-0184-P-1000 | F13: 202104 | G13: 24.41 | H13: =VLOOKUP($B13,'WBS by Depr info'!$A$5:$G$147,2,0) -> 10C:340300 | I13: =VLOOKUP($H13,'WBS by Depr info'!$B$4:$G$147,4,0) -> 0.1 | J13: =VLOOKUP($H13,'WBS by Depr info'!$B$4:$G$147,5,0) -> 0 | K13: =VLOOKUP($H13,'WBS by Depr info'!$B$4:$G$147,6,0) -> 0 | L13: 2021 | M13: 04 | N13: 04/1/2021 | O13: 18 | P13: 3.6615 | Q13: 0 | R13: 0
A14: 1010 | B14: T10-0185-P-1000 | C14: 10700000 | D14: UN | E14: T10-0185-P-1000 | F14: 202106 | G14: 25348.24 | H14: =VLOOKUP($B14,'WBS by Depr info'!$A$5:$G$147,2,0) -> 10C:340300 | I14: =VLOOKUP($H14,'WBS by Depr info'!$B$4:$G$147,4,0) -> 0.1 | J14: =VLOOKUP($H14,'WBS by Depr info'!$B$4:$G$147,5,0) -> 0 | K14: =VLOOKUP($H14,'WBS by Depr info'!$B$4:$G$147,6,0) -> 0 | L14: 2021 | M14: 06 | N14: 06/1/2021 | O14: 16 | P14: 3379.765333 | Q14: 0 | R14: 0
A15: 1010 | B15: T10-0185-P-1000 | C15: 10700000 | D15: UN | E15: T10-0185-P-1000 | F15: 202107 | G15: 232.67 | H15: =VLOOKUP($B15,'WBS by Depr info'!$A$5:$G$147,2,0) -> 10C:340300 | I15: =VLOOKUP($H15,'WBS by Depr info'!$B$4:$G$147,4,0) -> 0.1 | J15: =VLOOKUP($H15,'WBS by Depr info'!$B$4:$G$147,5,0) -> 0 | K15: =VLOOKUP($H15,'WBS by Depr info'!$B$4:$G$147,6,0) -> 0 | L15: 2021 | M15: 07 | N15: 07/1/2021 | O15: 15 | P15: 29.08375 | Q15: 0 | R15: 0
A16: 1010 | B16: T10-0185-P-1000 | C16: 10700000 | D16: UN | E16: T10-0185-P-1000 | F16: 202108 | G16: 121.14 | H16: =VLOOKUP($B16,'WBS by Depr info'!$A$5:$G$147,2,0) -> 10C:340300 | I16: =VLOOKUP($H16,'WBS by Depr info'!$B$4:$G$147,4,0) -> 0.1 | J16: =VLOOKUP($H16,'WBS by Depr info'!$B$4:$G$147,5,0) -> 0 | K16: =VLOOKUP($H16,'WBS by Depr info'!$B$4:$G$147,6,0) -> 0 | L16: 2021 | M16: 08 | N16: 08/1/2021 | O16: 14 | P16: 14.133 | Q16: 0 | R16: 0
A17: 1010 | B17: T10-0185-P-1000 | C17: 10700000 | D17: UN | E17: T10-0185-P-1000 | F17: 202112 | G17: 1389.45 | H17: =VLOOKUP($B17,'WBS by Depr info'!$A$5:$G$147,2,0) -> 10C:340300 | I17: =VLOOKUP($H17,'WBS by Depr info'!$B$4:$G$147,4,0) -> 0.1 | J17: =VLOOKUP($H17,'WBS by Depr info'!$B$4:$G$147,5,0) -> 0 | K17: =VLOOKUP($H17,'WBS by Depr info'!$B$4:$G$147,6,0) -> 0 | L17: 2021 | M17: 12 | N17: 12/1/2021 | O17: 10 | P17: 115.7875 | Q17: 0 | R17: 0
A18: 1010 | B18: T10-0185-P-1000 | C18: 10700000 | D18: UP | E18: T10-0185-P-1000 | F18: 202203 | G18: 0 | H18: =VLOOKUP($B18,'WBS by Depr info'!$A$5:$G$147,2,0) -> 10C:340300 | I18: =VLOOKUP($H18,'WBS by Depr info'!$B$4:$G$147,4,0) -> 0.1 | J18: =VLOOKUP($H18,'WBS by Depr info'!$B$4:$G$147,5,0) -> 0 | K18: =VLOOKUP($H18,'WBS by Depr info'!$B$4:$G$147,6,0) -> 0 | L18: 2022 | M18: 03 | N18: 03/1/2022 | O18: 7 | P18: 0 | Q18: 0 | R18: 0
P20: =SUM(P6:P19) -> 50446.40275 | Q20: =SUM(Q6:Q19) -> 0 | R20: 0
P22: =SUM(P20:R20) -> 50446.40275
T362: .
P369: =SUM(P6:P366) -> 151339.2083 | Q369: =SUM(Q6:Q366) -> 0 | R369: =SUM(R6:R366) -> 0

Sheet Total PIS
A1: CWIP only all months is source | D1: 85000000 | E1: 70510000
A2: Represents Yr and Mo in Service
A3: Row Labels | B3: Sum of Amount | C3: Allocation | D3: Debt | E3: Equity | F3: Code | G3: Cost Center
A4: 2020-11-20 | B4: 103039.69
A5: T10-0184-P-1000 | B5: 103039.69 | C5: =+B5/$B$4 -> 1 | D5: =$C5*'112020 PIS Summary'!$K$5 -> 4193.61 | E5: =$C5*'112020 PIS Summary'!$J$5 -> 9077.65 | F5: =MID(A5,2,5) -> 10-01 | G5: =F5&"05" -> 10-0105
A6: 2021-06-15 | B6: 27091.5
A7: T10-0185-P-1000 | B7: 27091.5 | C7: =+B7/$B$6 -> 1 | D7: =$C7*'062021 PIS Summary'!$K$5 -> 749.535 | E7: =$C7*'062021 PIS Summary'!$J$5 -> 1622.475 | F7: =MID(A7,2,5) -> 10-01 | G7: =F7&"05" -> 10-0105
A8: 2021-03-01 | B8: 172430.46
A9: R10-01K3.19-P-4031 | B9: 172430.46 | C9: =+B9/$B$8 -> 1 | D9: =$C9*'032021 PIS Summary'!$K$5 -> 5805.255 | E9: =$C9*'032021 PIS Summary'!$J$5 -> 12566.275 | F9: =MID(A9,2,5) -> 10-01 | G9: =F9&"05" -> 10-0105
A10: Grand Total | B10: 302561.65
D11: =SUM(D5:D9) -> 10748.4 | E11: =SUM(E5:E9) -> 23266.4
D13: =SUM(D11:E11) -> 34014.8

Sheet 112020 PIS Summary (hidden)
A1: Indiana American Water
A2: Post In Service AFUDC Calc
A3: 11/1/2020- | J3: =SUM('CR CWIP query 112020 ISD'!H:H)+J5+K5-G62 -> 0 | K3: check
J5: =SUM(J35,J49,J51:J61) -> 9077.65 | K5: =SUM(K35,K49,K51:K61) -> 4193.61 | L5: =SUM(L35,L49,L51:L61) -> 4884.04
A7: Year | B7: Month | C7: Grand Total CWIP | D7: Beginning AFUDC Base | E7: Current Month Charges | F7: 50% Charge Current Charge | G7: Current Base | H7: PIS AFUDC Monthly Equity Rate | I7: PIS AFUDC Monthly Debt Rate | J7: PIS AFUDC Equity to be Recorded | K7: PIS AFUDC Debt to be Recorded | L7: AFUDC PIS Equity Reduction to record
A9: 2019 | B9: 1 | C9: =SUMIFS('CR CWIP query 112020 ISD'!$H:$H,'CR CWIP query 112020 ISD'!$L:$L,'112020 PIS Summary'!A9,'CR CWIP query 112020 ISD'!$K:$K,'112020 PIS Summary'!B9) -> 0 | D9: =+D6+E6+J6+K6 -> 0 | E9: =C9 -> 0 | F9: =0.5*E9 -> 0 | G9: =+D9+F9 -> 0 | H9: 0.00356083 | I9: 0.001645
A10: 2019 | B10: 2 | C10: =SUMIFS('CR CWIP query 112020 ISD'!$H:$H,'CR CWIP query 112020 ISD'!$L:$L,'112020 PIS Summary'!A10,'CR CWIP query 112020 ISD'!$K:$K,'112020 PIS Summary'!B10) -> 0 | D10: =+D9+E9+J9+K9 -> 0 | E10: 0 | F10: =0.5*E10 -> 0 | G10: =+D10+F10 -> 0 | H10: 0.00356083 | I10: 0.001645
A11: 2019 | B11: 3 | C11: =SUMIFS('CR CWIP query 112020 ISD'!$H:$H,'CR CWIP query 112020 ISD'!$L:$L,'112020 PIS Summary'!A11,'CR CWIP query 112020 ISD'!$K:$K,'112020 PIS Summary'!B11) -> 0 | D11: 0 | E11: 0 | F11: 0 | G11: 0 | H11: 0.00356083 | I11: 0.001645
A12: 2019 | B12: 4 | C12: =SUMIFS('CR CWIP query 112020 ISD'!$H:$H,'CR CWIP query 112020 ISD'!$L:$L,'112020 PIS Summary'!A12,'CR CWIP query 112020 ISD'!$K:$K,'112020 PIS Summary'!B12) -> 0 | D12: 0 | E12: =C12 -> 0 | F12: =0.5*E12 -> 0 | G12: =+D12+F12 -> 0 | H12: 0.00356083 | I12: 0.001645
A13: 2019 | B13: 5 | C13: =SUMIFS('CR CWIP query 112020 ISD'!$H:$H,'CR CWIP query 112020 ISD'!$L:$L,'112020 PIS Summary'!A13,'CR CWIP query 112020 ISD'!$K:$K,'112020 PIS Summary'!B13) -> 0 | D13: 0 | E13: =C13 -> 0 | F13: =0.5*E13 -> 0 | G13: =+D13+F13 -> 0 | H13: 0.00356083 | I13: 0.001645
A14: 2019 | B14: 6 | C14: =SUMIFS('CR CWIP query 112020 ISD'!$H:$H,'CR CWIP query 112020 ISD'!$L:$L,'112020 PIS Summary'!A14,'CR CWIP query 112020 ISD'!$K:$K,'112020 PIS Summary'!B14) -> 0 | D14: 0 | E14: 0 | F14: 0 | G14: 0 | H14: 0.00356083 | I14: 0.001645
A15: 2019 | B15: 7 | C15: =SUMIFS('CR CWIP query 112020 ISD'!$H:$H,'CR CWIP query 112020 ISD'!$L:$L,'112020 PIS Summary'!A15,'CR CWIP query 112020 ISD'!$K:$K,'112020 PIS Summary'!B15) -> 0 | D15: 0 | E15: 0 | F15: 0 | G15: 0 | H15: 0.00356083 | I15: 0.001645
A16: 2019 | B16: 8 | C16: =SUMIFS('CR CWIP query 112020 ISD'!$H:$H,'CR CWIP query 112020 ISD'!$L:$L,'112020 PIS Summary'!A16,'CR CWIP query 112020 ISD'!$K:$K,'112020 PIS Summary'!B16) -> 0 | D16: 0 | E16: 0 | F16: 0 | G16: 0 | H16: 0.00356083 | I16: 0.001645
A17: 2019 | B17: 9 | C17: =SUMIFS('CR CWIP query 112020 ISD'!$H:$H,'CR CWIP query 112020 ISD'!$L:$L,'112020 PIS Summary'!A17,'CR CWIP query 112020 ISD'!$K:$K,'112020 PIS Summary'!B17) -> 0 | D17: 0 | E17: 0 | F17: 0 | G17: 0 | H17: 0.00356083 | I17: 0.001645
A18: 2019 | B18: 10 | C18: =SUMIFS('CR CWIP query 112020 ISD'!$H:$H,'CR CWIP query 112020 ISD'!$L:$L,'112020 PIS Summary'!A18,'CR CWIP query 112020 ISD'!$K:$K,'112020 PIS Summary'!B18) -> 0 | D18: 0 | E18: 0 | F18: 0 | G18: 0 | H18: 0.00356083 | I18: 0.001645
A19: 2019 | B19: 11 | C19: =SUMIFS('CR CWIP query 112020 ISD'!$H:$H,'CR CWIP query 112020 ISD'!$L:$L,'112020 PIS Summary'!A19,'CR CWIP query 112020 ISD'!$K:$K,'112020 PIS Summary'!B19) -> 0 | D19: 0 | E19: 0 | F19: 0 | G19: 0 | H19: 0.00356083 | I19: 0.001645
A20: 2019 | B20: 12 | C20: =SUMIFS('CR CWIP query 112020 ISD'!$H:$H,'CR CWIP query 112020 ISD'!$L:$L,'112020 PIS Summary'!A20,'CR CWIP query 112020 ISD'!$K:$K,'112020 PIS Summary'!B20) -> 0 | D20: 0 | E20: =C20 -> 0 | F20: =0.5*E20 -> 0 | G20: =+D20+F20 -> 0 | H20: 0.00356083 | I20: 0.001645
A21: 19 Total | C21: =SUM(C9:C20) -> 0 | E21: =SUM(E9:E20) -> 0 | J21: =SUM(J9:J20) -> 0 | K21: =SUM(K9:K20) -> 0 | L21: =SUM(L9:L20) -> 0
A23: 2020 | B23: 1 | C23: =SUMIFS('CR CWIP query 112020 ISD'!$H:$H,'CR CWIP query 112020 ISD'!$L:$L,'112020 PIS Summary'!A23,'CR CWIP query 112020 ISD'!$K:$K,'112020 PIS Summary'!B23) -> 0 | D23: =+D20+E20+J20+K20 -> 0 | E23: =C23 -> 0 | F23: =0.5*E23 -> 0 | G23: =+D23+F23 -> 0 | H23: 0.00356083 | I23: 0.001645
A24: 2020 | B24: 2 | C24: =SUMIFS('CR CWIP query 112020 ISD'!$H:$H,'CR CWIP query 112020 ISD'!$L:$L,'112020 PIS Summary'!A24,'CR CWIP query 112020 ISD'!$K:$K,'112020 PIS Summary'!B24) -> 0 | D24: =+D23+E23+J23+K23 -> 0 | E24: 0 | F24: =0.5*E24 -> 0 | G24: =+D24+F24 -> 0 | H24: 0.00356083 | I24: 0.001645
A25: 2020 | B25: 3 | C25: =SUMIFS('CR CWIP query 112020 ISD'!$H:$H,'CR CWIP query 112020 ISD'!$L:$L,'112020 PIS Summary'!A25,'CR CWIP query 112020 ISD'!$K:$K,'112020 PIS Summary'!B25) -> 0 | D25: 0 | E25: 0 | F25: 0 | G25: 0 | H25: 0.00356083 | I25: 0.001645
A26: 2020 | B26: 4 | C26: =SUMIFS('CR CWIP query 112020 ISD'!$H:$H,'CR CWIP query 112020 ISD'!$L:$L,'112020 PIS Summary'!A26,'CR CWIP query 112020 ISD'!$K:$K,'112020 PIS Summary'!B26) -> 0 | D26: 0 | E26: =C26 -> 0 | F26: =0.5*E26 -> 0 | G26: =+D26+F26 -> 0 | H26: 0.00356083 | I26: 0.001645
A27: 2020 | B27: 5 | C27: =SUMIFS('CR CWIP query 112020 ISD'!$H:$H,'CR CWIP query 112020 ISD'!$L:$L,'112020 PIS Summary'!A27,'CR CWIP query 112020 ISD'!$K:$K,'112020 PIS Summary'!B27) -> 0 | D27: 0 | E27: =C27 -> 0 | F27: =0.5*E27 -> 0 | G27: =+D27+F27 -> 0 | H27: 0.00356083 | I27: 0.001645
A28: 2020 | B28: 6 | C28: =SUMIFS('CR CWIP query 112020 ISD'!$H:$H,'CR CWIP query 112020 ISD'!$L:$L,'112020 PIS Summary'!A28,'CR CWIP query 112020 ISD'!$K:$K,'112020 PIS Summary'!B28) -> 68942.3 | D28: 0 | E28: 68942.3 | F28: 34471.15 | G28: 34471.15 | H28: 0.00356083 | I28: 0.001645
A29: 2020 | B29: 7 | C29: =SUMIFS('CR CWIP query 112020 ISD'!$H:$H,'CR CWIP query 112020 ISD'!$L:$L,'112020 PIS Summary'!A29,'CR CWIP query 112020 ISD'!$K:$K,'112020 PIS Summary'!B29) -> 686.9 | D29: 68942.3 | E29: 686.9 | F29: 343.45 | G29: 69285.75 | H29: 0.00356083 | I29: 0.001645
A30: 2020 | B30: 8 | C30: =SUMIFS('CR CWIP query 112020 ISD'!$H:$H,'CR CWIP query 112020 ISD'!$L:$L,'112020 PIS Summary'!A30,'CR CWIP query 112020 ISD'!$K:$K,'112020 PIS Summary'!B30) -> 2138.35 | D30: 69629.2 | E30: 2138.35 | F30: 1069.175 | G30: 70698.375 | H30: 0.00356083 | I30: 0.001645
A31: 2020 | B31: 9 | C31: =SUMIFS('CR CWIP query 112020 ISD'!$H:$H,'CR CWIP query 112020 ISD'!$L:$L,'112020 PIS Summary'!A31,'CR CWIP query 112020 ISD'!$K:$K,'112020 PIS Summary'!B31) -> 1027.44 | D31: 71767.55 | E31: 1027.44 | F31: 513.72 | G31: 72281.27 | H31: 0.00356083 | I31: 0.001645
A32: 2020 | B32: 10 | C32: =SUMIFS('CR CWIP query 112020 ISD'!$H:$H,'CR CWIP query 112020 ISD'!$L:$L,'112020 PIS Summary'!A32,'CR CWIP query 112020 ISD'!$K:$K,'112020 PIS Summary'!B32) -> 12578.41 | D32: 72794.99 | E32: 12578.41 | F32: 6289.205 | G32: 79084.195 | H32: 0.00356083 | I32: 0.001645
A33: 2020 | B33: 11 | C33: =SUMIFS('CR CWIP query 112020 ISD'!$H:$H,'CR CWIP query 112020 ISD'!$L:$L,'112020 PIS Summary'!A33,'CR CWIP query 112020 ISD'!$K:$K,'112020 PIS Summary'!B33) -> 585.9 | D33: 85373.4 | E33: 585.9 | F33: 292.95 | G33: 85666.35 | H33: 0.00356083 | I33: 0.001645 | J33: =ROUND($G33*H33,2)*0.5 -> 152.52 | K33: =ROUND($G33*I33,2)*0.5 -> 70.46 | L33: =+J33-K33 -> 82.06
A34: 2020 | B34: 12 | C34: =SUMIFS('CR CWIP query 112020 ISD'!$H:$H,'CR CWIP query 112020 ISD'!$L:$L,'112020 PIS Summary'!A34,'CR CWIP query 112020 ISD'!$K:$K,'112020 PIS Summary'!B34) -> 16473.65 | D34: 86182.28 | E34: =C34 -> 16473.65 | F34: =0.5*E34 -> 8236.825 | G34: =+D34+F34 -> 94419.105 | H34: 0.00356083 | I34: 0.001645 | J34: =ROUND($G34*H34,2) -> 336.21 | K34: =ROUND($G34*I34,2) -> 155.32 | L34: =+J34-K34 -> 180.89
A35: 20 Total | C35: =SUM(C23:C34) -> 102432.95 | E35: =SUM(E24:E34) -> 102432.95 | J35: =SUM(J23:J34) -> 488.73 | K35: =SUM(K23:K34) -> 225.78 | L35: 262.95
A37: 2021 | B37: 1 | C37: =SUMIFS('CR CWIP query 112020 ISD'!$H:$H,'CR CWIP query 112020 ISD'!$L:$L,'112020 PIS Summary'!A37,'CR CWIP query 112020 ISD'!$K:$K,'112020 PIS Summary'!B37) -> 615.86 | D37: =+D34+E34+J34+K34 -> 103147.46 | E37: =C37 -> 615.86 | F37: =0.5*E37 -> 307.93 | G37: =+D37+F37 -> 103455.39 | H37: 0.00356083 | I37: 0.001645 | J37: =ROUND($G37*H37,2) -> 368.39 | K37: 170.18 | L37: =+J37-K37 -> 198.21
A38: 2021 | B38: 2 | C38: =SUMIFS('CR CWIP query 112020 ISD'!$H:$H,'CR CWIP query 112020 ISD'!$L:$L,'112020 PIS Summary'!A38,'CR CWIP query 112020 ISD'!$K:$K,'112020 PIS Summary'!B38) -> 517.67 | D38: =+D37+E37+J37+K37 -> 104301.89 | E38: 517.67 | F38: =0.5*E38 -> 258.835 | G38: =+D38+F38 -> 104560.725 | H38: 0.00356083 | I38: 0.001645 | J38: =ROUND($G38*H38,2) -> 372.32 | K38: =ROUND($G38*I38,2) -> 172 | L38: 200.32
A39: 2021 | B39: 3 | C39: =SUMIFS('CR CWIP query 112020 ISD'!$H:$H,'CR CWIP query 112020 ISD'!$L:$L,'112020 PIS Summary'!A39,'CR CWIP query 112020 ISD'!$K:$K,'112020 PIS Summary'!B39) -> -526.79 | D39: =+D38+E38+J38+K38 -> 105363.88 | E39: -526.79 | F39: -263.395 | G39: 105100.485 | H39: 0.00356083 | I39: 0.001645 | J39: 374.24 | K39: 172.89 | L39: =+J39-K39 -> 201.35
A40: 2021 | B40: 4 | C40: =SUMIFS('CR CWIP query 112020 ISD'!$H:$H,'CR CWIP query 112020 ISD'!$L:$L,'112020 PIS Summary'!A40,'CR CWIP query 112020 ISD'!$K:$K,'112020 PIS Summary'!B40) -> 0 | D40: =+D39+E39+J39+K39 -> 105384.22 | E40: 0 | F40: 0 | G40: 105384.22 | H40: 0.00356083 | I40: 0.001645 | J40: 375.26 | K40: 173.36 | L40: 201.9
A41: 2021 | B41: 5 | C41: =SUMIFS('CR CWIP query 112020 ISD'!$H:$H,'CR CWIP query 112020 ISD'!$L:$L,'112020 PIS Summary'!A41,'CR CWIP query 112020 ISD'!$K:$K,'112020 PIS Summary'!B41) -> 0 | D41: =+D40+E40+J40+K40 -> 105932.84 | E41: 0 | F41: 0 | G41: 105932.84 | H41: 0.00356083 | I41: 0.001645 | J41: 377.21 | K41: 174.26 | L41: 202.95
A42: 2021 | B42: 6 | C42: =SUMIFS('CR CWIP query 112020 ISD'!$H:$H,'CR CWIP query 112020 ISD'!$L:$L,'112020 PIS Summary'!A42,'CR CWIP query 112020 ISD'!$K:$K,'112020 PIS Summary'!B42) -> 0 | D42: 106484.31 | E42: 0 | F42: 0 | G42: 106484.31 | H42: 0.00356083 | I42: 0.001645 | J42: 379.17 | K42: 175.17 | L42: 204
A43: 2021 | B43: 7 | C43: =SUMIFS('CR CWIP query 112020 ISD'!$H:$H,'CR CWIP query 112020 ISD'!$L:$L,'112020 PIS Summary'!A43,'CR CWIP query 112020 ISD'!$K:$K,'112020 PIS Summary'!B43) -> 0 | D43: 107038.65 | E43: 0 | F43: 0 | G43: 107038.65 | H43: 0.00356083 | I43: 0.001645 | J43: 381.15 | K43: 176.08 | L43: 205.07
A44: 2021 | B44: 8 | C44: =SUMIFS('CR CWIP query 112020 ISD'!$H:$H,'CR CWIP query 112020 ISD'!$L:$L,'112020 PIS Summary'!A44,'CR CWIP query 112020 ISD'!$K:$K,'112020 PIS Summary'!B44) -> 0 | D44: 107595.88 | E44: 0 | F44: 0 | G44: 107595.88 | H44: 0.00356083 | I44: 0.001645 | J44: 383.13 | K44: 177 | L44: 206.13
A45: 2021 | B45: 9 | C45: =SUMIFS('CR CWIP query 112020 ISD'!$H:$H,'CR CWIP query 112020 ISD'!$L:$L,'112020 PIS Summary'!A45,'CR CWIP query 112020 ISD'!$K:$K,'112020 PIS Summary'!B45) -> 0 | D45: 108156.01 | E45: 0 | F45: 0 | G45: 108156.01 | H45: 0.00356083 | I45: 0.001645 | J45: 385.13 | K45: 177.92 | L45: 207.21
A46: 2021 | B46: 10 | C46: =SUMIFS('CR CWIP query 112020 ISD'!$H:$H,'CR CWIP query 112020 ISD'!$L:$L,'112020 PIS Summary'!A46,'CR CWIP query 112020 ISD'!$K:$K,'112020 PIS Summary'!B46) -> 0 | D46: 108719.06 | E46: 0 | F46: 0 | G46: 108719.06 | H46: 0.00356083 | I46: 0.001645 | J46: 387.13 | K46: 178.84 | L46: 208.29
A47: 2021 | B47: 11 | C47: =SUMIFS('CR CWIP query 112020 ISD'!$H:$H,'CR CWIP query 112020 ISD'!$L:$L,'112020 PIS Summary'!A47,'CR CWIP query 112020 ISD'!$K:$K,'112020 PIS Summary'!B47) -> 0 | D47: 109285.03 | E47: 0 | F47: 0 | G47: 109285.03 | H47: 0.00356083 | I47: 0.001645 | J47: 389.15 | K47: 179.77 | L47: 209.38
A48: 2021 | B48: 12 | C48: =SUMIFS('CR CWIP query 112020 ISD'!$H:$H,'CR CWIP query 112020 ISD'!$L:$L,'112020 PIS Summary'!A48,'CR CWIP query 112020 ISD'!$K:$K,'112020 PIS Summary'!B48) -> 0 | D48: 109853.95 | E48: 0 | F48: 0 | G48: 109853.95 | H48: 0.00356083 | I48: 0.001645 | J48: 391.17 | K48: 180.71 | L48: 210.46
A49: 21 Total | C49: =SUM(C37:C48) -> 606.74 | E49: =SUM(E37:E48) -> 606.74 | J49: =SUM(J37:J48) -> 4563.45 | K49: =SUM(K37:K48) -> 2108.18 | L49: =SUM(L37:L48) -> 2455.27
A51: 2022 | B51: 1 | C51: =SUMIFS('CR CWIP query 112020 ISD'!$H:$H,'CR CWIP query 112020 ISD'!$L:$L,'112020 PIS Summary'!A51,'CR CWIP query 112020 ISD'!$K:$K,'112020 PIS Summary'!B51) -> 0 | D51: =+D48+E48+J48+K48 -> 110425.83 | E51: =C51 -> 0 | F51: =0.5*E51 -> 0 | G51: =+D51+F51 -> 110425.83 | H51: 0.00356083 | I51: 0.001645 | J51: =ROUND($G51*H51,2) -> 393.21 | K51: =ROUND($G51*I51,2) -> 181.65 | L51: =+J51-K51 -> 211.56
A52: 2022 | B52: 2 | C52: =SUMIFS('CR CWIP query 112020 ISD'!$H:$H,'CR CWIP query 112020 ISD'!$L:$L,'112020 PIS Summary'!A52,'CR CWIP query 112020 ISD'!$K:$K,'112020 PIS Summary'!B52) -> 0 | D52: =+D51+E51+J51+K51 -> 111000.69 | E52: 0 | F52: =0.5*E52 -> 0 | G52: =+D52+F52 -> 111000.69 | H52: 0.00356083 | I52: 0.001645 | J52: =ROUND($G52*H52,2) -> 395.25 | K52: =ROUND($G52*I52,2) -> 182.6 | L52: =+J52-K52 -> 212.65
A53: 2022 | B53: 3 | C53: =SUMIFS('CR CWIP query 112020 ISD'!$H:$H,'CR CWIP query 112020 ISD'!$L:$L,'112020 PIS Summary'!A53,'CR CWIP query 112020 ISD'!$K:$K,'112020 PIS Summary'!B53) -> 0 | D53: =+D52+E52+J52+K52 -> 111578.54 | E53: 0 | F53: 0 | G53: 111578.54 | H53: 0.00356083 | I53: 0.001645 | J53: =ROUND($G53*H53,2) -> 397.31 | K53: =ROUND($G53*I53,2) -> 183.55 | L53: 213.76
A54: 2022 | B54: 4 | C54: =SUMIFS('CR CWIP query 112020 ISD'!$H:$H,'CR CWIP query 112020 ISD'!$L:$L,'112020 PIS Summary'!A54,'CR CWIP query 112020 ISD'!$K:$K,'112020 PIS Summary'!B54) -> 0 | D54: =+D53+E53+J53+K53 -> 112159.4 | E54: 0 | F54: 0 | G54: 112159.4 | H54: 0.00356083 | I54: 0.001645 | J54: =ROUND($G54*H54,2) -> 399.38 | K54: 184.5 | L54: =+J54-K54 -> 214.88
A55: 2022 | B55: 5 | C55: =SUMIFS('CR CWIP query 112020 ISD'!$H:$H,'CR CWIP query 112020 ISD'!$L:$L,'112020 PIS Summary'!A55,'CR CWIP query 112020 ISD'!$K:$K,'112020 PIS Summary'!B55) -> 0 | D55: =+D54+E54+J54+K54 -> 112743.28 | E55: 0 | F55: 0 | G55: 112743.28 | H55: 0.00356083 | I55: 0.001645 | J55: 401.46 | K55: 185.46 | L55: 216
A56: 2022 | B56: 6 | C56: =SUMIFS('CR CWIP query 112020 ISD'!$H:$H,'CR CWIP query 112020 ISD'!$L:$L,'112020 PIS Summary'!A56,'CR CWIP query 112020 ISD'!$K:$K,'112020 PIS Summary'!B56) -> 0 | D56: 113330.2 | E56: 0 | F56: 0 | G56: 113330.2 | H56: 0.00356083 | I56: 0.001645 | J56: 403.55 | K56: 186.43 | L56: 217.12
A57: 2022 | B57: 7 | C57: =SUMIFS('CR CWIP query 112020 ISD'!$H:$H,'CR CWIP query 112020 ISD'!$L:$L,'112020 PIS Summary'!A57,'CR CWIP query 112020 ISD'!$K:$K,'112020 PIS Summary'!B57) -> 0 | D57: 113920.18 | E57: 0 | F57: 0 | G57: 113920.18 | H57: 0.00356083 | I57: 0.001645 | J57: 405.65 | K57: 187.4 | L57: 218.25
A58: 2022 | B58: 8 | C58: =SUMIFS('CR CWIP query 112020 ISD'!$H:$H,'CR CWIP query 112020 ISD'!$L:$L,'112020 PIS Summary'!A58,'CR CWIP query 112020 ISD'!$K:$K,'112020 PIS Summary'!B58) -> 0 | D58: 114513.23 | E58: 0 | F58: 0 | G58: 114513.23 | H58: 0.00356083 | I58: 0.001645 | J58: =ROUND($G58*H58,2) -> 407.76 | K58: =ROUND($G58*I58,2) -> 188.37 | L58: =+J58-K58 -> 219.39
A59: 2022 | B59: 9 | C59: =SUMIFS('CR CWIP query 112020 ISD'!$H:$H,'CR CWIP query 112020 ISD'!$L:$L,'112020 PIS Summary'!A59,'CR CWIP query 112020 ISD'!$K:$K,'112020 PIS Summary'!B59) -> 0 | D59: 115109.36 | E59: 0 | F59: 0 | G59: 115109.36 | H59: 0.00356083 | I59: 0.001645 | J59: 409.88 | K59: 189.35 | L59: 220.53
A60: 2022 | B60: 10 | C60: =SUMIFS('CR CWIP query 112020 ISD'!$H:$H,'CR CWIP query 112020 ISD'!$L:$L,'112020 PIS Summary'!A60,'CR CWIP query 112020 ISD'!$K:$K,'112020 PIS Summary'!B60) -> 0 | D60: 115708.59 | E60: 0 | F60: 0 | G60: 115708.59 | H60: 0.00356083 | I60: 0.001645 | J60: 412.02 | K60: 190.34 | L60: 221.68
A61: 2022 | B61: 11 | C61: =SUMIFS('CR CWIP query 112020 ISD'!$H:$H,'CR CWIP query 112020 ISD'!$L:$L,'112020 PIS Summary'!A61,'CR CWIP query 112020 ISD'!$K:$K,'112020 PIS Summary'!B61) -> 0 | D61: 116310.95 | E61: 0 | F61: 0 | G61: 116310.95 | H61: 0.00356083 | I61: 0.001645
A62: 2022 | B62: 12 | C62: =SUMIFS('CR CWIP query 112020 ISD'!$H:$H,'CR CWIP query 112020 ISD'!$L:$L,'112020 PIS Summary'!A62,'CR CWIP query 112020 ISD'!$K:$K,'112020 PIS Summary'!B62) -> 0 | D62: 116310.95 | E62: 0 | F62: 0 | G62: 116310.95 | H62: 0.00356083 | I62: 0.001645
A63: 22 Total | C63: =SUM(C51:C62) -> 0 | E63: =SUM(E51:E62) -> 0 | J63: =SUM(J51:J62) -> 4025.47 | K63: =SUM(K51:K62) -> 1859.65 | L63: =SUM(L51:L62) -> 2165.82

Sheet 032021 PIS Summary (hidden)
A1: Indiana American Water
A2: Post In Service AFUDC Calc
A3: 03/1/2021- | J3: =SUM('CR CWIP query 032021 ISD'!H:H)+J5+K5-G62 -> 0 | K3: check
J5: =SUM(J35,J49,J51:J61) -> 12566.275 | K5: =SUM(K35,K49,K51:K61) -> 5805.255 | L5: =SUM(L35,L49,L51:L61) -> 6761.02
A7: Year | B7: Month | C7: Grand Total CWIP | D7: Beginning AFUDC Base | E7: Current Month Charges | F7: 50% Charge Current Charge | G7: Current Base | H7: PIS AFUDC Monthly Equity Rate | I7: PIS AFUDC Monthly Debt Rate | J7: PIS AFUDC Equity to be Recorded | K7: PIS AFUDC Debt to be Recorded | L7: AFUDC PIS Equity Reduction to record
A9: 2019 | B9: 1 | C9: =SUMIFS('CR CWIP query 032021 ISD'!$H:$H,'CR CWIP query 032021 ISD'!$L:$L,'032021 PIS Summary'!A9,'CR CWIP query 032021 ISD'!$K:$K,'032021 PIS Summary'!B9) -> 0 | D9: =+D6+E6+J6+K6 -> 0 | E9: =C9 -> 0 | F9: =0.5*E9 -> 0 | G9: =+D9+F9 -> 0 | H9: 0.00356083 | I9: 0.001645
A10: 2019 | B10: 2 | C10: =SUMIFS('CR CWIP query 032021 ISD'!$H:$H,'CR CWIP query 032021 ISD'!$L:$L,'032021 PIS Summary'!A10,'CR CWIP query 032021 ISD'!$K:$K,'032021 PIS Summary'!B10) -> 0 | D10: =+D9+E9+J9+K9 -> 0 | E10: 0 | F10: =0.5*E10 -> 0 | G10: =+D10+F10 -> 0 | H10: 0.00356083 | I10: 0.001645
A11: 2019 | B11: 3 | C11: =SUMIFS('CR CWIP query 032021 ISD'!$H:$H,'CR CWIP query 032021 ISD'!$L:$L,'032021 PIS Summary'!A11,'CR CWIP query 032021 ISD'!$K:$K,'032021 PIS Summary'!B11) -> 0 | D11: 0 | E11: 0 | F11: 0 | G11: 0 | H11: 0.00356083 | I11: 0.001645
A12: 2019 | B12: 4 | C12: =SUMIFS('CR CWIP query 032021 ISD'!$H:$H,'CR CWIP query 032021 ISD'!$L:$L,'032021 PIS Summary'!A12,'CR CWIP query 032021 ISD'!$K:$K,'032021 PIS Summary'!B12) -> 0 | D12: 0 | E12: =C12 -> 0 | F12: =0.5*E12 -> 0 | G12: =+D12+F12 -> 0 | H12: 0.00356083 | I12: 0.001645
A13: 2019 | B13: 5 | C13: =SUMIFS('CR CWIP query 032021 ISD'!$H:$H,'CR CWIP query 032021 ISD'!$L:$L,'032021 PIS Summary'!A13,'CR CWIP query 032021 ISD'!$K:$K,'032021 PIS Summary'!B13) -> 0 | D13: 0 | E13: =C13 -> 0 | F13: =0.5*E13 -> 0 | G13: =+D13+F13 -> 0 | H13: 0.00356083 | I13: 0.001645
A14: 2019 | B14: 6 | C14: =SUMIFS('CR CWIP query 032021 ISD'!$H:$H,'CR CWIP query 032021 ISD'!$L:$L,'032021 PIS Summary'!A14,'CR CWIP query 032021 ISD'!$K:$K,'032021 PIS Summary'!B14) -> 0 | D14: 0 | E14: 0 | F14: 0 | G14: 0 | H14: 0.00356083 | I14: 0.001645
A15: 2019 | B15: 7 | C15: =SUMIFS('CR CWIP query 032021 ISD'!$H:$H,'CR CWIP query 032021 ISD'!$L:$L,'032021 PIS Summary'!A15,'CR CWIP query 032021 ISD'!$K:$K,'032021 PIS Summary'!B15) -> 0 | D15: 0 | E15: 0 | F15: 0 | G15: 0 | H15: 0.00356083 | I15: 0.001645
A16: 2019 | B16: 8 | C16: =SUMIFS('CR CWIP query 032021 ISD'!$H:$H,'CR CWIP query 032021 ISD'!$L:$L,'032021 PIS Summary'!A16,'CR CWIP query 032021 ISD'!$K:$K,'032021 PIS Summary'!B16) -> 82320.62 | D16: 0 | E16: 82320.62 | F16: 41160.31 | G16: 41160.31 | H16: 0.00356083 | I16: 0.001645
A17: 2019 | B17: 9 | C17: =SUMIFS('CR CWIP query 032021 ISD'!$H:$H,'CR CWIP query 032021 ISD'!$L:$L,'032021 PIS Summary'!A17,'CR CWIP query 032021 ISD'!$K:$K,'032021 PIS Summary'!B17) -> 460.19 | D17: 82320.62 | E17: 460.19 | F17: 230.095 | G17: 82550.715 | H17: 0.00356083 | I17: 0.001645
A18: 2019 | B18: 10 | C18: =SUMIFS('CR CWIP query 032021 ISD'!$H:$H,'CR CWIP query 032021 ISD'!$L:$L,'032021 PIS Summary'!A18,'CR CWIP query 032021 ISD'!$K:$K,'032021 PIS Summary'!B18) -> 411.78 | D18: 82780.81 | E18: 411.78 | F18: 205.89 | G18: 82986.7 | H18: 0.00356083 | I18: 0.001645
A19: 2019 | B19: 11 | C19: =SUMIFS('CR CWIP query 032021 ISD'!$H:$H,'CR CWIP query 032021 ISD'!$L:$L,'032021 PIS Summary'!A19,'CR CWIP query 032021 ISD'!$K:$K,'032021 PIS Summary'!B19) -> 881.17 | D19: 83192.59 | E19: 881.17 | F19: 440.585 | G19: 83633.175 | H19: 0.00356083 | I19: 0.001645
A20: 2019 | B20: 12 | C20: =SUMIFS('CR CWIP query 032021 ISD'!$H:$H,'CR CWIP query 032021 ISD'!$L:$L,'032021 PIS Summary'!A20,'CR CWIP query 032021 ISD'!$K:$K,'032021 PIS Summary'!B20) -> 18477.53 | D20: 84073.76 | E20: =C20 -> 18477.53 | F20: =0.5*E20 -> 9238.765 | G20: =+D20+F20 -> 93312.525 | H20: 0.00356083 | I20: 0.001645
A21: 19 Total | C21: =SUM(C9:C20) -> 102551.29 | E21: =SUM(E9:E20) -> 102551.29 | J21: =SUM(J9:J20) -> 0 | K21: =SUM(K9:K20) -> 0 | L21: =SUM(L9:L20) -> 0
A23: 2020 | B23: 1 | C23: =SUMIFS('CR CWIP query 032021 ISD'!$H:$H,'CR CWIP query 032021 ISD'!$L:$L,'032021 PIS Summary'!A23,'CR CWIP query 032021 ISD'!$K:$K,'032021 PIS Summary'!B23) -> 1753.31 | D23: =+D20+E20+J20+K20 -> 102551.29 | E23: =C23 -> 1753.31 | F23: =0.5*E23 -> 876.655 | G23: =+D23+F23 -> 103427.945 | H23: 0.00356083 | I23: 0.001645
A24: 2020 | B24: 2 | C24: =SUMIFS('CR CWIP query 032021 ISD'!$H:$H,'CR CWIP query 032021 ISD'!$L:$L,'032021 PIS Summary'!A24,'CR CWIP query 032021 ISD'!$K:$K,'032021 PIS Summary'!B24) -> 1240.19 | D24: =+D23+E23+J23+K23 -> 104304.6 | E24: 1240.19 | F24: =0.5*E24 -> 620.095 | G24: =+D24+F24 -> 104924.695 | H24: 0.00356083 | I24: 0.001645
A25: 2020 | B25: 3 | C25: =SUMIFS('CR CWIP query 032021 ISD'!$H:$H,'CR CWIP query 032021 ISD'!$L:$L,'032021 PIS Summary'!A25,'CR CWIP query 032021 ISD'!$K:$K,'032021 PIS Summary'!B25) -> 2754.68 | D25: 105544.79 | E25: 2754.68 | F25: 1377.34 | G25: 106922.13 | H25: 0.00356083 | I25: 0.001645
A26: 2020 | B26: 4 | C26: =SUMIFS('CR CWIP query 032021 ISD'!$H:$H,'CR CWIP query 032021 ISD'!$L:$L,'032021 PIS Summary'!A26,'CR CWIP query 032021 ISD'!$K:$K,'032021 PIS Summary'!B26) -> 1295.66 | D26: 108299.47 | E26: =C26 -> 1295.66 | F26: =0.5*E26 -> 647.83 | G26: =+D26+F26 -> 108947.3 | H26: 0.00356083 | I26: 0.001645
A27: 2020 | B27: 5 | C27: =SUMIFS('CR CWIP query 032021 ISD'!$H:$H,'CR CWIP query 032021 ISD'!$L:$L,'032021 PIS Summary'!A27,'CR CWIP query 032021 ISD'!$K:$K,'032021 PIS Summary'!B27) -> 1866.39 | D27: 109595.13 | E27: =C27 -> 1866.39 | F27: =0.5*E27 -> 933.195 | G27: =+D27+F27 -> 110528.325 | H27: 0.00356083 | I27: 0.001645
A28: 2020 | B28: 6 | C28: =SUMIFS('CR CWIP query 032021 ISD'!$H:$H,'CR CWIP query 032021 ISD'!$L:$L,'032021 PIS Summary'!A28,'CR CWIP query 032021 ISD'!$K:$K,'032021 PIS Summary'!B28) -> 6597.56 | D28: 111461.52 | E28: 6597.56 | F28: 3298.78 | G28: 114760.3 | H28: 0.00356083 | I28: 0.001645
A29: 2020 | B29: 7 | C29: =SUMIFS('CR CWIP query 032021 ISD'!$H:$H,'CR CWIP query 032021 ISD'!$L:$L,'032021 PIS Summary'!A29,'CR CWIP query 032021 ISD'!$K:$K,'032021 PIS Summary'!B29) -> 14271.23 | D29: 118059.08 | E29: 14271.23 | F29: 7135.615 | G29: 125194.695 | H29: 0.00356083 | I29: 0.001645
A30: 2020 | B30: 8 | C30: =SUMIFS('CR CWIP query 032021 ISD'!$H:$H,'CR CWIP query 032021 ISD'!$L:$L,'032021 PIS Summary'!A30,'CR CWIP query 032021 ISD'!$K:$K,'032021 PIS Summary'!B30) -> 3181.06 | D30: 132330.31 | E30: 3181.06 | F30: 1590.53 | G30: 133920.84 | H30: 0.00356083 | I30: 0.001645
A31: 2020 | B31: 9 | C31: =SUMIFS('CR CWIP query 032021 ISD'!$H:$H,'CR CWIP query 032021 ISD'!$L:$L,'032021 PIS Summary'!A31,'CR CWIP query 032021 ISD'!$K:$K,'032021 PIS Summary'!B31) -> 2172.05 | D31: 135511.37 | E31: 2172.05 | F31: 1086.025 | G31: 136597.395 | H31: 0.00356083 | I31: 0.001645
A32: 2020 | B32: 10 | C32: =SUMIFS('CR CWIP query 032021 ISD'!$H:$H,'CR CWIP query 032021 ISD'!$L:$L,'032021 PIS Summary'!A32,'CR CWIP query 032021 ISD'!$K:$K,'032021 PIS Summary'!B32) -> 11596.3 | D32: 137683.42 | E32: 11596.3 | F32: 5798.15 | G32: 143481.57 | H32: 0.00356083 | I32: 0.001645
A33: 2020 | B33: 11 | C33: =SUMIFS('CR CWIP query 032021 ISD'!$H:$H,'CR CWIP query 032021 ISD'!$L:$L,'032021 PIS Summary'!A33,'CR CWIP query 032021 ISD'!$K:$K,'032021 PIS Summary'!B33) -> 2803.9 | D33: 149279.72 | E33: 2803.9 | F33: 1401.95 | G33: 150681.67 | H33: 0.00356083 | I33: 0.001645
A34: 2020 | B34: 12 | C34: =SUMIFS('CR CWIP query 032021 ISD'!$H:$H,'CR CWIP query 032021 ISD'!$L:$L,'032021 PIS Summary'!A34,'CR CWIP query 032021 ISD'!$K:$K,'032021 PIS Summary'!B34) -> 16790.93 | D34: 152083.62 | E34: =C34 -> 16790.93 | F34: =0.5*E34 -> 8395.465 | G34: =+D34+F34 -> 160479.085 | H34: 0.00356083 | I34: 0.001645
A35: 20 Total | C35: =SUM(C23:C34) -> 66323.26 | E35: =SUM(E24:E34) -> 64569.95 | J35: =SUM(J23:J34) -> 0 | K35: =SUM(K23:K34) -> 0 | L35: 0
A37: 2021 | B37: 1 | C37: =SUMIFS('CR CWIP query 032021 ISD'!$H:$H,'CR CWIP query 032021 ISD'!$L:$L,'032021 PIS Summary'!A37,'CR CWIP query 032021 ISD'!$K:$K,'032021 PIS Summary'!B37) -> 826.87 | D37: =+D34+E34+J34+K34 -> 168874.55 | E37: =C37 -> 826.87 | F37: =0.5*E37 -> 413.435 | G37: =+D37+F37 -> 169287.985 | H37: 0.00356083 | I37: 0.001645
A38: 2021 | B38: 2 | C38: =SUMIFS('CR CWIP query 032021 ISD'!$H:$H,'CR CWIP query 032021 ISD'!$L:$L,'032021 PIS Summary'!A38,'CR CWIP query 032021 ISD'!$K:$K,'032021 PIS Summary'!B38) -> 1197.27 | D38: =+D37+E37+J37+K37 -> 169701.42 | E38: 1197.27 | F38: =0.5*E38 -> 598.635 | G38: =+D38+F38 -> 170300.055 | H38: 0.00356083 | I38: 0.001645
A39: 2021 | B39: 3 | C39: =SUMIFS('CR CWIP query 032021 ISD'!$H:$H,'CR CWIP query 032021 ISD'!$L:$L,'032021 PIS Summary'!A39,'CR CWIP query 032021 ISD'!$K:$K,'032021 PIS Summary'!B39) -> 1531.77 | D39: =+D38+E38+J38+K38 -> 170898.69 | E39: 1531.77 | F39: 765.885 | G39: 171664.575 | H39: 0.00356083 | I39: 0.001645 | J39: =ROUND($G39*H39,2)*0.5 -> 305.635 | K39: =ROUND($G39*I39,2)*0.5 -> 141.195 | L39: =+J39-K39 -> 164.44
A40: 2021 | B40: 4 | C40: =SUMIFS('CR CWIP query 032021 ISD'!$H:$H,'CR CWIP query 032021 ISD'!$L:$L,'032021 PIS Summary'!A40,'CR CWIP query 032021 ISD'!$K:$K,'032021 PIS Summary'!B40) -> 0 | D40: =+D39+E39+J39+K39 -> 172877.29 | E40: 0 | F40: 0 | G40: 172877.29 | H40: 0.00356083 | I40: 0.001645 | J40: =ROUND($G40*H40,2) -> 615.59 | K40: 284.38 | L40: =+J40-K40 -> 331.21
A41: 2021 | B41: 5 | C41: =SUMIFS('CR CWIP query 032021 ISD'!$H:$H,'CR CWIP query 032021 ISD'!$L:$L,'032021 PIS Summary'!A41,'CR CWIP query 032021 ISD'!$K:$K,'032021 PIS Summary'!B41) -> 0 | D41: =+D40+E40+J40+K40 -> 173777.26 | E41: 0 | F41: 0 | G41: 173777.26 | H41: 0.00356083 | I41: 0.001645 | J41: 618.79 | K41: 285.86 | L41: 332.93
A42: 2021 | B42: 6 | C42: =SUMIFS('CR CWIP query 032021 ISD'!$H:$H,'CR CWIP query 032021 ISD'!$L:$L,'032021 PIS Summary'!A42,'CR CWIP query 032021 ISD'!$K:$K,'032021 PIS Summary'!B42) -> 0 | D42: 174681.91 | E42: 0 | F42: 0 | G42: 174681.91 | H42: 0.00356083 | I42: 0.001645 | J42: 622.01 | K42: 287.35 | L42: 334.66
A43: 2021 | B43: 7 | C43: =SUMIFS('CR CWIP query 032021 ISD'!$H:$H,'CR CWIP query 032021 ISD'!$L:$L,'032021 PIS Summary'!A43,'CR CWIP query 032021 ISD'!$K:$K,'032021 PIS Summary'!B43) -> 0 | D43: 175591.27 | E43: 0 | F43: 0 | G43: 175591.27 | H43: 0.00356083 | I43: 0.001645 | J43: 625.25 | K43: 288.85 | L43: 336.4
A44: 2021 | B44: 8 | C44: =SUMIFS('CR CWIP query 032021 ISD'!$H:$H,'CR CWIP query 032021 ISD'!$L:$L,'032021 PIS Summary'!A44,'CR CWIP query 032021 ISD'!$K:$K,'032021 PIS Summary'!B44) -> 0 | D44: 176505.37 | E44: 0 | F44: 0 | G44: 176505.37 | H44: 0.00356083 | I44: 0.001645 | J44: 628.51 | K44: 290.35 | L44: 338.16
A45: 2021 | B45: 9 | C45: =SUMIFS('CR CWIP query 032021 ISD'!$H:$H,'CR CWIP query 032021 ISD'!$L:$L,'032021 PIS Summary'!A45,'CR CWIP query 032021 ISD'!$K:$K,'032021 PIS Summary'!B45) -> 0 | D45: 177424.23 | E45: 0 | F45: 0 | G45: 177424.23 | H45: 0.00356083 | I45: 0.001645 | J45: 631.78 | K45: 291.86 | L45: 339.92
A46: 2021 | B46: 10 | C46: =SUMIFS('CR CWIP query 032021 ISD'!$H:$H,'CR CWIP query 032021 ISD'!$L:$L,'032021 PIS Summary'!A46,'CR CWIP query 032021 ISD'!$K:$K,'032021 PIS Summary'!B46) -> 0 | D46: 178347.87 | E46: 0 | F46: 0 | G46: 178347.87 | H46: 0.00356083 | I46: 0.001645 | J46: 635.07 | K46: 293.38 | L46: 341.69
A47: 2021 | B47: 11 | C47: =SUMIFS('CR CWIP query 032021 ISD'!$H:$H,'CR CWIP query 032021 ISD'!$L:$L,'032021 PIS Summary'!A47,'CR CWIP query 032021 ISD'!$K:$K,'032021 PIS Summary'!B47) -> 0 | D47: 179276.32 | E47: 0 | F47: 0 | G47: 179276.32 | H47: 0.00356083 | I47: 0.001645 | J47: 638.37 | K47: 294.91 | L47: 343.46
A48: 2021 | B48: 12 | C48: =SUMIFS('CR CWIP query 032021 ISD'!$H:$H,'CR CWIP query 032021 ISD'!$L:$L,'032021 PIS Summary'!A48,'CR CWIP query 032021 ISD'!$K:$K,'032021 PIS Summary'!B48) -> 0 | D48: 180209.6 | E48: 0 | F48: 0 | G48: 180209.6 | H48: 0.00356083 | I48: 0.001645 | J48: 641.7 | K48: 296.44 | L48: 345.26
A49: 21 Total | C49: =SUM(C37:C48) -> 3555.91 | E49: =SUM(E37:E48) -> 3555.91 | J49: =SUM(J37:J48) -> 5962.705 | K49: =SUM(K37:K48) -> 2754.575 | L49: =SUM(L37:L48) -> 3208.13
A51: 2022 | B51: 1 | C51: =SUMIFS('CR CWIP query 032021 ISD'!$H:$H,'CR CWIP query 032021 ISD'!$L:$L,'032021 PIS Summary'!A51,'CR CWIP query 032021 ISD'!$K:$K,'032021 PIS Summary'!B51) -> 0 | D51: =+D48+E48+J48+K48 -> 181147.74 | E51: =C51 -> 0 | F51: =0.5*E51 -> 0 | G51: =+D51+F51 -> 181147.74 | H51: 0.00356083 | I51: 0.001645 | J51: =ROUND($G51*H51,2) -> 645.04 | K51: =ROUND($G51*I51,2) -> 297.99 | L51: =+J51-K51 -> 347.05
A52: 2022 | B52: 2 | C52: =SUMIFS('CR CWIP query 032021 ISD'!$H:$H,'CR CWIP query 032021 ISD'!$L:$L,'032021 PIS Summary'!A52,'CR CWIP query 032021 ISD'!$K:$K,'032021 PIS Summary'!B52) -> 0 | D52: =+D51+E51+J51+K51 -> 182090.77 | E52: 0 | F52: =0.5*E52 -> 0 | G52: =+D52+F52 -> 182090.77 | H52: 0.00356083 | I52: 0.001645 | J52: =ROUND($G52*H52,2) -> 648.39 | K52: =ROUND($G52*I52,2) -> 299.54 | L52: =+J52-K52 -> 348.85
A53: 2022 | B53: 3 | C53: =SUMIFS('CR CWIP query 032021 ISD'!$H:$H,'CR CWIP query 032021 ISD'!$L:$L,'032021 PIS Summary'!A53,'CR CWIP query 032021 ISD'!$K:$K,'032021 PIS Summary'!B53) -> 0 | D53: =+D52+E52+J52+K52 -> 183038.7 | E53: 0 | F53: 0 | G53: 183038.7 | H53: 0.00356083 | I53: 0.001645 | J53: =ROUND($G53*H53,2) -> 651.77 | K53: =ROUND($G53*I53,2) -> 301.1 | L53: 350.67
A54: 2022 | B54: 4 | C54: =SUMIFS('CR CWIP query 032021 ISD'!$H:$H,'CR CWIP query 032021 ISD'!$L:$L,'032021 PIS Summary'!A54,'CR CWIP query 032021 ISD'!$K:$K,'032021 PIS Summary'!B54) -> 0 | D54: =+D53+E53+J53+K53 -> 183991.57 | E54: 0 | F54: 0 | G54: 183991.57 | H54: 0.00356083 | I54: 0.001645 | J54: =ROUND($G54*H54,2) -> 655.16 | K54: 302.67 | L54: =+J54-K54 -> 352.49
A55: 2022 | B55: 5 | C55: =SUMIFS('CR CWIP query 032021 ISD'!$H:$H,'CR CWIP query 032021 ISD'!$L:$L,'032021 PIS Summary'!A55,'CR CWIP query 032021 ISD'!$K:$K,'032021 PIS Summary'!B55) -> 0 | D55: =+D54+E54+J54+K54 -> 184949.4 | E55: 0 | F55: 0 | G55: 184949.4 | H55: 0.00356083 | I55: 0.001645 | J55: 658.57 | K55: 304.24 | L55: 354.33
A56: 2022 | B56: 6 | C56: =SUMIFS('CR CWIP query 032021 ISD'!$H:$H,'CR CWIP query 032021 ISD'!$L:$L,'032021 PIS Summary'!A56,'CR CWIP query 032021 ISD'!$K:$K,'032021 PIS Summary'!B56) -> 0 | D56: 185912.21 | E56: 0 | F56: 0 | G56: 185912.21 | H56: 0.00356083 | I56: 0.001645 | J56: 662 | K56: 305.83 | L56: 356.17
A57: 2022 | B57: 7 | C57: =SUMIFS('CR CWIP query 032021 ISD'!$H:$H,'CR CWIP query 032021 ISD'!$L:$L,'032021 PIS Summary'!A57,'CR CWIP query 032021 ISD'!$K:$K,'032021 PIS Summary'!B57) -> 0 | D57: 186880.04 | E57: 0 | F57: 0 | G57: 186880.04 | H57: 0.00356083 | I57: 0.001645 | J57: 665.45 | K57: 307.42 | L57: 358.03
A58: 2022 | B58: 8 | C58: =SUMIFS('CR CWIP query 032021 ISD'!$H:$H,'CR CWIP query 032021 ISD'!$L:$L,'032021 PIS Summary'!A58,'CR CWIP query 032021 ISD'!$K:$K,'032021 PIS Summary'!B58) -> 0 | D58: 187852.91 | E58: 0 | F58: 0 | G58: 187852.91 | H58: 0.00356083 | I58: 0.001645 | J58: =ROUND($G58*H58,2) -> 668.91 | K58: =ROUND($G58*I58,2) -> 309.02 | L58: =+J58-K58 -> 359.89
A59: 2022 | B59: 9 | C59: =SUMIFS('CR CWIP query 032021 ISD'!$H:$H,'CR CWIP query 032021 ISD'!$L:$L,'032021 PIS Summary'!A59,'CR CWIP query 032021 ISD'!$K:$K,'032021 PIS Summary'!B59) -> 0 | D59: 188830.84 | E59: 0 | F59: 0 | G59: 188830.84 | H59: 0.00356083 | I59: 0.001645 | J59: 672.39 | K59: 310.63 | L59: 361.76
A60: 2022 | B60: 10 | C60: =SUMIFS('CR CWIP query 032021 ISD'!$H:$H,'CR CWIP query 032021 ISD'!$L:$L,'032021 PIS Summary'!A60,'CR CWIP query 032021 ISD'!$K:$K,'032021 PIS Summary'!B60) -> 0 | D60: 189813.86 | E60: 0 | F60: 0 | G60: 189813.86 | H60: 0.00356083 | I60: 0.001645 | J60: 675.89 | K60: 312.24 | L60: 363.65
A61: 2022 | B61: 11 | C61: =SUMIFS('CR CWIP query 032021 ISD'!$H:$H,'CR CWIP query 032021 ISD'!$L:$L,'032021 PIS Summary'!A61,'CR CWIP query 032021 ISD'!$K:$K,'032021 PIS Summary'!B61) -> 0 | D61: 190801.99 | E61: 0 | F61: 0 | G61: 190801.99 | H61: 0.00356083 | I61: 0.001645
A62: 2022 | B62: 12 | C62: =SUMIFS('CR CWIP query 032021 ISD'!$H:$H,'CR CWIP query 032021 ISD'!$L:$L,'032021 PIS Summary'!A62,'CR CWIP query 032021 ISD'!$K:$K,'032021 PIS Summary'!B62) -> 0 | D62: 190801.99 | E62: 0 | F62: 0 | G62: 190801.99 | H62: 0.00356083 | I62: 0.001645
A63: 22 Total | C63: =SUM(C51:C62) -> 0 | E63: =SUM(E51:E62) -> 0 | J63: =SUM(J51:J62) -> 6603.57 | K63: =SUM(K51:K62) -> 3050.68 | L63: =SUM(L51:L62) -> 3552.89

Sheet 062021 PIS Summary (hidden)
A1: Indiana American Water
A2: Post In Service AFUDC Calc
A3: 06/1/2021- | J3: =SUM('CR CWIP query 062021 ISD'!H:H)+J5+K5-G62 -> 0 | K3: check
J5: =SUM(J35,J49,J51:J61) -> 1622.475 | K5: =SUM(K35,K49,K51:K61) -> 749.535 | L5: =SUM(L35,L49,L51:L61) -> 872.94
A7: Year | B7: Month | C7: Grand Total CWIP | D7: Beginning AFUDC Base | E7: Current Month Charges | F7: 50% Charge Current Charge | G7: Current Base | H7: PIS AFUDC Monthly Equity Rate | I7: PIS AFUDC Monthly Debt Rate | J7: PIS AFUDC Equity to be Recorded | K7: PIS AFUDC Debt to be Recorded | L7: AFUDC PIS Equity Reduction to record
A9: 2019 | B9: 1 | C9: =SUMIFS('CR CWIP query 062021 ISD'!$H:$H,'CR CWIP query 062021 ISD'!$L:$L,'062021 PIS Summary'!A9,'CR CWIP query 062021 ISD'!$K:$K,'062021 PIS Summary'!B9) -> 0 | D9: =+D6+E6+J6+K6 -> 0 | E9: =C9 -> 0 | F9: =0.5*E9 -> 0 | G9: =+D9+F9 -> 0 | H9: 0.00356083 | I9: 0.001645
A10: 2019 | B10: 2 | C10: =SUMIFS('CR CWIP query 062021 ISD'!$H:$H,'CR CWIP query 062021 ISD'!$L:$L,'062021 PIS Summary'!A10,'CR CWIP query 062021 ISD'!$K:$K,'062021 PIS Summary'!B10) -> 0 | D10: =+D9+E9+J9+K9 -> 0 | E10: 0 | F10: =0.5*E10 -> 0 | G10: =+D10+F10 -> 0 | H10: 0.00356083 | I10: 0.001645
A11: 2019 | B11: 3 | C11: =SUMIFS('CR CWIP query 062021 ISD'!$H:$H,'CR CWIP query 062021 ISD'!$L:$L,'062021 PIS Summary'!A11,'CR CWIP query 062021 ISD'!$K:$K,'062021 PIS Summary'!B11) -> 0 | D11: 0 | E11: 0 | F11: 0 | G11: 0 | H11: 0.00356083 | I11: 0.001645
A12: 2019 | B12: 4 | C12: =SUMIFS('CR CWIP query 062021 ISD'!$H:$H,'CR CWIP query 062021 ISD'!$L:$L,'062021 PIS Summary'!A12,'CR CWIP query 062021 ISD'!$K:$K,'062021 PIS Summary'!B12) -> 0 | D12: 0 | E12: =C12 -> 0 | F12: =0.5*E12 -> 0 | G12: =+D12+F12 -> 0 | H12: 0.00356083 | I12: 0.001645
A13: 2019 | B13: 5 | C13: =SUMIFS('CR CWIP query 062021 ISD'!$H:$H,'CR CWIP query 062021 ISD'!$L:$L,'062021 PIS Summary'!A13,'CR CWIP query 062021 ISD'!$K:$K,'062021 PIS Summary'!B13) -> 0 | D13: 0 | E13: =C13 -> 0 | F13: =0.5*E13 -> 0 | G13: =+D13+F13 -> 0 | H13: 0.00356083 | I13: 0.001645
A14: 2019 | B14: 6 | C14: =SUMIFS('CR CWIP query 062021 ISD'!$H:$H,'CR CWIP query 062021 ISD'!$L:$L,'062021 PIS Summary'!A14,'CR CWIP query 062021 ISD'!$K:$K,'062021 PIS Summary'!B14) -> 0 | D14: 0 | E14: 0 | F14: 0 | G14: 0 | H14: 0.00356083 | I14: 0.001645
A15: 2019 | B15: 7 | C15: =SUMIFS('CR CWIP query 062021 ISD'!$H:$H,'CR CWIP query 062021 ISD'!$L:$L,'062021 PIS Summary'!A15,'CR CWIP query 062021 ISD'!$K:$K,'062021 PIS Summary'!B15) -> 0 | D15: 0 | E15: 0 | F15: 0 | G15: 0 | H15: 0.00356083 | I15: 0.001645
A16: 2019 | B16: 8 | C16: =SUMIFS('CR CWIP query 062021 ISD'!$H:$H,'CR CWIP query 062021 ISD'!$L:$L,'062021 PIS Summary'!A16,'CR CWIP query 062021 ISD'!$K:$K,'062021 PIS Summary'!B16) -> 0 | D16: 0 | E16: 0 | F16: 0 | G16: 0 | H16: 0.00356083 | I16: 0.001645
A17: 2019 | B17: 9 | C17: =SUMIFS('CR CWIP query 062021 ISD'!$H:$H,'CR CWIP query 062021 ISD'!$L:$L,'062021 PIS Summary'!A17,'CR CWIP query 062021 ISD'!$K:$K,'062021 PIS Summary'!B17) -> 0 | D17: 0 | E17: 0 | F17: 0 | G17: 0 | H17: 0.00356083 | I17: 0.001645
A18: 2019 | B18: 10 | C18: =SUMIFS('CR CWIP query 062021 ISD'!$H:$H,'CR CWIP query 062021 ISD'!$L:$L,'062021 PIS Summary'!A18,'CR CWIP query 062021 ISD'!$K:$K,'062021 PIS Summary'!B18) -> 0 | D18: 0 | E18: 0 | F18: 0 | G18: 0 | H18: 0.00356083 | I18: 0.001645
A19: 2019 | B19: 11 | C19: =SUMIFS('CR CWIP query 062021 ISD'!$H:$H,'CR CWIP query 062021 ISD'!$L:$L,'062021 PIS Summary'!A19,'CR CWIP query 062021 ISD'!$K:$K,'062021 PIS Summary'!B19) -> 0 | D19: 0 | E19: 0 | F19: 0 | G19: 0 | H19: 0.00356083 | I19: 0.001645
A20: 2019 | B20: 12 | C20: =SUMIFS('CR CWIP query 062021 ISD'!$H:$H,'CR CWIP query 062021 ISD'!$L:$L,'062021 PIS Summary'!A20,'CR CWIP query 062021 ISD'!$K:$K,'062021 PIS Summary'!B20) -> 0 | D20: 0 | E20: =C20 -> 0 | F20: =0.5*E20 -> 0 | G20: =+D20+F20 -> 0 | H20: 0.00356083 | I20: 0.001645
A21: 19 Total | C21: =SUM(C9:C20) -> 0 | E21: =SUM(E9:E20) -> 0 | J21: =SUM(J9:J20) -> 0 | K21: =SUM(K9:K20) -> 0 | L21: =SUM(L9:L20) -> 0
A23: 2020 | B23: 1 | C23: =SUMIFS('CR CWIP query 062021 ISD'!$H:$H,'CR CWIP query 062021 ISD'!$L:$L,'062021 PIS Summary'!A23,'CR CWIP query 062021 ISD'!$K:$K,'062021 PIS Summary'!B23) -> 0 | D23: =+D20+E20+J20+K20 -> 0 | E23: =C23 -> 0 | F23: =0.5*E23 -> 0 | G23: =+D23+F23 -> 0 | H23: 0.00356083 | I23: 0.001645
A24: 2020 | B24: 2 | C24: =SUMIFS('CR CWIP query 062021 ISD'!$H:$H,'CR CWIP query 062021 ISD'!$L:$L,'062021 PIS Summary'!A24,'CR CWIP query 062021 ISD'!$K:$K,'062021 PIS Summary'!B24) -> 0 | D24: =+D23+E23+J23+K23 -> 0 | E24: 0 | F24: =0.5*E24 -> 0 | G24: =+D24+F24 -> 0 | H24: 0.00356083 | I24: 0.001645
A25: 2020 | B25: 3 | C25: =SUMIFS('CR CWIP query 062021 ISD'!$H:$H,'CR CWIP query 062021 ISD'!$L:$L,'062021 PIS Summary'!A25,'CR CWIP query 062021 ISD'!$K:$K,'062021 PIS Summary'!B25) -> 0 | D25: 0 | E25: 0 | F25: 0 | G25: 0 | H25: 0.00356083 | I25: 0.001645
A26: 2020 | B26: 4 | C26: =SUMIFS('CR CWIP query 062021 ISD'!$H:$H,'CR CWIP query 062021 ISD'!$L:$L,'062021 PIS Summary'!A26,'CR CWIP query 062021 ISD'!$K:$K,'062021 PIS Summary'!B26) -> 0 | D26: 0 | E26: =C26 -> 0 | F26: =0.5*E26 -> 0 | G26: =+D26+F26 -> 0 | H26: 0.00356083 | I26: 0.001645
A27: 2020 | B27: 5 | C27: =SUMIFS('CR CWIP query 062021 ISD'!$H:$H,'CR CWIP query 062021 ISD'!$L:$L,'062021 PIS Summary'!A27,'CR CWIP query 062021 ISD'!$K:$K,'062021 PIS Summary'!B27) -> 0 | D27: 0 | E27: =C27 -> 0 | F27: =0.5*E27 -> 0 | G27: =+D27+F27 -> 0 | H27: 0.00356083 | I27: 0.001645
A28: 2020 | B28: 6 | C28: =SUMIFS('CR CWIP query 062021 ISD'!$H:$H,'CR CWIP query 062021 ISD'!$L:$L,'062021 PIS Summary'!A28,'CR CWIP query 062021 ISD'!$K:$K,'062021 PIS Summary'!B28) -> 0 | D28: 0 | E28: 0 | F28: 0 | G28: 0 | H28: 0.00356083 | I28: 0.001645
A29: 2020 | B29: 7 | C29: =SUMIFS('CR CWIP query 062021 ISD'!$H:$H,'CR CWIP query 062021 ISD'!$L:$L,'062021 PIS Summary'!A29,'CR CWIP query 062021 ISD'!$K:$K,'062021 PIS Summary'!B29) -> 134.59 | D29: 0 | E29: 134.59 | F29: 67.295 | G29: 67.295 | H29: 0.00356083 | I29: 0.001645
A30: 2020 | B30: 8 | C30: =SUMIFS('CR CWIP query 062021 ISD'!$H:$H,'CR CWIP query 062021 ISD'!$L:$L,'062021 PIS Summary'!A30,'CR CWIP query 062021 ISD'!$K:$K,'062021 PIS Summary'!B30) -> 3275.07 | D30: 134.59 | E30: 3275.07 | F30: 1637.535 | G30: 1772.125 | H30: 0.00356083 | I30: 0.001645
A31: 2020 | B31: 9 | C31: =SUMIFS('CR CWIP query 062021 ISD'!$H:$H,'CR CWIP query 062021 ISD'!$L:$L,'062021 PIS Summary'!A31,'CR CWIP query 062021 ISD'!$K:$K,'062021 PIS Summary'!B31) -> 4379.15 | D31: 3409.66 | E31: 4379.15 | F31: 2189.575 | G31: 5599.235 | H31: 0.00356083 | I31: 0.001645
A32: 2020 | B32: 10 | C32: =SUMIFS('CR CWIP query 062021 ISD'!$H:$H,'CR CWIP query 062021 ISD'!$L:$L,'062021 PIS Summary'!A32,'CR CWIP query 062021 ISD'!$K:$K,'062021 PIS Summary'!B32) -> -253.13 | D32: 7788.81 | E32: -253.13 | F32: -126.565 | G32: 7662.245 | H32: 0.00356083 | I32: 0.001645
A33: 2020 | B33: 11 | C33: =SUMIFS('CR CWIP query 062021 ISD'!$H:$H,'CR CWIP query 062021 ISD'!$L:$L,'062021 PIS Summary'!A33,'CR CWIP query 062021 ISD'!$K:$K,'062021 PIS Summary'!B33) -> 3209.95 | D33: 7535.68 | E33: 3209.95 | F33: 1604.975 | G33: 9140.655 | H33: 0.00356083 | I33: 0.001645
A34: 2020 | B34: 12 | C34: =SUMIFS('CR CWIP query 062021 ISD'!$H:$H,'CR CWIP query 062021 ISD'!$L:$L,'062021 PIS Summary'!A34,'CR CWIP query 062021 ISD'!$K:$K,'062021 PIS Summary'!B34) -> 5753.85 | D34: 10745.63 | E34: =C34 -> 5753.85 | F34: =0.5*E34 -> 2876.925 | G34: =+D34+F34 -> 13622.555 | H34: 0.00356083 | I34: 0.001645
A35: 20 Total | C35: =SUM(C23:C34) -> 16499.48 | E35: =SUM(E24:E34) -> 16499.48 | J35: =SUM(J23:J34) -> 0 | K35: =SUM(K23:K34) -> 0 | L35: 0
A37: 2021 | B37: 1 | C37: =SUMIFS('CR CWIP query 062021 ISD'!$H:$H,'CR CWIP query 062021 ISD'!$L:$L,'062021 PIS Summary'!A37,'CR CWIP query 062021 ISD'!$K:$K,'062021 PIS Summary'!B37) -> 1847.59 | D37: =+D34+E34+J34+K34 -> 16499.48 | E37: =C37 -> 1847.59 | F37: =0.5*E37 -> 923.795 | G37: =+D37+F37 -> 17423.275 | H37: 0.00356083 | I37: 0.001645
A38: 2021 | B38: 2 | C38: =SUMIFS('CR CWIP query 062021 ISD'!$H:$H,'CR CWIP query 062021 ISD'!$L:$L,'062021 PIS Summary'!A38,'CR CWIP query 062021 ISD'!$K:$K,'062021 PIS Summary'!B38) -> 1585.02 | D38: =+D37+E37+J37+K37 -> 18347.07 | E38: 1585.02 | F38: =0.5*E38 -> 792.51 | G38: =+D38+F38 -> 19139.58 | H38: 0.00356083 | I38: 0.001645
A39: 2021 | B39: 3 | C39: =SUMIFS('CR CWIP query 062021 ISD'!$H:$H,'CR CWIP query 062021 ISD'!$L:$L,'062021 PIS Summary'!A39,'CR CWIP query 062021 ISD'!$K:$K,'062021 PIS Summary'!B39) -> 2616.27 | D39: =+D38+E38+J38+K38 -> 19932.09 | E39: 2616.27 | F39: 1308.135 | G39: 21240.225 | H39: 0.00356083 | I39: 0.001645
A40: 2021 | B40: 4 | C40: =SUMIFS('CR CWIP query 062021 ISD'!$H:$H,'CR CWIP query 062021 ISD'!$L:$L,'062021 PIS Summary'!A40,'CR CWIP query 062021 ISD'!$K:$K,'062021 PIS Summary'!B40) -> 1120.36 | D40: =+D39+E39+J39+K39 -> 22548.36 | E40: 1120.36 | F40: 560.18 | G40: 23108.54 | H40: 0.00356083 | I40: 0.001645
A41: 2021 | B41: 5 | C41: =SUMIFS('CR CWIP query 062021 ISD'!$H:$H,'CR CWIP query 062021 ISD'!$L:$L,'062021 PIS Summary'!A41,'CR CWIP query 062021 ISD'!$K:$K,'062021 PIS Summary'!B41) -> 19.74 | D41: =+D40+E40+J40+K40 -> 23668.72 | E41: 19.74 | F41: 9.87 | G41: 23678.59 | H41: 0.00356083 | I41: 0.001645
A42: 2021 | B42: 6 | C42: =SUMIFS('CR CWIP query 062021 ISD'!$H:$H,'CR CWIP query 062021 ISD'!$L:$L,'062021 PIS Summary'!A42,'CR CWIP query 062021 ISD'!$K:$K,'062021 PIS Summary'!B42) -> 1659.78 | D42: 23688.46 | E42: 1659.78 | F42: 829.89 | G42: 24518.35 | H42: 0.00356083 | I42: 0.001645 | J42: =ROUND($G42*H42,2)*0.5 -> 43.655 | K42: =ROUND($G42*I42,2)*0.5 -> 20.165 | L42: =+J42-K42 -> 23.49
A43: 2021 | B43: 7 | C43: =SUMIFS('CR CWIP query 062021 ISD'!$H:$H,'CR CWIP query 062021 ISD'!$L:$L,'062021 PIS Summary'!A43,'CR CWIP query 062021 ISD'!$K:$K,'062021 PIS Summary'!B43) -> 232.67 | D43: 25412.06 | E43: 232.67 | F43: 116.335 | G43: 25528.395 | H43: 0.00356083 | I43: 0.001645 | J43: =ROUND($G43*H43,2) -> 90.9 | K43: =ROUND($G43*I43,2) -> 41.99 | L43: =+J43-K43 -> 48.91
A44: 2021 | B44: 8 | C44: =SUMIFS('CR CWIP query 062021 ISD'!$H:$H,'CR CWIP query 062021 ISD'!$L:$L,'062021 PIS Summary'!A44,'CR CWIP query 062021 ISD'!$K:$K,'062021 PIS Summary'!B44) -> 121.14 | D44: 25777.62 | E44: 121.14 | F44: 60.57 | G44: 25838.19 | H44: 0.00356083 | I44: 0.001645 | J44: 92.01 | K44: 42.5 | L44: 49.51
A45: 2021 | B45: 9 | C45: =SUMIFS('CR CWIP query 062021 ISD'!$H:$H,'CR CWIP query 062021 ISD'!$L:$L,'062021 PIS Summary'!A45,'CR CWIP query 062021 ISD'!$K:$K,'062021 PIS Summary'!B45) -> 0 | D45: 26033.27 | E45: 0 | F45: 0 | G45: 26033.27 | H45: 0.00356083 | I45: 0.001645 | J45: 92.7 | K45: 42.82 | L45: 49.88
A46: 2021 | B46: 10 | C46: =SUMIFS('CR CWIP query 062021 ISD'!$H:$H,'CR CWIP query 062021 ISD'!$L:$L,'062021 PIS Summary'!A46,'CR CWIP query 062021 ISD'!$K:$K,'062021 PIS Summary'!B46) -> 0 | D46: 26168.79 | E46: 0 | F46: 0 | G46: 26168.79 | H46: 0.00356083 | I46: 0.001645 | J46: 93.18 | K46: 43.05 | L46: 50.13
A47: 2021 | B47: 11 | C47: =SUMIFS('CR CWIP query 062021 ISD'!$H:$H,'CR CWIP query 062021 ISD'!$L:$L,'062021 PIS Summary'!A47,'CR CWIP query 062021 ISD'!$K:$K,'062021 PIS Summary'!B47) -> 0 | D47: 26305.02 | E47: 0 | F47: 0 | G47: 26305.02 | H47: 0.00356083 | I47: 0.001645 | J47: 93.67 | K47: 43.27 | L47: 50.4
A48: 2021 | B48: 12 | C48: =SUMIFS('CR CWIP query 062021 ISD'!$H:$H,'CR CWIP query 062021 ISD'!$L:$L,'062021 PIS Summary'!A48,'CR CWIP query 062021 ISD'!$K:$K,'062021 PIS Summary'!B48) -> 1389.45 | D48: 26441.96 | E48: 1389.45 | F48: 694.725 | G48: 27136.685 | H48: 0.00356083 | I48: 0.001645 | J48: 96.63 | K48: 44.64 | L48: 51.99
A49: 21 Total | C49: =SUM(C37:C48) -> 10592.02 | E49: =SUM(E37:E48) -> 10592.02 | J49: =SUM(J37:J48) -> 602.745 | K49: =SUM(K37:K48) -> 278.435 | L49: =SUM(L37:L48) -> 324.31
A51: 2022 | B51: 1 | C51: =SUMIFS('CR CWIP query 062021 ISD'!$H:$H,'CR CWIP query 062021 ISD'!$L:$L,'062021 PIS Summary'!A51,'CR CWIP query 062021 ISD'!$K:$K,'062021 PIS Summary'!B51) -> 0 | D51: =+D48+E48+J48+K48 -> 27972.68 | E51: =C51 -> 0 | F51: =0.5*E51 -> 0 | G51: =+D51+F51 -> 27972.68 | H51: 0.00356083 | I51: 0.001645 | J51: =ROUND($G51*H51,2) -> 99.61 | K51: =ROUND($G51*I51,2) -> 46.02 | L51: =+J51-K51 -> 53.59
A52: 2022 | B52: 2 | C52: =SUMIFS('CR CWIP query 062021 ISD'!$H:$H,'CR CWIP query 062021 ISD'!$L:$L,'062021 PIS Summary'!A52,'CR CWIP query 062021 ISD'!$K:$K,'062021 PIS Summary'!B52) -> 0 | D52: =+D51+E51+J51+K51 -> 28118.31 | E52: 0 | F52: =0.5*E52 -> 0 | G52: =+D52+F52 -> 28118.31 | H52: 0.00356083 | I52: 0.001645 | J52: =ROUND($G52*H52,2) -> 100.12 | K52: =ROUND($G52*I52,2) -> 46.25 | L52: =+J52-K52 -> 53.87
A53: 2022 | B53: 3 | C53: =SUMIFS('CR CWIP query 062021 ISD'!$H:$H,'CR CWIP query 062021 ISD'!$L:$L,'062021 PIS Summary'!A53,'CR CWIP query 062021 ISD'!$K:$K,'062021 PIS Summary'!B53) -> 0 | D53: =+D52+E52+J52+K52 -> 28264.68 | E53: 0 | F53: 0 | G53: 28264.68 | H53: 0.00356083 | I53: 0.001645 | J53: =ROUND($G53*H53,2) -> 100.65 | K53: =ROUND($G53*I53,2) -> 46.5 | L53: 54.15
A54: 2022 | B54: 4 | C54: =SUMIFS('CR CWIP query 062021 ISD'!$H:$H,'CR CWIP query 062021 ISD'!$L:$L,'062021 PIS Summary'!A54,'CR CWIP query 062021 ISD'!$K:$K,'062021 PIS Summary'!B54) -> 0 | D54: =+D53+E53+J53+K53 -> 28411.83 | E54: 0 | F54: 0 | G54: 28411.83 | H54: 0.00356083 | I54: 0.001645 | J54: =ROUND($G54*H54,2) -> 101.17 | K54: 46.74 | L54: =+J54-K54 -> 54.43
A55: 2022 | B55: 5 | C55: =SUMIFS('CR CWIP query 062021 ISD'!$H:$H,'CR CWIP query 062021 ISD'!$L:$L,'062021 PIS Summary'!A55,'CR CWIP query 062021 ISD'!$K:$K,'062021 PIS Summary'!B55) -> 0 | D55: =+D54+E54+J54+K54 -> 28559.74 | E55: 0 | F55: 0 | G55: 28559.74 | H55: 0.00356083 | I55: 0.001645 | J55: 101.7 | K55: 46.98 | L55: 54.72
A56: 2022 | B56: 6 | C56: =SUMIFS('CR CWIP query 062021 ISD'!$H:$H,'CR CWIP query 062021 ISD'!$L:$L,'062021 PIS Summary'!A56,'CR CWIP query 062021 ISD'!$K:$K,'062021 PIS Summary'!B56) -> 0 | D56: 28708.42 | E56: 0 | F56: 0 | G56: 28708.42 | H56: 0.00356083 | I56: 0.001645 | J56: 102.23 | K56: 47.23 | L56: 55
A57: 2022 | B57: 7 | C57: =SUMIFS('CR CWIP query 062021 ISD'!$H:$H,'CR CWIP query 062021 ISD'!$L:$L,'062021 PIS Summary'!A57,'CR CWIP query 062021 ISD'!$K:$K,'062021 PIS Summary'!B57) -> 0 | D57: 28857.88 | E57: 0 | F57: 0 | G57: 28857.88 | H57: 0.00356083 | I57: 0.001645 | J57: 102.76 | K57: 47.47 | L57: 55.29
A58: 2022 | B58: 8 | C58: =SUMIFS('CR CWIP query 062021 ISD'!$H:$H,'CR CWIP query 062021 ISD'!$L:$L,'062021 PIS Summary'!A58,'CR CWIP query 062021 ISD'!$K:$K,'062021 PIS Summary'!B58) -> 0 | D58: 29008.11 | E58: 0 | F58: 0 | G58: 29008.11 | H58: 0.00356083 | I58: 0.001645 | J58: =ROUND($G58*H58,2) -> 103.29 | K58: =ROUND($G58*I58,2) -> 47.72 | L58: =+J58-K58 -> 55.57
A59: 2022 | B59: 9 | C59: =SUMIFS('CR CWIP query 062021 ISD'!$H:$H,'CR CWIP query 062021 ISD'!$L:$L,'062021 PIS Summary'!A59,'CR CWIP query 062021 ISD'!$K:$K,'062021 PIS Summary'!B59) -> 0 | D59: 29159.12 | E59: 0 | F59: 0 | G59: 29159.12 | H59: 0.00356083 | I59: 0.001645 | J59: 103.83 | K59: 47.97 | L59: 55.86
A60: 2022 | B60: 10 | C60: =SUMIFS('CR CWIP query 062021 ISD'!$H:$H,'CR CWIP query 062021 ISD'!$L:$L,'062021 PIS Summary'!A60,'CR CWIP query 062021 ISD'!$K:$K,'062021 PIS Summary'!B60) -> 0 | D60: 29310.92 | E60: 0 | F60: 0 | G60: 29310.92 | H60: 0.00356083 | I60: 0.001645 | J60: 104.37 | K60: 48.22 | L60: 56.15
A61: 2022 | B61: 11 | C61: =SUMIFS('CR CWIP query 062021 ISD'!$H:$H,'CR CWIP query 062021 ISD'!$L:$L,'062021 PIS Summary'!A61,'CR CWIP query 062021 ISD'!$K:$K,'062021 PIS Summary'!B61) -> 0 | D61: 29463.51 | E61: 0 | F61: 0 | G61: 29463.51 | H61: 0.00356083 | I61: 0.001645
A62: 2022 | B62: 12 | C62: =SUMIFS('CR CWIP query 062021 ISD'!$H:$H,'CR CWIP query 062021 ISD'!$L:$L,'062021 PIS Summary'!A62,'CR CWIP query 062021 ISD'!$K:$K,'062021 PIS Summary'!B62) -> 0 | D62: 29463.51 | E62: 0 | F62: 0 | G62: 29463.51 | H62: 0.00356083 | I62: 0.001645
A63: 22 Total | C63: =SUM(C51:C62) -> 0 | E63: =SUM(E51:E62) -> 0 | J63: =SUM(J51:J62) -> 1019.73 | K63: =SUM(K51:K62) -> 471.1 | L63: =SUM(L51:L62) -> 548.63

Sheet CR query CWIP only all months (hidden)
A1: Company | B1: Cost Element | C1: Work Order Number | D1: In Service Dates | E1: Account | F1: Document Type | G1: Month Number | H1: Amount | I1: AFUDC Debt Rate | J1: AFUDC Equity Rate | K1: month | L1: year | M1: Date | N1: 1st month PIS AFUDC | AC1: R10-50Q1.20-P-0006,R10-50Q1.20-P-0004,R10-50Q1.20-P-0008,R10-50Q1.21-P-0012,R10-50Q1.21-P-0009,R10-50Q1.22-P-0004,R10-50Q1.22-P-0002,R10-70Q1.20-P-0022,R10-70Q1.20-P-0024,R10-70Q1.20-P-0004,R10-70Q1.21-P-0019,R10-70Q1.21-P-0018,R10-70Q1.20-P-0006,R10-70Q1.20-P-0011,R10-70Q1.21-P-0013,R10-70Q1.20-P-0018,R10-70Q1.20-P-0015,R10-70Q1.20-P-0012,R10-70Q1.22-P-0002,R10-70Q1.22-P-0006,R10-70Q1.22-P-0005,R10-70Q1.22-P-0016,R10-47Q1.21-P-0003,R10-47Q1.20-P-0015,R10-47Q1.20-P-0019,R10-47Q1.22-P-0004,R10-72Q1.21-P-0002,R10-72Q1.20-P-0005,R10-72Q1.20-P-0007,R10-72Q1.20-P-0006,R10-72Q1.21-P-0008,R10-72Q1.21-P-0004,R10-90Q1.21-P-0018,R10-90Q1.20-P-0010,R10-01L6.20-P-0015,R10-90Q1.21-P-0027,R10-90Q1.21-P-0023,R10-90Q1.20-P-0028,R10-90Q1.20-P-0033,R10-01L6.20-P-0010,R10-90Q1.20-P-0047,R10-10Q1.20-P-0062,R10-10Q1.21-P-0047,R10-01Q1.19-P-0012,R10-60Q1.21-P-0014,R10-60Q1.20-P-0022,R10-60Q1.20-P-0016,R10-60Q1.20-P-0031,R10-60Q1.21-P-0016,R10-60Q1.21-P-0003,R10-60Q1.21-P-0002,R10-60Q1.22-P-0010,R10-60Q1.21-P-0009,R10-60Q1.21-P-0008,R10-60Q1.20-P-0028,R10-60Q1.20-P-0040,R10-60Q1.20-P-0032,R10-60Q1.22-P-0011,R10-11L1.20-P-0003,R10-11Q1.20-P-0007,R10-11Q1.20-P-0005,R10-11Q1.20-P-0006,R10-11Q1.21-P-0002,R10-11Q1.21-P-0010,R10-11Q1.21-P-0013,R10-11Q1.21-P-0005,R10-11Q1.22-P-0002,R10-11Q1.22-P-0003,R10-45Q1.21-P-0006,R10-45Q1.22-P-0006,R10-46Q1.20-P-0003,R10-46Q1.20-P-0007,R10-01L1.20-P-0011,R10-46Q1.20-P-0010,R10-01Q1.20-P-0005,R10-80Q1.21-P-0008,R10-01Q1.21-P-0002,R10-75Q1.19-P-0003,R10-01Q1.20-P-0016,R10-75Q1.21-P-0006,R10-75Q1.20-P-0013,R10-75Q1.20-P-0008,R10-01M1.21-P-0019,R10-55Q1.20-P-0020,R10-55Q1.21-P-0002,R10-55Q1.20-P-0018,R10-55Q1.20-P-0019,R10-55Q1.20-P-0017,R10-58Q1.20-P-0008,R10-58Q1.20-P-0003,R10-58Q1.22-P-0004,R10-65Q1.20-P-0008,R10-65Q1.21-P-0003,R10-65Q1.21-P-0007,R10-65Q1.21-P-0008,R10-65Q1.21-P-0009,R10-65Q1.22-P-0004,R10-15Q1.20-P-0016,R10-15Q1.20-P-0014,R10-15Q1.22-P-0008,R10-15Q1.21-P-0007,R10-15Q1.21-P-0002,R10-15Q1.20-P-0002,R10-01Q1.21-P-0003,R10-15Q1.21-P-0005,R10-15Q1.20-P-0022,R10-15Q1.20-P-0004,R10-15Q1.21-P-0010,R10-15Q1.21-P-0018,R10-15Q1.21-P-0022,R10-01Q1.20-P-0014,R10-25Q1.21-P-0004,R10-25Q1.21-P-0002,R10-25Q1.20-P-0010,R10-01L3.19-P-0006,R10-25Q1.21-P-0011,R10-25Q1.20-P-0005,R10-25Q1.20-P-0012,R10-01L3.21-P-0002,R10-25Q1.21-P-0009
A2: 1010 | B2: 52801700 | C2: T10-0184-P-1000 | D2: =VLOOKUP($C2,'SEI ISD'!$A$4:$B$124,2,0) -> 2020-11-20 | E2: 10700000 | F2: UZ | G2: 202103 | H2: 24.41 | I2: 0.001645 | J2: 0.00356083 | K2: =RIGHT(G2,2) -> 03 | L2: =LEFT(G2,4) -> 2021 | M2: =_xlfn.CONCAT(K2,"/",L2) -> 03/2021 | N2: =EOMONTH(D2,0) -> 2020-11-30 | AC2: paste of these 120 WBS'
A3: 1010 | B3: 52801700 | C3: T10-0185-P-1000 | D3: =VLOOKUP($C3,'SEI ISD'!$A$4:$B$124,2,0) -> 2021-06-15 | E3: 10700000 | F3: UZ | G3: 202103 | H3: 231.92 | I3: 0.001645 | J3: 0.00356083 | K3: =RIGHT(G3,2) -> 03 | L3: =LEFT(G3,4) -> 2021 | M3: =_xlfn.CONCAT(K3,"/",L3) -> 03/2021 | N3: =EOMONTH(D3,0) -> 2021-06-30
A4: 1010 | B4: 52801700 | C4: T10-0185-P-1000 | D4: =VLOOKUP($C4,'SEI ISD'!$A$4:$B$124,2,0) -> 2021-06-15 | E4: 10700000 | F4: UZ | G4: 202104 | H4: 44.73 | I4: 0.001645 | J4: 0.00356083 | K4: 04 | L4: 2021 | M4: 04/2021 | N4: 2021-06-30 | AC4: These are the transactions on the WBS settling to CWIP excluding accruals in 52801200. Matches CWIP Transfer activity providing a check CR query is complete
A5: 1010 | B5: 52801700 | C5: T10-0185-P-1000 | D5: =VLOOKUP($C5,'SEI ISD'!$A$4:$B$124,2,0) -> 2021-06-15 | E5: 10700000 | F5: UZ | G5: 202105 | H5: -3.75 | I5: 0.001645 | J5: 0.00356083 | K5: 05 | L5: 2021 | M5: 05/2021 | N5: 2021-06-30
A6: 1010 | B6: 52801700 | C6: T10-0185-P-1000 | D6: =VLOOKUP($C6,'SEI ISD'!$A$4:$B$124,2,0) -> 2021-06-15 | E6: 10700000 | F6: UZ | G6: 202106 | H6: 119.62 | I6: 0.001645 | J6: 0.00356083 | K6: 06 | L6: 2021 | M6: 06/2021 | N6: 2021-06-30 | AC6: =SUM(H:H) -> 302561.65 | AD6: WIP side
A7: 1010 | B7: 52801700 | C7: T10-0185-P-1000 | D7: =VLOOKUP($C7,'SEI ISD'!$A$4:$B$124,2,0) -> 2021-06-15 | E7: 10700000 | F7: UZ | G7: 202107 | H7: 37.72 | I7: 0.001645 | J7: 0.00356083 | K7: 07 | L7: 2021 | M7: 07/2021 | N7: 2021-06-30 | AC7: =SUM('Total Deferred Depr'!G:G) -> 302561.65 | AD7: Addition activity doc types UP,UN which also match Asset 1200 report
A8: 1010 | B8: 52801700 | C8: T10-0185-P-1000 | D8: =VLOOKUP($C8,'SEI ISD'!$A$4:$B$124,2,0) -> 2021-06-15 | E8: 10700000 | F8: UZ | G8: 202108 | H8: 6.74 | I8: 0.001645 | J8: 0.00356083 | K8: 08 | L8: 2021 | M8: 08/2021 | N8: 2021-06-30 | AC8: =+AC7-AC6 -> 0 | AD8: immaterial var
A9: 1010 | B9: 53150000 | C9: T10-0185-P-1000 | D9: =VLOOKUP($C9,'SEI ISD'!$A$4:$B$124,2,0) -> 2021-06-15 | E9: 10700000 | F9: UZ | G9: 202112 | H9: 1389.45 | I9: 0.001645 | J9: 0.00356083 | K9: 12 | L9: 2021 | M9: 12/2021 | N9: 2021-06-30
A10: 1010 | B10: 53481000 | C10: R10-01K3.19-P-4031 | D10: =VLOOKUP($C10,'SEI ISD'!$A$4:$B$124,2,0) -> 2021-03-01 | E10: 10700000 | F10: UZ | G10: 201909 | H10: 28.98 | I10: 0.001645 | J10: 0.00356083 | K10: 09 | L10: 2019 | M10: 09/2019 | N10: 2021-03-31
A11: 1010 | B11: 53481000 | C11: R10-01K3.19-P-4031 | D11: =VLOOKUP($C11,'SEI ISD'!$A$4:$B$124,2,0) -> 2021-03-01 | E11: 10700000 | F11: UZ | G11: 201910 | H11: -10.87 | I11: 0.001645 | J11: 0.00356083 | K11: 10 | L11: 2019 | M11: 10/2019 | N11: 2021-03-31
A12: 1010 | B12: 53481000 | C12: R10-01K3.19-P-4031 | D12: =VLOOKUP($C12,'SEI ISD'!$A$4:$B$124,2,0) -> 2021-03-01 | E12: 10700000 | F12: UZ | G12: 201911 | H12: 337.54 | I12: 0.001645 | J12: 0.00356083 | K12: 11 | L12: 2019 | M12: 11/2019 | N12: 2021-03-31
A13: 1010 | B13: 53481000 | C13: R10-01K3.19-P-4031 | D13: =VLOOKUP($C13,'SEI ISD'!$A$4:$B$124,2,0) -> 2021-03-01 | E13: 10700000 | F13: UZ | G13: 201912 | H13: 39.67 | I13: 0.001645 | J13: 0.00356083 | K13: 12 | L13: 2019 | M13: 12/2019 | N13: 2021-03-31
A14: 1010 | B14: 53481000 | C14: R10-01K3.19-P-4031 | D14: =VLOOKUP($C14,'SEI ISD'!$A$4:$B$124,2,0) -> 2021-03-01 | E14: 10700000 | F14: UZ | G14: 202001 | H14: 840.95 | I14: 0.001645 | J14: 0.00356083 | K14: 01 | L14: 2020 | M14: 01/2020 | N14: 2021-03-31
A15: 1010 | B15: 53481000 | C15: R10-01K3.19-P-4031 | D15: =VLOOKUP($C15,'SEI ISD'!$A$4:$B$124,2,0) -> 2021-03-01 | E15: 10700000 | F15: UZ | G15: 202002 | H15: 467.31 | I15: 0.001645 | J15: 0.00356083 | K15: 02 | L15: 2020 | M15: 02/2020 | N15: 2021-03-31
A16: 1010 | B16: 53481000 | C16: R10-01K3.19-P-4031 | D16: =VLOOKUP($C16,'SEI ISD'!$A$4:$B$124,2,0) -> 2021-03-01 | E16: 10700000 | F16: UZ | G16: 202003 | H16: 1452.08 | I16: 0.001645 | J16: 0.00356083 | K16: 03 | L16: 2020 | M16: 03/2020 | N16: 2021-03-31
A17: 1010 | B17: 53481000 | C17: R10-01K3.19-P-4031 | D17: =VLOOKUP($C17,'SEI ISD'!$A$4:$B$124,2,0) -> 2021-03-01 | E17: 10700000 | F17: UZ | G17: 202004 | H17: 511.73 | I17: 0.001645 | J17: 0.00356083 | K17: 04 | L17: 2020 | M17: 04/2020 | N17: 2021-03-31
A18: 1010 | B18: 53481000 | C18: R10-01K3.19-P-4031 | D18: =VLOOKUP($C18,'SEI ISD'!$A$4:$B$124,2,0) -> 2021-03-01 | E18: 10700000 | F18: UZ | G18: 202005 | H18: 871.4 | I18: 0.001645 | J18: 0.00356083 | K18: 05 | L18: 2020 | M18: 05/2020 | N18: 2021-03-31
A19: 1010 | B19: 53481000 | C19: R10-01K3.19-P-4031 | D19: =VLOOKUP($C19,'SEI ISD'!$A$4:$B$124,2,0) -> 2021-03-01 | E19: 10700000 | F19: UZ | G19: 202006 | H19: 699.92 | I19: 0.001645 | J19: 0.00356083 | K19: 06 | L19: 2020 | M19: 06/2020 | N19: 2021-03-31
A20: 1010 | B20: 53481000 | C20: R10-01K3.19-P-4031 | D20: =VLOOKUP($C20,'SEI ISD'!$A$4:$B$124,2,0) -> 2021-03-01 | E20: 10700000 | F20: UZ | G20: 202007 | H20: 748.83 | I20: 0.001645 | J20: 0.00356083 | K20: 07 | L20: 2020 | M20: 07/2020 | N20: 2021-03-31
A21: 1010 | B21: 53481000 | C21: R10-01K3.19-P-4031 | D21: =VLOOKUP($C21,'SEI ISD'!$A$4:$B$124,2,0) -> 2021-03-01 | E21: 10700000 | F21: UZ | G21: 202008 | H21: 1637.95 | I21: 0.001645 | J21: 0.00356083 | K21: 08 | L21: 2020 | M21: 08/2020 | N21: 2021-03-31
A22: 1010 | B22: 53481000 | C22: R10-01K3.19-P-4031 | D22: =VLOOKUP($C22,'SEI ISD'!$A$4:$B$124,2,0) -> 2021-03-01 | E22: 10700000 | F22: UZ | G22: 202009 | H22: 1084.29 | I22: 0.001645 | J22: 0.00356083 | K22: 09 | L22: 2020 | M22: 09/2020 | N22: 2021-03-31
A23: 1010 | B23: 53481000 | C23: R10-01K3.19-P-4031 | D23: =VLOOKUP($C23,'SEI ISD'!$A$4:$B$124,2,0) -> 2021-03-01 | E23: 10700000 | F23: UZ | G23: 202010 | H23: 669.66 | I23: 0.001645 | J23: 0.00356083 | K23: 10 | L23: 2020 | M23: 10/2020 | N23: 2021-03-31
A24: 1010 | B24: 53481000 | C24: R10-01K3.19-P-4031 | D24: =VLOOKUP($C24,'SEI ISD'!$A$4:$B$124,2,0) -> 2021-03-01 | E24: 10700000 | F24: UZ | G24: 202011 | H24: 1315.04 | I24: 0.001645 | J24: 0.00356083 | K24: 11 | L24: 2020 | M24: 11/2020 | N24: 2021-03-31
A25: 1010 | B25: 53481000 | C25: R10-01K3.19-P-4031 | D25: =VLOOKUP($C25,'SEI ISD'!$A$4:$B$124,2,0) -> 2021-03-01 | E25: 10700000 | F25: UZ | G25: 202012 | H25: 781.98 | I25: 0.001645 | J25: 0.00356083 | K25: 12 | L25: 2020 | M25: 12/2020 | N25: 2021-03-31
A26: 1010 | B26: 53481000 | C26: R10-01K3.19-P-4031 | D26: =VLOOKUP($C26,'SEI ISD'!$A$4:$B$124,2,0) -> 2021-03-01 | E26: 10700000 | F26: UZ | G26: 202101 | H26: -35.94 | I26: 0.001645 | J26: 0.00356083 | K26: 01 | L26: 2021 | M26: 01/2021 | N26: 2021-03-31
A27: 1010 | B27: 53481000 | C27: R10-01K3.19-P-4031 | D27: =VLOOKUP($C27,'SEI ISD'!$A$4:$B$124,2,0) -> 2021-03-01 | E27: 10700000 | F27: UZ | G27: 202102 | H27: 222.46 | I27: 0.001645 | J27: 0.00356083 | K27: 02 | L27: 2021 | M27: 02/2021 | N27: 2021-03-31
A28: 1010 | B28: 53481000 | C28: R10-01K3.19-P-4031 | D28: =VLOOKUP($C28,'SEI ISD'!$A$4:$B$124,2,0) -> 2021-03-01 | E28: 10700000 | F28: UZ | G28: 202103 | H28: 653.23 | I28: 0.001645 | J28: 0.00356083 | K28: 03 | L28: 2021 | M28: 03/2021 | N28: 2021-03-31
A29: 1010 | B29: 53481000 | C29: T10-0184-P-1000 | D29: =VLOOKUP($C29,'SEI ISD'!$A$4:$B$124,2,0) -> 2020-11-20 | E29: 10700000 | F29: UZ | G29: 202006 | H29: 56.47 | I29: 0.001645 | J29: 0.00356083 | K29: 06 | L29: 2020 | M29: 06/2020 | N29: 2020-11-30
A30: 1010 | B30: 53481000 | C30: T10-0184-P-1000 | D30: =VLOOKUP($C30,'SEI ISD'!$A$4:$B$124,2,0) -> 2020-11-20 | E30: 10700000 | F30: UZ | G30: 202007 | H30: 229.09 | I30: 0.001645 | J30: 0.00356083 | K30: 07 | L30: 2020 | M30: 07/2020 | N30: 2020-11-30
A31: 1010 | B31: 53481000 | C31: T10-0184-P-1000 | D31: =VLOOKUP($C31,'SEI ISD'!$A$4:$B$124,2,0) -> 2020-11-20 | E31: 10700000 | F31: UZ | G31: 202008 | H31: 1209.37 | I31: 0.001645 | J31: 0.00356083 | K31: 08 | L31: 2020 | M31: 08/2020 | N31: 2020-11-30
A32: 1010 | B32: 53481000 | C32: T10-0184-P-1000 | D32: =VLOOKUP($C32,'SEI ISD'!$A$4:$B$124,2,0) -> 2020-11-20 | E32: 10700000 | F32: UZ | G32: 202009 | H32: 470.28 | I32: 0.001645 | J32: 0.00356083 | K32: 09 | L32: 2020 | M32: 09/2020 | N32: 2020-11-30
A33: 1010 | B33: 53481000 | C33: T10-0184-P-1000 | D33: =VLOOKUP($C33,'SEI ISD'!$A$4:$B$124,2,0) -> 2020-11-20 | E33: 10700000 | F33: UZ | G33: 202010 | H33: 1244.99 | I33: 0.001645 | J33: 0.00356083 | K33: 10 | L33: 2020 | M33: 10/2020 | N33: 2020-11-30
A34: 1010 | B34: 53481000 | C34: T10-0184-P-1000 | D34: =VLOOKUP($C34,'SEI ISD'!$A$4:$B$124,2,0) -> 2020-11-20 | E34: 10700000 | F34: UZ | G34: 202011 | H34: 257.41 | I34: 0.001645 | J34: 0.00356083 | K34: 11 | L34: 2020 | M34: 11/2020 | N34: 2020-11-30
A35: 1010 | B35: 53481000 | C35: T10-0184-P-1000 | D35: =VLOOKUP($C35,'SEI ISD'!$A$4:$B$124,2,0) -> 2020-11-20 | E35: 10700000 | F35: UZ | G35: 202012 | H35: 320.37 | I35: 0.001645 | J35: 0.00356083 | K35: 12 | L35: 2020 | M35: 12/2020 | N35: 2020-11-30
A36: 1010 | B36: 53481000 | C36: T10-0184-P-1000 | D36: =VLOOKUP($C36,'SEI ISD'!$A$4:$B$124,2,0) -> 2020-11-20 | E36: 10700000 | F36: UZ | G36: 202101 | H36: 395.1 | I36: 0.001645 | J36: 0.00356083 | K36: 01 | L36: 2021 | M36: 01/2021 | N36: 2020-11-30
A37: 1010 | B37: 53481000 | C37: T10-0184-P-1000 | D37: =VLOOKUP($C37,'SEI ISD'!$A$4:$B$124,2,0) -> 2020-11-20 | E37: 10700000 | F37: UZ | G37: 202102 | H37: 341.01 | I37: 0.001645 | J37: 0.00356083 | K37: 02 | L37: 2021 | M37: 02/2021 | N37: 2020-11-30
A38: 1010 | B38: 53481000 | C38: T10-0184-P-1000 | D38: =VLOOKUP($C38,'SEI ISD'!$A$4:$B$124,2,0) -> 2020-11-20 | E38: 10700000 | F38: UZ | G38: 202103 | H38: -435.08 | I38: 0.001645 | J38: 0.00356083 | K38: 03 | L38: 2021 | M38: 03/2021 | N38: 2020-11-30
A39: 1010 | B39: 53481000 | C39: T10-0185-P-1000 | D39: =VLOOKUP($C39,'SEI ISD'!$A$4:$B$124,2,0) -> 2021-06-15 | E39: 10700000 | F39: UZ | G39: 202007 | H39: 88.44 | I39: 0.001645 | J39: 0.00356083 | K39: 07 | L39: 2020 | M39: 07/2020 | N39: 2021-06-30
A40: 1010 | B40: 53481000 | C40: T10-0185-P-1000 | D40: =VLOOKUP($C40,'SEI ISD'!$A$4:$B$124,2,0) -> 2021-06-15 | E40: 10700000 | F40: UZ | G40: 202009 | H40: 53.06 | I40: 0.001645 | J40: 0.00356083 | K40: 09 | L40: 2020 | M40: 09/2020 | N40: 2021-06-30
A41: 1010 | B41: 53481000 | C41: T10-0185-P-1000 | D41: =VLOOKUP($C41,'SEI ISD'!$A$4:$B$124,2,0) -> 2021-06-15 | E41: 10700000 | F41: UZ | G41: 202010 | H41: -23.58 | I41: 0.001645 | J41: 0.00356083 | K41: 10 | L41: 2020 | M41: 10/2020 | N41: 2021-06-30
A42: 1010 | B42: 53481000 | C42: T10-0185-P-1000 | D42: =VLOOKUP($C42,'SEI ISD'!$A$4:$B$124,2,0) -> 2021-06-15 | E42: 10700000 | F42: UZ | G42: 202011 | H42: 4.37 | I42: 0.001645 | J42: 0.00356083 | K42: 11 | L42: 2020 | M42: 11/2020 | N42: 2021-06-30
A43: 1010 | B43: 53481000 | C43: T10-0185-P-1000 | D43: =VLOOKUP($C43,'SEI ISD'!$A$4:$B$124,2,0) -> 2021-06-15 | E43: 10700000 | F43: UZ | G43: 202012 | H43: 862.82 | I43: 0.001645 | J43: 0.00356083 | K43: 12 | L43: 2020 | M43: 12/2020 | N43: 2021-06-30
A44: 1010 | B44: 53481000 | C44: T10-0185-P-1000 | D44: =VLOOKUP($C44,'SEI ISD'!$A$4:$B$124,2,0) -> 2021-06-15 | E44: 10700000 | F44: UZ | G44: 202101 | H44: 206.96 | I44: 0.001645 | J44: 0.00356083 | K44: 01 | L44: 2021 | M44: 01/2021 | N44: 2021-06-30
A45: 1010 | B45: 53481000 | C45: T10-0185-P-1000 | D45: =VLOOKUP($C45,'SEI ISD'!$A$4:$B$124,2,0) -> 2021-06-15 | E45: 10700000 | F45: UZ | G45: 202102 | H45: 996.22 | I45: 0.001645 | J45: 0.00356083 | K45: 02 | L45: 2021 | M45: 02/2021 | N45: 2021-06-30
A46: 1010 | B46: 53481000 | C46: T10-0185-P-1000 | D46: =VLOOKUP($C46,'SEI ISD'!$A$4:$B$124,2,0) -> 2021-06-15 | E46: 10700000 | F46: UZ | G46: 202103 | H46: 664.86 | I46: 0.001645 | J46: 0.00356083 | K46: 03 | L46: 2021 | M46: 03/2021 | N46: 2021-06-30
A47: 1010 | B47: 53481000 | C47: T10-0185-P-1000 | D47: =VLOOKUP($C47,'SEI ISD'!$A$4:$B$124,2,0) -> 2021-06-15 | E47: 10700000 | F47: UZ | G47: 202104 | H47: 609.81 | I47: 0.001645 | J47: 0.00356083 | K47: 04 | L47: 2021 | M47: 04/2021 | N47: 2021-06-30
A48: 1010 | B48: 53481000 | C48: T10-0185-P-1000 | D48: =VLOOKUP($C48,'SEI ISD'!$A$4:$B$124,2,0) -> 2021-06-15 | E48: 10700000 | F48: UZ | G48: 202105 | H48: -273.47 | I48: 0.001645 | J48: 0.00356083 | K48: 05 | L48: 2021 | M48: 05/2021 | N48: 2021-06-30
A49: 1010 | B49: 53481000 | C49: T10-0185-P-1000 | D49: =VLOOKUP($C49,'SEI ISD'!$A$4:$B$124,2,0) -> 2021-06-15 | E49: 10700000 | F49: UZ | G49: 202106 | H49: 728.71 | I49: 0.001645 | J49: 0.00356083 | K49: 06 | L49: 2021 | M49: 06/2021 | N49: 2021-06-30
A50: 1010 | B50: 53481100 | C50: R10-01K3.19-P-4031 | D50: =VLOOKUP($C50,'SEI ISD'!$A$4:$B$124,2,0) -> 2021-03-01 | E50: 10700000 | F50: UZ | G50: 201911 | H50: 5.14 | I50: 0.001645 | J50: 0.00356083 | K50: 11 | L50: 2019 | M50: 11/2019 | N50: 2021-03-31
A51: 1010 | B51: 53481100 | C51: R10-01K3.19-P-4031 | D51: =VLOOKUP($C51,'SEI ISD'!$A$4:$B$124,2,0) -> 2021-03-01 | E51: 10700000 | F51: UZ | G51: 201912 | H51: 1.67 | I51: 0.001645 | J51: 0.00356083 | K51: 12 | L51: 2019 | M51: 12/2019 | N51: 2021-03-31
A52: 1010 | B52: 53481100 | C52: R10-01K3.19-P-4031 | D52: =VLOOKUP($C52,'SEI ISD'!$A$4:$B$124,2,0) -> 2021-03-01 | E52: 10700000 | F52: UZ | G52: 202001 | H52: 27.7 | I52: 0.001645 | J52: 0.00356083 | K52: 01 | L52: 2020 | M52: 01/2020 | N52: 2021-03-31
A53: 1010 | B53: 53481100 | C53: R10-01K3.19-P-4031 | D53: =VLOOKUP($C53,'SEI ISD'!$A$4:$B$124,2,0) -> 2021-03-01 | E53: 10700000 | F53: UZ | G53: 202002 | H53: 14.78 | I53: 0.001645 | J53: 0.00356083 | K53: 02 | L53: 2020 | M53: 02/2020 | N53: 2021-03-31
A54: 1010 | B54: 53481100 | C54: R10-01K3.19-P-4031 | D54: =VLOOKUP($C54,'SEI ISD'!$A$4:$B$124,2,0) -> 2021-03-01 | E54: 10700000 | F54: UZ | G54: 202003 | H54: 33.49 | I54: 0.001645 | J54: 0.00356083 | K54: 03 | L54: 2020 | M54: 03/2020 | N54: 2021-03-31
A55: 1010 | B55: 53481100 | C55: R10-01K3.19-P-4031 | D55: =VLOOKUP($C55,'SEI ISD'!$A$4:$B$124,2,0) -> 2021-03-01 | E55: 10700000 | F55: UZ | G55: 202004 | H55: 12.52 | I55: 0.001645 | J55: 0.00356083 | K55: 04 | L55: 2020 | M55: 04/2020 | N55: 2021-03-31
A56: 1010 | B56: 53481100 | C56: R10-01K3.19-P-4031 | D56: =VLOOKUP($C56,'SEI ISD'!$A$4:$B$124,2,0) -> 2021-03-01 | E56: 10700000 | F56: UZ | G56: 202005 | H56: 20.28 | I56: 0.001645 | J56: 0.00356083 | K56: 05 | L56: 2020 | M56: 05/2020 | N56: 2021-03-31
A57: 1010 | B57: 53481100 | C57: R10-01K3.19-P-4031 | D57: =VLOOKUP($C57,'SEI ISD'!$A$4:$B$124,2,0) -> 2021-03-01 | E57: 10700000 | F57: UZ | G57: 202006 | H57: -21.77 | I57: 0.001645 | J57: 0.00356083 | K57: 06 | L57: 2020 | M57: 06/2020 | N57: 2021-03-31
A58: 1010 | B58: 53481100 | C58: R10-01K3.19-P-4031 | D58: =VLOOKUP($C58,'SEI ISD'!$A$4:$B$124,2,0) -> 2021-03-01 | E58: 10700000 | F58: UZ | G58: 202007 | H58: 7.62 | I58: 0.001645 | J58: 0.00356083 | K58: 07 | L58: 2020 | M58: 07/2020 | N58: 2021-03-31
A59: 1010 | B59: 53481100 | C59: R10-01K3.19-P-4031 | D59: =VLOOKUP($C59,'SEI ISD'!$A$4:$B$124,2,0) -> 2021-03-01 | E59: 10700000 | F59: UZ | G59: 202008 | H59: 17.8 | I59: 0.001645 | J59: 0.00356083 | K59: 08 | L59: 2020 | M59: 08/2020 | N59: 2021-03-31
A60: 1010 | B60: 53481100 | C60: R10-01K3.19-P-4031 | D60: =VLOOKUP($C60,'SEI ISD'!$A$4:$B$124,2,0) -> 2021-03-01 | E60: 10700000 | F60: UZ | G60: 202009 | H60: 11.44 | I60: 0.001645 | J60: 0.00356083 | K60: 09 | L60: 2020 | M60: 09/2020 | N60: 2021-03-31
A61: 1010 | B61: 53481100 | C61: R10-01K3.19-P-4031 | D61: =VLOOKUP($C61,'SEI ISD'!$A$4:$B$124,2,0) -> 2021-03-01 | E61: 10700000 | F61: UZ | G61: 202010 | H61: 6.82 | I61: 0.001645 | J61: 0.00356083 | K61: 10 | L61: 2020 | M61: 10/2020 | N61: 2021-03-31
A62: 1010 | B62: 53481100 | C62: R10-01K3.19-P-4031 | D62: =VLOOKUP($C62,'SEI ISD'!$A$4:$B$124,2,0) -> 2021-03-01 | E62: 10700000 | F62: UZ | G62: 202011 | H62: 15.22 | I62: 0.001645 | J62: 0.00356083 | K62: 11 | L62: 2020 | M62: 11/2020 | N62: 2021-03-31
A63: 1010 | B63: 53481100 | C63: R10-01K3.19-P-4031 | D63: =VLOOKUP($C63,'SEI ISD'!$A$4:$B$124,2,0) -> 2021-03-01 | E63: 10700000 | F63: UZ | G63: 202012 | H63: 8.59 | I63: 0.001645 | J63: 0.00356083 | K63: 12 | L63: 2020 | M63: 12/2020 | N63: 2021-03-31
A64: 1010 | B64: 53481100 | C64: R10-01K3.19-P-4031 | D64: =VLOOKUP($C64,'SEI ISD'!$A$4:$B$124,2,0) -> 2021-03-01 | E64: 10700000 | F64: UZ | G64: 202102 | H64: 2.98 | I64: 0.001645 | J64: 0.00356083 | K64: 02 | L64: 2021 | M64: 02/2021 | N64: 2021-03-31
A65: 1010 | B65: 53481100 | C65: R10-01K3.19-P-4031 | D65: =VLOOKUP($C65,'SEI ISD'!$A$4:$B$124,2,0) -> 2021-03-01 | E65: 10700000 | F65: UZ | G65: 202103 | H65: 9.7 | I65: 0.001645 | J65: 0.00356083 | K65: 03 | L65: 2021 | M65: =_xlfn.CONCAT(K65,"/31/",L65) -> 03/31/2021 | N65: 2021-03-31
A66: 1010 | B66: 53481100 | C66: T10-0184-P-1000 | D66: =VLOOKUP($C66,'SEI ISD'!$A$4:$B$124,2,0) -> 2020-11-20 | E66: 10700000 | F66: UZ | G66: 202007 | H66: 2.54 | I66: 0.001645 | J66: 0.00356083 | K66: 07 | L66: 2020 | M66: 07/2020 | N66: 2020-11-30
A67: 1010 | B67: 53481100 | C67: T10-0184-P-1000 | D67: =VLOOKUP($C67,'SEI ISD'!$A$4:$B$124,2,0) -> 2020-11-20 | E67: 10700000 | F67: UZ | G67: 202008 | H67: 13.15 | I67: 0.001645 | J67: 0.00356083 | K67: =RIGHT(G67,2) -> 08 | L67: =LEFT(G67,4) -> 2020 | M67: =_xlfn.CONCAT(K67,"/",L67) -> 08/2020 | N67: =EOMONTH(D67,0) -> 2020-11-30
A68: 1010 | B68: 53481100 | C68: T10-0184-P-1000 | D68: =VLOOKUP($C68,'SEI ISD'!$A$4:$B$124,2,0) -> 2020-11-20 | E68: 10700000 | F68: UZ | G68: 202009 | H68: 4.9 | I68: 0.001645 | J68: 0.00356083 | K68: 09 | L68: 2020 | M68: 09/2020 | N68: 2020-11-30
A69: 1010 | B69: 53481100 | C69: T10-0184-P-1000 | D69: =VLOOKUP($C69,'SEI ISD'!$A$4:$B$124,2,0) -> 2020-11-20 | E69: 10700000 | F69: UZ | G69: 202010 | H69: 13.03 | I69: 0.001645 | J69: 0.00356083 | K69: 10 | L69: 2020 | M69: 10/2020 | N69: 2020-11-30
A70: 1010 | B70: 53481100 | C70: T10-0184-P-1000 | D70: =VLOOKUP($C70,'SEI ISD'!$A$4:$B$124,2,0) -> 2020-11-20 | E70: 10700000 | F70: UZ | G70: 202011 | H70: 3.38 | I70: 0.001645 | J70: 0.00356083 | K70: 11 | L70: 2020 | M70: 11/2020 | N70: 2020-11-30
A71: 1010 | B71: 53481100 | C71: T10-0184-P-1000 | D71: =VLOOKUP($C71,'SEI ISD'!$A$4:$B$124,2,0) -> 2020-11-20 | E71: 10700000 | F71: UZ | G71: 202012 | H71: 3.82 | I71: 0.001645 | J71: 0.00356083 | K71: 12 | L71: 2020 | M71: 12/2020 | N71: 2020-11-30
A72: 1010 | B72: 53481100 | C72: T10-0184-P-1000 | D72: =VLOOKUP($C72,'SEI ISD'!$A$4:$B$124,2,0) -> 2020-11-20 | E72: 10700000 | F72: UZ | G72: 202101 | H72: 5.17 | I72: 0.001645 | J72: 0.00356083 | K72: 01 | L72: 2021 | M72: 01/2021 | N72: 2020-11-30
A73: 1010 | B73: 53481100 | C73: T10-0184-P-1000 | D73: =VLOOKUP($C73,'SEI ISD'!$A$4:$B$124,2,0) -> 2020-11-20 | E73: 10700000 | F73: UZ | G73: 202102 | H73: 4.96 | I73: 0.001645 | J73: 0.00356083 | K73: 02 | L73: 2021 | M73: 02/2021 | N73: 2020-11-30
A74: 1010 | B74: 53481100 | C74: T10-0185-P-1000 | D74: =VLOOKUP($C74,'SEI ISD'!$A$4:$B$124,2,0) -> 2021-06-15 | E74: 10700000 | F74: UZ | G74: 202007 | H74: 0.85 | I74: 0.001645 | J74: 0.00356083 | K74: 07 | L74: 2020 | M74: 07/2020 | N74: 2021-06-30
A75: 1010 | B75: 53481100 | C75: T10-0185-P-1000 | D75: =VLOOKUP($C75,'SEI ISD'!$A$4:$B$124,2,0) -> 2021-06-15 | E75: 10700000 | F75: UZ | G75: 202009 | H75: 0.82 | I75: 0.001645 | J75: 0.00356083 | K75: 09 | L75: 2020 | M75: 09/2020 | N75: 2021-06-30
A76: 1010 | B76: 53481100 | C76: T10-0185-P-1000 | D76: =VLOOKUP($C76,'SEI ISD'!$A$4:$B$124,2,0) -> 2021-06-15 | E76: 10700000 | F76: UZ | G76: 202012 | H76: 9.55 | I76: 0.001645 | J76: 0.00356083 | K76: 12 | L76: 2020 | M76: 12/2020 | N76: 2021-06-30
A77: 1010 | B77: 53481100 | C77: T10-0185-P-1000 | D77: =VLOOKUP($C77,'SEI ISD'!$A$4:$B$124,2,0) -> 2021-06-15 | E77: 10700000 | F77: UZ | G77: 202101 | H77: 2.87 | I77: 0.001645 | J77: 0.00356083 | K77: 01 | L77: 2021 | M77: 01/2021 | N77: 2021-06-30
A78: 1010 | B78: 53481100 | C78: T10-0185-P-1000 | D78: =VLOOKUP($C78,'SEI ISD'!$A$4:$B$124,2,0) -> 2021-06-15 | E78: 10700000 | F78: UZ | G78: 202102 | H78: 40.42 | I78: 0.001645 | J78: 0.00356083 | K78: 02 | L78: 2021 | M78: 02/2021 | N78: 2021-06-30
A79: 1010 | B79: 53481100 | C79: T10-0185-P-1000 | D79: =VLOOKUP($C79,'SEI ISD'!$A$4:$B$124,2,0) -> 2021-06-15 | E79: 10700000 | F79: UZ | G79: 202103 | H79: 22.85 | I79: 0.001645 | J79: 0.00356083 | K79: 03 | L79: 2021 | M79: 03/2021 | N79: 2021-06-30
A80: 1010 | B80: 53481100 | C80: T10-0185-P-1000 | D80: =VLOOKUP($C80,'SEI ISD'!$A$4:$B$124,2,0) -> 2021-06-15 | E80: 10700000 | F80: UZ | G80: 202104 | H80: 20.73 | I80: 0.001645 | J80: 0.00356083 | K80: 04 | L80: 2021 | M80: 04/2021 | N80: 2021-06-30
A81: 1010 | B81: 53481100 | C81: T10-0185-P-1000 | D81: =VLOOKUP($C81,'SEI ISD'!$A$4:$B$124,2,0) -> 2021-06-15 | E81: 10700000 | F81: UZ | G81: 202106 | H81: 25.63 | I81: 0.001645 | J81: 0.00356083 | K81: 06 | L81: 2021 | M81: 06/2021 | N81: 2021-06-30
A82: 1010 | B82: 53481200 | C82: R10-01K3.19-P-4031 | D82: =VLOOKUP($C82,'SEI ISD'!$A$4:$B$124,2,0) -> 2021-03-01 | E82: 10700000 | F82: UZ | G82: 201909 | H82: 4.25 | I82: 0.001645 | J82: 0.00356083 | K82: 09 | L82: 2019 | M82: 09/2019 | N82: 2021-03-31
A83: 1010 | B83: 53481200 | C83: R10-01K3.19-P-4031 | D83: =VLOOKUP($C83,'SEI ISD'!$A$4:$B$124,2,0) -> 2021-03-01 | E83: 10700000 | F83: UZ | G83: 201910 | H83: -1.59 | I83: 0.001645 | J83: 0.00356083 | K83: 10 | L83: 2019 | M83: 10/2019 | N83: 2021-03-31
A84: 1010 | B84: 53481200 | C84: R10-01K3.19-P-4031 | D84: =VLOOKUP($C84,'SEI ISD'!$A$4:$B$124,2,0) -> 2021-03-01 | E84: 10700000 | F84: UZ | G84: 201911 | H84: 48.66 | I84: 0.001645 | J84: 0.00356083 | K84: 11 | L84: 2019 | M84: 11/2019 | N84: 2021-03-31
A85: 1010 | B85: 53481200 | C85: R10-01K3.19-P-4031 | D85: =VLOOKUP($C85,'SEI ISD'!$A$4:$B$124,2,0) -> 2021-03-01 | E85: 10700000 | F85: UZ | G85: 201912 | H85: 4.57 | I85: 0.001645 | J85: 0.00356083 | K85: 12 | L85: 2019 | M85: 12/2019 | N85: 2021-03-31
A86: 1010 | B86: 53481200 | C86: R10-01K3.19-P-4031 | D86: =VLOOKUP($C86,'SEI ISD'!$A$4:$B$124,2,0) -> 2021-03-01 | E86: 10700000 | F86: UZ | G86: 202001 | H86: 138.94 | I86: 0.001645 | J86: 0.00356083 | K86: 01 | L86: 2020 | M86: 01/2020 | N86: 2021-03-31
A87: 1010 | B87: 53481200 | C87: R10-01K3.19-P-4031 | D87: =VLOOKUP($C87,'SEI ISD'!$A$4:$B$124,2,0) -> 2021-03-01 | E87: 10700000 | F87: UZ | G87: 202002 | H87: 78.35 | I87: 0.001645 | J87: 0.00356083 | K87: 02 | L87: 2020 | M87: 02/2020 | N87: 2021-03-31
A88: 1010 | B88: 53481200 | C88: R10-01K3.19-P-4031 | D88: =VLOOKUP($C88,'SEI ISD'!$A$4:$B$124,2,0) -> 2021-03-01 | E88: 10700000 | F88: UZ | G88: 202003 | H88: 270.82 | I88: 0.001645 | J88: 0.00356083 | K88: 03 | L88: 2020 | M88: 03/2020 | N88: 2021-03-31
A89: 1010 | B89: 53481200 | C89: R10-01K3.19-P-4031 | D89: =VLOOKUP($C89,'SEI ISD'!$A$4:$B$124,2,0) -> 2021-03-01 | E89: 10700000 | F89: UZ | G89: 202004 | H89: 72.61 | I89: 0.001645 | J89: 0.00356083 | K89: 04 | L89: 2020 | M89: 04/2020 | N89: 2021-03-31
A90: 1010 | B90: 53481200 | C90: R10-01K3.19-P-4031 | D90: =VLOOKUP($C90,'SEI ISD'!$A$4:$B$124,2,0) -> 2021-03-01 | E90: 10700000 | F90: UZ | G90: 202005 | H90: 141.34 | I90: 0.001645 | J90: 0.00356083 | K90: 05 | L90: 2020 | M90: 05/2020 | N90: 2021-03-31
A91: 1010 | B91: 53481200 | C91: R10-01K3.19-P-4031 | D91: =VLOOKUP($C91,'SEI ISD'!$A$4:$B$124,2,0) -> 2021-03-01 | E91: 10700000 | F91: UZ | G91: 202006 | H91: 108.3 | I91: 0.001645 | J91: 0.00356083 | K91: 06 | L91: 2020 | M91: 06/2020 | N91: 2021-03-31
A92: 1010 | B92: 53481200 | C92: R10-01K3.19-P-4031 | D92: =VLOOKUP($C92,'SEI ISD'!$A$4:$B$124,2,0) -> 2021-03-01 | E92: 10700000 | F92: UZ | G92: 202007 | H92: 140.18 | I92: 0.001645 | J92: 0.00356083 | K92: 07 | L92: 2020 | M92: 07/2020 | N92: 2021-03-31
A93: 1010 | B93: 53481200 | C93: R10-01K3.19-P-4031 | D93: =VLOOKUP($C93,'SEI ISD'!$A$4:$B$124,2,0) -> 2021-03-01 | E93: 10700000 | F93: UZ | G93: 202008 | H93: 320.25 | I93: 0.001645 | J93: 0.00356083 | K93: 08 | L93: 2020 | M93: 08/2020 | N93: 2021-03-31
A94: 1010 | B94: 53481200 | C94: R10-01K3.19-P-4031 | D94: =VLOOKUP($C94,'SEI ISD'!$A$4:$B$124,2,0) -> 2021-03-01 | E94: 10700000 | F94: UZ | G94: 202009 | H94: 116.25 | I94: 0.001645 | J94: 0.00356083 | K94: 09 | L94: 2020 | M94: 09/2020 | N94: 2021-03-31
A95: 1010 | B95: 53481200 | C95: R10-01K3.19-P-4031 | D95: =VLOOKUP($C95,'SEI ISD'!$A$4:$B$124,2,0) -> 2021-03-01 | E95: 10700000 | F95: UZ | G95: 202010 | H95: 134.98 | I95: 0.001645 | J95: 0.00356083 | K95: 10 | L95: 2020 | M95: 10/2020 | N95: 2021-03-31
A96: 1010 | B96: 53481200 | C96: R10-01K3.19-P-4031 | D96: =VLOOKUP($C96,'SEI ISD'!$A$4:$B$124,2,0) -> 2021-03-01 | E96: 10700000 | F96: UZ | G96: 202011 | H96: 283.98 | I96: 0.001645 | J96: 0.00356083 | K96: 11 | L96: 2020 | M96: 11/2020 | N96: 2021-03-31
A97: 1010 | B97: 53481200 | C97: R10-01K3.19-P-4031 | D97: =VLOOKUP($C97,'SEI ISD'!$A$4:$B$124,2,0) -> 2021-03-01 | E97: 10700000 | F97: UZ | G97: 202012 | H97: 91.6 | I97: 0.001645 | J97: 0.00356083 | K97: 12 | L97: 2020 | M97: 12/2020 | N97: 2021-03-31
A98: 1010 | B98: 53481200 | C98: R10-01K3.19-P-4031 | D98: =VLOOKUP($C98,'SEI ISD'!$A$4:$B$124,2,0) -> 2021-03-01 | E98: 10700000 | F98: UZ | G98: 202101 | H98: -17.22 | I98: 0.001645 | J98: 0.00356083 | K98: 01 | L98: 2021 | M98: 01/2021 | N98: 2021-03-31
A99: 1010 | B99: 53481200 | C99: R10-01K3.19-P-4031 | D99: =VLOOKUP($C99,'SEI ISD'!$A$4:$B$124,2,0) -> 2021-03-01 | E99: 10700000 | F99: UZ | G99: 202102 | H99: 37.94 | I99: 0.001645 | J99: 0.00356083 | K99: 02 | L99: 2021 | M99: 02/2021 | N99: 2021-03-31
A100: 1010 | B100: 53481200 | C100: R10-01K3.19-P-4031 | D100: =VLOOKUP($C100,'SEI ISD'!$A$4:$B$124,2,0) -> 2021-03-01 | E100: 10700000 | F100: UZ | G100: 202103 | H100: 163.46 | I100: 0.001645 | J100: 0.00356083 | K100: 03 | L100: 2021 | M100: 03/2021 | N100: 2021-03-31
A101: 1010 | B101: 53481200 | C101: T10-0184-P-1000 | D101: =VLOOKUP($C101,'SEI ISD'!$A$4:$B$124,2,0) -> 2020-11-20 | E101: 10700000 | F101: UZ | G101: 202006 | H101: 4.99 | I101: 0.001645 | J101: 0.00356083 | K101: 06 | L101: 2020 | M101: 06/2020 | N101: 2020-11-30
A102: 1010 | B102: 53481200 | C102: T10-0184-P-1000 | D102: =VLOOKUP($C102,'SEI ISD'!$A$4:$B$124,2,0) -> 2020-11-20 | E102: 10700000 | F102: UZ | G102: 202007 | H102: 23.83 | I102: 0.001645 | J102: 0.00356083 | K102: 07 | L102: 2020 | M102: 07/2020 | N102: 2020-11-30
A103: 1010 | B103: 53481200 | C103: T10-0184-P-1000 | D103: =VLOOKUP($C103,'SEI ISD'!$A$4:$B$124,2,0) -> 2020-11-20 | E103: 10700000 | F103: UZ | G103: 202008 | H103: 141.63 | I103: 0.001645 | J103: 0.00356083 | K103: 08 | L103: 2020 | M103: 08/2020 | N103: 2020-11-30
A104: 1010 | B104: 53481200 | C104: T10-0184-P-1000 | D104: =VLOOKUP($C104,'SEI ISD'!$A$4:$B$124,2,0) -> 2020-11-20 | E104: 10700000 | F104: UZ | G104: 202009 | H104: 36.34 | I104: 0.001645 | J104: 0.00356083 | K104: 09 | L104: 2020 | M104: 09/2020 | N104: 2020-11-30
A105: 1010 | B105: 53481200 | C105: T10-0184-P-1000 | D105: =VLOOKUP($C105,'SEI ISD'!$A$4:$B$124,2,0) -> 2020-11-20 | E105: 10700000 | F105: UZ | G105: 202010 | H105: 132.74 | I105: 0.001645 | J105: 0.00356083 | K105: 10 | L105: 2020 | M105: 10/2020 | N105: 2020-11-30
A106: 1010 | B106: 53481200 | C106: T10-0184-P-1000 | D106: =VLOOKUP($C106,'SEI ISD'!$A$4:$B$124,2,0) -> 2020-11-20 | E106: 10700000 | F106: UZ | G106: 202011 | H106: 9.53 | I106: 0.001645 | J106: 0.00356083 | K106: 11 | L106: 2020 | M106: 11/2020 | N106: 2020-11-30
A107: 1010 | B107: 53481200 | C107: T10-0184-P-1000 | D107: =VLOOKUP($C107,'SEI ISD'!$A$4:$B$124,2,0) -> 2020-11-20 | E107: 10700000 | F107: UZ | G107: 202012 | H107: 12.57 | I107: 0.001645 | J107: 0.00356083 | K107: 12 | L107: 2020 | M107: 12/2020 | N107: 2020-11-30
A108: 1010 | B108: 53481200 | C108: T10-0184-P-1000 | D108: =VLOOKUP($C108,'SEI ISD'!$A$4:$B$124,2,0) -> 2020-11-20 | E108: 10700000 | F108: UZ | G108: 202101 | H108: 64.16 | I108: 0.001645 | J108: 0.00356083 | K108: 01 | L108: 2021 | M108: 01/2021 | N108: 2020-11-30
A109: 1010 | B109: 53481200 | C109: T10-0184-P-1000 | D109: =VLOOKUP($C109,'SEI ISD'!$A$4:$B$124,2,0) -> 2020-11-20 | E109: 10700000 | F109: UZ | G109: 202102 | H109: 29.25 | I109: 0.001645 | J109: 0.00356083 | K109: 02 | L109: 2021 | M109: 02/2021 | N109: 2020-11-30
A110: 1010 | B110: 53481200 | C110: T10-0184-P-1000 | D110: =VLOOKUP($C110,'SEI ISD'!$A$4:$B$124,2,0) -> 2020-11-20 | E110: 10700000 | F110: UZ | G110: 202103 | H110: -37.2 | I110: 0.001645 | J110: 0.00356083 | K110: 03 | L110: 2021 | M110: 03/2021 | N110: 2020-11-30
A111: 1010 | B111: 53481200 | C111: T10-0185-P-1000 | D111: =VLOOKUP($C111,'SEI ISD'!$A$4:$B$124,2,0) -> 2021-06-15 | E111: 10700000 | F111: UZ | G111: 202007 | H111: 17.73 | I111: 0.001645 | J111: 0.00356083 | K111: 07 | L111: 2020 | M111: 07/2020 | N111: 2021-06-30
A112: 1010 | B112: 53481200 | C112: T10-0185-P-1000 | D112: =VLOOKUP($C112,'SEI ISD'!$A$4:$B$124,2,0) -> 2021-06-15 | E112: 10700000 | F112: UZ | G112: 202009 | H112: 6.47 | I112: 0.001645 | J112: 0.00356083 | K112: 09 | L112: 2020 | M112: 09/2020 | N112: 2021-06-30
A113: 1010 | B113: 53481200 | C113: T10-0185-P-1000 | D113: =VLOOKUP($C113,'SEI ISD'!$A$4:$B$124,2,0) -> 2021-06-15 | E113: 10700000 | F113: UZ | G113: 202010 | H113: -2.86 | I113: 0.001645 | J113: 0.00356083 | K113: 10 | L113: 2020 | M113: 10/2020 | N113: 2021-06-30
A114: 1010 | B114: 53481200 | C114: T10-0185-P-1000 | D114: =VLOOKUP($C114,'SEI ISD'!$A$4:$B$124,2,0) -> 2021-06-15 | E114: 10700000 | F114: UZ | G114: 202011 | H114: 0.39 | I114: 0.001645 | J114: 0.00356083 | K114: 11 | L114: 2020 | M114: 11/2020 | N114: 2021-06-30
A115: 1010 | B115: 53481200 | C115: T10-0185-P-1000 | D115: =VLOOKUP($C115,'SEI ISD'!$A$4:$B$124,2,0) -> 2021-06-15 | E115: 10700000 | F115: UZ | G115: 202012 | H115: 180.19 | I115: 0.001645 | J115: 0.00356083 | K115: 12 | L115: 2020 | M115: 12/2020 | N115: 2021-06-30
A116: 1010 | B116: 53481200 | C116: T10-0185-P-1000 | D116: =VLOOKUP($C116,'SEI ISD'!$A$4:$B$124,2,0) -> 2021-06-15 | E116: 10700000 | F116: UZ | G116: 202101 | H116: 12.62 | I116: 0.001645 | J116: 0.00356083 | K116: 01 | L116: 2021 | M116: 01/2021 | N116: 2021-06-30
A117: 1010 | B117: 53481200 | C117: T10-0185-P-1000 | D117: =VLOOKUP($C117,'SEI ISD'!$A$4:$B$124,2,0) -> 2021-06-15 | E117: 10700000 | F117: UZ | G117: 202102 | H117: 218.21 | I117: 0.001645 | J117: 0.00356083 | K117: 02 | L117: 2021 | M117: 02/2021 | N117: 2021-06-30
A118: 1010 | B118: 53481200 | C118: T10-0185-P-1000 | D118: =VLOOKUP($C118,'SEI ISD'!$A$4:$B$124,2,0) -> 2021-06-15 | E118: 10700000 | F118: UZ | G118: 202103 | H118: 143.7 | I118: 0.001645 | J118: 0.00356083 | K118: 03 | L118: 2021 | M118: 03/2021 | N118: 2021-06-30
A119: 1010 | B119: 53481200 | C119: T10-0185-P-1000 | D119: =VLOOKUP($C119,'SEI ISD'!$A$4:$B$124,2,0) -> 2021-06-15 | E119: 10700000 | F119: UZ | G119: 202104 | H119: 131.27 | I119: 0.001645 | J119: 0.00356083 | K119: 04 | L119: 2021 | M119: 04/2021 | N119: 2021-06-30
A120: 1010 | B120: 53481200 | C120: T10-0185-P-1000 | D120: =VLOOKUP($C120,'SEI ISD'!$A$4:$B$124,2,0) -> 2021-06-15 | E120: 10700000 | F120: UZ | G120: 202105 | H120: -59.38 | I120: 0.001645 | J120: 0.00356083 | K120: 05 | L120: 2021 | M120: 05/2021 | N120: 2021-06-30
A121: 1010 | B121: 53481200 | C121: T10-0185-P-1000 | D121: =VLOOKUP($C121,'SEI ISD'!$A$4:$B$124,2,0) -> 2021-06-15 | E121: 10700000 | F121: UZ | G121: 202106 | H121: 154.59 | I121: 0.001645 | J121: 0.00356083 | K121: 06 | L121: 2021 | M121: 06/2021 | N121: 2021-06-30
A122: 1010 | B122: 53481300 | C122: R10-01K3.19-P-4031 | D122: =VLOOKUP($C122,'SEI ISD'!$A$4:$B$124,2,0) -> 2021-03-01 | E122: 10700000 | F122: UZ | G122: 201909 | H122: 1.52 | I122: 0.001645 | J122: 0.00356083 | K122: 09 | L122: 2019 | M122: 09/2019 | N122: 2021-03-31
A123: 1010 | B123: 53481300 | C123: R10-01K3.19-P-4031 | D123: =VLOOKUP($C123,'SEI ISD'!$A$4:$B$124,2,0) -> 2021-03-01 | E123: 10700000 | F123: UZ | G123: 201910 | H123: -0.57 | I123: 0.001645 | J123: 0.00356083 | K123: 10 | L123: 2019 | M123: 10/2019 | N123: 2021-03-31
A124: 1010 | B124: 53481300 | C124: R10-01K3.19-P-4031 | D124: =VLOOKUP($C124,'SEI ISD'!$A$4:$B$124,2,0) -> 2021-03-01 | E124: 10700000 | F124: UZ | G124: 201911 | H124: 18.28 | I124: 0.001645 | J124: 0.00356083 | K124: 11 | L124: 2019 | M124: 11/2019 | N124: 2021-03-31
A125: 1010 | B125: 53481300 | C125: R10-01K3.19-P-4031 | D125: =VLOOKUP($C125,'SEI ISD'!$A$4:$B$124,2,0) -> 2021-03-01 | E125: 10700000 | F125: UZ | G125: 201912 | H125: 2.86 | I125: 0.001645 | J125: 0.00356083 | K125: 12 | L125: 2019 | M125: 12/2019 | N125: 2021-03-31
A126: 1010 | B126: 53481300 | C126: R10-01K3.19-P-4031 | D126: =VLOOKUP($C126,'SEI ISD'!$A$4:$B$124,2,0) -> 2021-03-01 | E126: 10700000 | F126: UZ | G126: 202001 | H126: 47.46 | I126: 0.001645 | J126: 0.00356083 | K126: 01 | L126: 2020 | M126: 01/2020 | N126: 2021-03-31
A127: 1010 | B127: 53481300 | C127: R10-01K3.19-P-4031 | D127: =VLOOKUP($C127,'SEI ISD'!$A$4:$B$124,2,0) -> 2021-03-01 | E127: 10700000 | F127: UZ | G127: 202002 | H127: 25.13 | I127: 0.001645 | J127: 0.00356083 | K127: 02 | L127: 2020 | M127: 02/2020 | N127: 2021-03-31
A128: 1010 | B128: 53481300 | C128: R10-01K3.19-P-4031 | D128: =VLOOKUP($C128,'SEI ISD'!$A$4:$B$124,2,0) -> 2021-03-01 | E128: 10700000 | F128: UZ | G128: 202003 | H128: 86.84 | I128: 0.001645 | J128: 0.00356083 | K128: 03 | L128: 2020 | M128: 03/2020 | N128: 2021-03-31
A129: 1010 | B129: 53481300 | C129: R10-01K3.19-P-4031 | D129: =VLOOKUP($C129,'SEI ISD'!$A$4:$B$124,2,0) -> 2021-03-01 | E129: 10700000 | F129: UZ | G129: 202004 | H129: 24.54 | I129: 0.001645 | J129: 0.00356083 | K129: 04 | L129: 2020 | M129: 04/2020 | N129: 2021-03-31
A130: 1010 | B130: 53481300 | C130: R10-01K3.19-P-4031 | D130: =VLOOKUP($C130,'SEI ISD'!$A$4:$B$124,2,0) -> 2021-03-01 | E130: 10700000 | F130: UZ | G130: 202005 | H130: 46.59 | I130: 0.001645 | J130: 0.00356083 | K130: 05 | L130: 2020 | M130: 05/2020 | N130: 2021-03-31
A131: 1010 | B131: 53481300 | C131: R10-01K3.19-P-4031 | D131: =VLOOKUP($C131,'SEI ISD'!$A$4:$B$124,2,0) -> 2021-03-01 | E131: 10700000 | F131: UZ | G131: 202006 | H131: 31.82 | I131: 0.001645 | J131: 0.00356083 | K131: =RIGHT(G131,2) -> 06 | L131: =LEFT(G131,4) -> 2020 | M131: =_xlfn.CONCAT(K131,"/",L131) -> 06/2020 | N131: =EOMONTH(D131,0) -> 2021-03-31
A132: 1010 | B132: 53481300 | C132: R10-01K3.19-P-4031 | D132: =VLOOKUP($C132,'SEI ISD'!$A$4:$B$124,2,0) -> 2021-03-01 | E132: 10700000 | F132: UZ | G132: 202007 | H132: 44.98 | I132: 0.001645 | J132: 0.00356083 | K132: 07 | L132: 2020 | M132: 07/2020 | N132: 2021-03-31
A133: 1010 | B133: 53481300 | C133: R10-01K3.19-P-4031 | D133: =VLOOKUP($C133,'SEI ISD'!$A$4:$B$124,2,0) -> 2021-03-01 | E133: 10700000 | F133: UZ | G133: 202008 | H133: 102.6 | I133: 0.001645 | J133: 0.00356083 | K133: 08 | L133: 2020 | M133: 08/2020 | N133: 2021-03-31
A134: 1010 | B134: 53481300 | C134: R10-01K3.19-P-4031 | D134: =VLOOKUP($C134,'SEI ISD'!$A$4:$B$124,2,0) -> 2021-03-01 | E134: 10700000 | F134: UZ | G134: 202009 | H134: 37.97 | I134: 0.001645 | J134: 0.00356083 | K134: 09 | L134: 2020 | M134: 09/2020 | N134: 2021-03-31
A135: 1010 | B135: 53481300 | C135: R10-01K3.19-P-4031 | D135: =VLOOKUP($C135,'SEI ISD'!$A$4:$B$124,2,0) -> 2021-03-01 | E135: 10700000 | F135: UZ | G135: 202010 | H135: 42.99 | I135: 0.001645 | J135: 0.00356083 | K135: 10 | L135: 2020 | M135: 10/2020 | N135: 2021-03-31
A136: 1010 | B136: 53481300 | C136: R10-01K3.19-P-4031 | D136: =VLOOKUP($C136,'SEI ISD'!$A$4:$B$124,2,0) -> 2021-03-01 | E136: 10700000 | F136: UZ | G136: 202011 | H136: 89.77 | I136: 0.001645 | J136: 0.00356083 | K136: 11 | L136: 2020 | M136: 11/2020 | N136: 2021-03-31
A137: 1010 | B137: 53481300 | C137: R10-01K3.19-P-4031 | D137: =VLOOKUP($C137,'SEI ISD'!$A$4:$B$124,2,0) -> 2021-03-01 | E137: 10700000 | F137: UZ | G137: 202012 | H137: 49.11 | I137: 0.001645 | J137: 0.00356083 | K137: 12 | L137: 2020 | M137: 12/2020 | N137: 2021-03-31
A138: 1010 | B138: 53481300 | C138: R10-01K3.19-P-4031 | D138: =VLOOKUP($C138,'SEI ISD'!$A$4:$B$124,2,0) -> 2021-03-01 | E138: 10700000 | F138: UZ | G138: 202101 | H138: -3.3 | I138: 0.001645 | J138: 0.00356083 | K138: 01 | L138: 2021 | M138: 01/2021 | N138: 2021-03-31
A139: 1010 | B139: 53481300 | C139: R10-01K3.19-P-4031 | D139: =VLOOKUP($C139,'SEI ISD'!$A$4:$B$124,2,0) -> 2021-03-01 | E139: 10700000 | F139: UZ | G139: 202102 | H139: 12.17 | I139: 0.001645 | J139: 0.00356083 | K139: 02 | L139: 2021 | M139: 02/2021 | N139: 2021-03-31
A140: 1010 | B140: 53481300 | C140: R10-01K3.19-P-4031 | D140: =VLOOKUP($C140,'SEI ISD'!$A$4:$B$124,2,0) -> 2021-03-01 | E140: 10700000 | F140: UZ | G140: 202103 | H140: 62.87 | I140: 0.001645 | J140: 0.00356083 | K140: 03 | L140: 2021 | M140: 03/2021 | N140: 2021-03-31
A141: 1010 | B141: 53481300 | C141: T10-0184-P-1000 | D141: =VLOOKUP($C141,'SEI ISD'!$A$4:$B$124,2,0) -> 2020-11-20 | E141: 10700000 | F141: UZ | G141: 202006 | H141: 4.99 | I141: 0.001645 | J141: 0.00356083 | K141: 06 | L141: 2020 | M141: 06/2020 | N141: 2020-11-30
A142: 1010 | B142: 53481300 | C142: T10-0184-P-1000 | D142: =VLOOKUP($C142,'SEI ISD'!$A$4:$B$124,2,0) -> 2020-11-20 | E142: 10700000 | F142: UZ | G142: 202007 | H142: 18.22 | I142: 0.001645 | J142: 0.00356083 | K142: 07 | L142: 2020 | M142: 07/2020 | N142: 2020-11-30
A143: 1010 | B143: 53481300 | C143: T10-0184-P-1000 | D143: =VLOOKUP($C143,'SEI ISD'!$A$4:$B$124,2,0) -> 2020-11-20 | E143: 10700000 | F143: UZ | G143: 202008 | H143: 104.21 | I143: 0.001645 | J143: 0.00356083 | K143: 08 | L143: 2020 | M143: 08/2020 | N143: 2020-11-30
A144: 1010 | B144: 53481300 | C144: T10-0184-P-1000 | D144: =VLOOKUP($C144,'SEI ISD'!$A$4:$B$124,2,0) -> 2020-11-20 | E144: 10700000 | F144: UZ | G144: 202009 | H144: 46.84 | I144: 0.001645 | J144: 0.00356083 | K144: 09 | L144: 2020 | M144: 09/2020 | N144: 2020-11-30
A145: 1010 | B145: 53481300 | C145: T10-0184-P-1000 | D145: =VLOOKUP($C145,'SEI ISD'!$A$4:$B$124,2,0) -> 2020-11-20 | E145: 10700000 | F145: UZ | G145: 202010 | H145: 115.88 | I145: 0.001645 | J145: 0.00356083 | K145: 10 | L145: 2020 | M145: 10/2020 | N145: 2020-11-30
A146: 1010 | B146: 53481300 | C146: T10-0184-P-1000 | D146: =VLOOKUP($C146,'SEI ISD'!$A$4:$B$124,2,0) -> 2020-11-20 | E146: 10700000 | F146: UZ | G146: 202011 | H146: 23.48 | I146: 0.001645 | J146: 0.00356083 | K146: 11 | L146: 2020 | M146: 11/2020 | N146: 2020-11-30
A147: 1010 | B147: 53481300 | C147: T10-0184-P-1000 | D147: =VLOOKUP($C147,'SEI ISD'!$A$4:$B$124,2,0) -> 2020-11-20 | E147: 10700000 | F147: UZ | G147: 202012 | H147: 28.38 | I147: 0.001645 | J147: 0.00356083 | K147: 12 | L147: 2020 | M147: 12/2020 | N147: 2020-11-30
A148: 1010 | B148: 53481300 | C148: T10-0184-P-1000 | D148: =VLOOKUP($C148,'SEI ISD'!$A$4:$B$124,2,0) -> 2020-11-20 | E148: 10700000 | F148: UZ | G148: 202101 | H148: 37.11 | I148: 0.001645 | J148: 0.00356083 | K148: 01 | L148: 2021 | M148: 01/2021 | N148: 2020-11-30
A149: 1010 | B149: 53481300 | C149: T10-0184-P-1000 | D149: =VLOOKUP($C149,'SEI ISD'!$A$4:$B$124,2,0) -> 2020-11-20 | E149: 10700000 | F149: UZ | G149: 202102 | H149: 31.69 | I149: 0.001645 | J149: 0.00356083 | K149: 02 | L149: 2021 | M149: 02/2021 | N149: 2020-11-30
A150: 1010 | B150: 53481300 | C150: T10-0184-P-1000 | D150: =VLOOKUP($C150,'SEI ISD'!$A$4:$B$124,2,0) -> 2020-11-20 | E150: 10700000 | F150: UZ | G150: 202103 | H150: -39.57 | I150: 0.001645 | J150: 0.00356083 | K150: 03 | L150: 2021 | M150: 03/2021 | N150: 2020-11-30
A151: 1010 | B151: 53481300 | C151: T10-0185-P-1000 | D151: =VLOOKUP($C151,'SEI ISD'!$A$4:$B$124,2,0) -> 2021-06-15 | E151: 10700000 | F151: UZ | G151: 202007 | H151: 8.22 | I151: 0.001645 | J151: 0.00356083 | K151: 07 | L151: 2020 | M151: 07/2020 | N151: 2021-06-30
A152: 1010 | B152: 53481300 | C152: T10-0185-P-1000 | D152: =VLOOKUP($C152,'SEI ISD'!$A$4:$B$124,2,0) -> 2021-06-15 | E152: 10700000 | F152: UZ | G152: 202009 | H152: 4.98 | I152: 0.001645 | J152: 0.00356083 | K152: 09 | L152: 2020 | M152: 09/2020 | N152: 2021-06-30
A153: 1010 | B153: 53481300 | C153: T10-0185-P-1000 | D153: =VLOOKUP($C153,'SEI ISD'!$A$4:$B$124,2,0) -> 2021-06-15 | E153: 10700000 | F153: UZ | G153: 202010 | H153: -2.18 | I153: 0.001645 | J153: 0.00356083 | K153: 10 | L153: 2020 | M153: 10/2020 | N153: 2021-06-30
A154: 1010 | B154: 53481300 | C154: T10-0185-P-1000 | D154: =VLOOKUP($C154,'SEI ISD'!$A$4:$B$124,2,0) -> 2021-06-15 | E154: 10700000 | F154: UZ | G154: 202011 | H154: 0.4 | I154: 0.001645 | J154: 0.00356083 | K154: 11 | L154: 2020 | M154: 11/2020 | N154: 2021-06-30
A155: 1010 | B155: 53481300 | C155: T10-0185-P-1000 | D155: =VLOOKUP($C155,'SEI ISD'!$A$4:$B$124,2,0) -> 2021-06-15 | E155: 10700000 | F155: UZ | G155: 202012 | H155: 79.54 | I155: 0.001645 | J155: 0.00356083 | K155: 12 | L155: 2020 | M155: 12/2020 | N155: 2021-06-30
A156: 1010 | B156: 53481300 | C156: T10-0185-P-1000 | D156: =VLOOKUP($C156,'SEI ISD'!$A$4:$B$124,2,0) -> 2021-06-15 | E156: 10700000 | F156: UZ | G156: 202101 | H156: 19.62 | I156: 0.001645 | J156: 0.00356083 | K156: 01 | L156: 2021 | M156: 01/2021 | N156: 2021-06-30
A157: 1010 | B157: 53481300 | C157: T10-0185-P-1000 | D157: =VLOOKUP($C157,'SEI ISD'!$A$4:$B$124,2,0) -> 2021-06-15 | E157: 10700000 | F157: UZ | G157: 202102 | H157: 96.03 | I157: 0.001645 | J157: 0.00356083 | K157: 02 | L157: 2021 | M157: 02/2021 | N157: 2021-06-30
A158: 1010 | B158: 53481300 | C158: T10-0185-P-1000 | D158: =VLOOKUP($C158,'SEI ISD'!$A$4:$B$124,2,0) -> 2021-06-15 | E158: 10700000 | F158: UZ | G158: 202103 | H158: 64.06 | I158: 0.001645 | J158: 0.00356083 | K158: 03 | L158: 2021 | M158: 03/2021 | N158: 2021-06-30
A159: 1010 | B159: 53481300 | C159: T10-0185-P-1000 | D159: =VLOOKUP($C159,'SEI ISD'!$A$4:$B$124,2,0) -> 2021-06-15 | E159: 10700000 | F159: UZ | G159: 202104 | H159: 58.92 | I159: 0.001645 | J159: 0.00356083 | K159: 04 | L159: 2021 | M159: 04/2021 | N159: 2021-06-30
A160: 1010 | B160: 53481300 | C160: T10-0185-P-1000 | D160: =VLOOKUP($C160,'SEI ISD'!$A$4:$B$124,2,0) -> 2021-06-15 | E160: 10700000 | F160: UZ | G160: 202105 | H160: -25.3 | I160: 0.001645 | J160: 0.00356083 | K160: 05 | L160: 2021 | M160: 05/2021 | N160: 2021-06-30
A161: 1010 | B161: 53481300 | C161: T10-0185-P-1000 | D161: =VLOOKUP($C161,'SEI ISD'!$A$4:$B$124,2,0) -> 2021-06-15 | E161: 10700000 | F161: UZ | G161: 202106 | H161: 68.57 | I161: 0.001645 | J161: 0.00356083 | K161: 06 | L161: 2021 | M161: 06/2021 | N161: 2021-06-30
A162: 1010 | B162: 53481400 | C162: R10-01K3.19-P-4031 | D162: =VLOOKUP($C162,'SEI ISD'!$A$4:$B$124,2,0) -> 2021-03-01 | E162: 10700000 | F162: UZ | G162: 201911 | H162: 6.8 | I162: 0.001645 | J162: 0.00356083 | K162: 11 | L162: 2019 | M162: 11/2019 | N162: 2021-03-31
A163: 1010 | B163: 53481400 | C163: R10-01K3.19-P-4031 | D163: =VLOOKUP($C163,'SEI ISD'!$A$4:$B$124,2,0) -> 2021-03-01 | E163: 10700000 | F163: UZ | G163: 201912 | H163: 17994.32 | I163: 0.001645 | J163: 0.00356083 | K163: 12 | L163: 2019 | M163: 12/2019 | N163: 2021-03-31
A164: 1010 | B164: 53481400 | C164: R10-01K3.19-P-4031 | D164: =VLOOKUP($C164,'SEI ISD'!$A$4:$B$124,2,0) -> 2021-03-01 | E164: 10700000 | F164: UZ | G164: 202001 | H164: 25.9 | I164: 0.001645 | J164: 0.00356083 | K164: 01 | L164: 2020 | M164: 01/2020 | N164: 2021-03-31
A165: 1010 | B165: 53481400 | C165: R10-01K3.19-P-4031 | D165: =VLOOKUP($C165,'SEI ISD'!$A$4:$B$124,2,0) -> 2021-03-01 | E165: 10700000 | F165: UZ | G165: 202002 | H165: 0.47 | I165: 0.001645 | J165: 0.00356083 | K165: 02 | L165: 2020 | M165: 02/2020 | N165: 2021-03-31
A166: 1010 | B166: 53481400 | C166: R10-01K3.19-P-4031 | D166: =VLOOKUP($C166,'SEI ISD'!$A$4:$B$124,2,0) -> 2021-03-01 | E166: 10700000 | F166: UZ | G166: 202003 | H166: 0.09 | I166: 0.001645 | J166: 0.00356083 | K166: 03 | L166: 2020 | M166: 03/2020 | N166: 2021-03-31
A167: 1010 | B167: 53481400 | C167: R10-01K3.19-P-4031 | D167: =VLOOKUP($C167,'SEI ISD'!$A$4:$B$124,2,0) -> 2021-03-01 | E167: 10700000 | F167: UZ | G167: 202005 | H167: 1.63 | I167: 0.001645 | J167: 0.00356083 | K167: 05 | L167: 2020 | M167: 05/2020 | N167: 2021-03-31
A168: 1010 | B168: 53481400 | C168: R10-01K3.19-P-4031 | D168: =VLOOKUP($C168,'SEI ISD'!$A$4:$B$124,2,0) -> 2021-03-01 | E168: 10700000 | F168: UZ | G168: 202006 | H168: 5078.58 | I168: 0.001645 | J168: 0.00356083 | K168: 06 | L168: 2020 | M168: 06/2020 | N168: 2021-03-31
A169: 1010 | B169: 53481400 | C169: R10-01K3.19-P-4031 | D169: =VLOOKUP($C169,'SEI ISD'!$A$4:$B$124,2,0) -> 2021-03-01 | E169: 10700000 | F169: UZ | G169: 202007 | H169: 12545.91 | I169: 0.001645 | J169: 0.00356083 | K169: 07 | L169: 2020 | M169: 07/2020 | N169: 2021-03-31
A170: 1010 | B170: 53481400 | C170: R10-01K3.19-P-4031 | D170: =VLOOKUP($C170,'SEI ISD'!$A$4:$B$124,2,0) -> 2021-03-01 | E170: 10700000 | F170: UZ | G170: 202008 | H170: 0.79 | I170: 0.001645 | J170: 0.00356083 | K170: 08 | L170: 2020 | M170: 08/2020 | N170: 2021-03-31
A171: 1010 | B171: 53481400 | C171: R10-01K3.19-P-4031 | D171: =VLOOKUP($C171,'SEI ISD'!$A$4:$B$124,2,0) -> 2021-03-01 | E171: 10700000 | F171: UZ | G171: 202009 | H171: -0.79 | I171: 0.001645 | J171: 0.00356083 | K171: 09 | L171: 2020 | M171: 09/2020 | N171: 2021-03-31
A172: 1010 | B172: 53481400 | C172: R10-01K3.19-P-4031 | D172: =VLOOKUP($C172,'SEI ISD'!$A$4:$B$124,2,0) -> 2021-03-01 | E172: 10700000 | F172: UZ | G172: 202010 | H172: 9857.3 | I172: 0.001645 | J172: 0.00356083 | K172: 10 | L172: 2020 | M172: 10/2020 | N172: 2021-03-31
A173: 1010 | B173: 53481400 | C173: R10-01K3.19-P-4031 | D173: =VLOOKUP($C173,'SEI ISD'!$A$4:$B$124,2,0) -> 2021-03-01 | E173: 10700000 | F173: UZ | G173: 202011 | H173: -0.37 | I173: 0.001645 | J173: 0.00356083 | K173: 11 | L173: 2020 | M173: 11/2020 | N173: 2021-03-31
A174: 1010 | B174: 53481400 | C174: R10-01K3.19-P-4031 | D174: =VLOOKUP($C174,'SEI ISD'!$A$4:$B$124,2,0) -> 2021-03-01 | E174: 10700000 | F174: UZ | G174: 202012 | H174: 14915.14 | I174: 0.001645 | J174: 0.00356083 | K174: 12 | L174: 2020 | M174: 12/2020 | N174: 2021-03-31
A175: 1010 | B175: 53481400 | C175: R10-01K3.19-P-4031 | D175: =VLOOKUP($C175,'SEI ISD'!$A$4:$B$124,2,0) -> 2021-03-01 | E175: 10700000 | F175: UZ | G175: 202102 | H175: -27.13 | I175: 0.001645 | J175: 0.00356083 | K175: 02 | L175: 2021 | M175: 02/2021 | N175: 2021-03-31
A176: 1010 | B176: 53481400 | C176: R10-01K3.19-P-4031 | D176: =VLOOKUP($C176,'SEI ISD'!$A$4:$B$124,2,0) -> 2021-03-01 | E176: 10700000 | F176: UZ | G176: 202103 | H176: 8.02 | I176: 0.001645 | J176: 0.00356083 | K176: 03 | L176: 2021 | M176: 03/2021 | N176: 2021-03-31
A177: 1010 | B177: 53481400 | C177: T10-0184-P-1000 | D177: =VLOOKUP($C177,'SEI ISD'!$A$4:$B$124,2,0) -> 2020-11-20 | E177: 10700000 | F177: UZ | G177: 202006 | H177: 1885.68 | I177: 0.001645 | J177: 0.00356083 | K177: 06 | L177: 2020 | M177: 06/2020 | N177: 2020-11-30
A178: 1010 | B178: 53481400 | C178: T10-0184-P-1000 | D178: =VLOOKUP($C178,'SEI ISD'!$A$4:$B$124,2,0) -> 2020-11-20 | E178: 10700000 | F178: UZ | G178: 202007 | H178: 0.12 | I178: 0.001645 | J178: 0.00356083 | K178: 07 | L178: 2020 | M178: 07/2020 | N178: 2020-11-30
A179: 1010 | B179: 53481400 | C179: T10-0184-P-1000 | D179: =VLOOKUP($C179,'SEI ISD'!$A$4:$B$124,2,0) -> 2020-11-20 | E179: 10700000 | F179: UZ | G179: 202008 | H179: 0.58 | I179: 0.001645 | J179: 0.00356083 | K179: 08 | L179: 2020 | M179: 08/2020 | N179: 2020-11-30
A180: 1010 | B180: 53481400 | C180: T10-0184-P-1000 | D180: =VLOOKUP($C180,'SEI ISD'!$A$4:$B$124,2,0) -> 2020-11-20 | E180: 10700000 | F180: UZ | G180: 202009 | H180: -0.34 | I180: 0.001645 | J180: 0.00356083 | K180: 09 | L180: 2020 | M180: 09/2020 | N180: 2020-11-30
A181: 1010 | B181: 53481400 | C181: T10-0184-P-1000 | D181: =VLOOKUP($C181,'SEI ISD'!$A$4:$B$124,2,0) -> 2020-11-20 | E181: 10700000 | F181: UZ | G181: 202010 | H181: 10372.5 | I181: 0.001645 | J181: 0.00356083 | K181: 10 | L181: 2020 | M181: 10/2020 | N181: 2020-11-30
A182: 1010 | B182: 53481400 | C182: T10-0184-P-1000 | D182: =VLOOKUP($C182,'SEI ISD'!$A$4:$B$124,2,0) -> 2020-11-20 | E182: 10700000 | F182: UZ | G182: 202011 | H182: -0.08 | I182: 0.001645 | J182: 0.00356083 | K182: 11 | L182: 2020 | M182: 11/2020 | N182: 2020-11-30
A183: 1010 | B183: 53481400 | C183: T10-0184-P-1000 | D183: =VLOOKUP($C183,'SEI ISD'!$A$4:$B$124,2,0) -> 2020-11-20 | E183: 10700000 | F183: UZ | G183: 202012 | H183: 16031.74 | I183: 0.001645 | J183: 0.00356083 | K183: 12 | L183: 2020 | M183: 12/2020 | N183: 2020-11-30
A184: 1010 | B184: 53481400 | C184: T10-0184-P-1000 | D184: =VLOOKUP($C184,'SEI ISD'!$A$4:$B$124,2,0) -> 2020-11-20 | E184: 10700000 | F184: UZ | G184: 202101 | H184: 2.61 | I184: 0.001645 | J184: 0.00356083 | K184: 01 | L184: 2021 | M184: 01/2021 | N184: 2020-11-30
A185: 1010 | B185: 53481400 | C185: T10-0184-P-1000 | D185: =VLOOKUP($C185,'SEI ISD'!$A$4:$B$124,2,0) -> 2020-11-20 | E185: 10700000 | F185: UZ | G185: 202102 | H185: 2.4 | I185: 0.001645 | J185: 0.00356083 | K185: 02 | L185: 2021 | M185: 02/2021 | N185: 2020-11-30
A186: 1010 | B186: 53481400 | C186: T10-0185-P-1000 | D186: =VLOOKUP($C186,'SEI ISD'!$A$4:$B$124,2,0) -> 2021-06-15 | E186: 10700000 | F186: UZ | G186: 202007 | H186: 0.04 | I186: 0.001645 | J186: 0.00356083 | K186: 07 | L186: 2020 | M186: 07/2020 | N186: 2021-06-30
A187: 1010 | B187: 53481400 | C187: T10-0185-P-1000 | D187: =VLOOKUP($C187,'SEI ISD'!$A$4:$B$124,2,0) -> 2021-06-15 | E187: 10700000 | F187: UZ | G187: 202008 | H187: 3274.37 | I187: 0.001645 | J187: 0.00356083 | K187: 08 | L187: 2020 | M187: 08/2020 | N187: 2021-06-30
A188: 1010 | B188: 53481400 | C188: T10-0185-P-1000 | D188: =VLOOKUP($C188,'SEI ISD'!$A$4:$B$124,2,0) -> 2021-06-15 | E188: 10700000 | F188: UZ | G188: 202009 | H188: 4282.31 | I188: 0.001645 | J188: 0.00356083 | K188: 09 | L188: 2020 | M188: 09/2020 | N188: 2021-06-30
A189: 1010 | B189: 53481400 | C189: T10-0185-P-1000 | D189: =VLOOKUP($C189,'SEI ISD'!$A$4:$B$124,2,0) -> 2021-06-15 | E189: 10700000 | F189: UZ | G189: 202010 | H189: -263.23 | I189: 0.001645 | J189: 0.00356083 | K189: 10 | L189: 2020 | M189: 10/2020 | N189: 2021-06-30
A190: 1010 | B190: 53481400 | C190: T10-0185-P-1000 | D190: =VLOOKUP($C190,'SEI ISD'!$A$4:$B$124,2,0) -> 2021-06-15 | E190: 10700000 | F190: UZ | G190: 202011 | H190: 3165.23 | I190: 0.001645 | J190: 0.00356083 | K190: 11 | L190: 2020 | M190: 11/2020 | N190: 2021-06-30
A191: 1010 | B191: 53481400 | C191: T10-0185-P-1000 | D191: =VLOOKUP($C191,'SEI ISD'!$A$4:$B$124,2,0) -> 2021-06-15 | E191: 10700000 | F191: UZ | G191: 202012 | H191: 4372.06 | I191: 0.001645 | J191: 0.00356083 | K191: 12 | L191: 2020 | M191: 12/2020 | N191: 2021-06-30
A192: 1010 | B192: 53481400 | C192: T10-0185-P-1000 | D192: =VLOOKUP($C192,'SEI ISD'!$A$4:$B$124,2,0) -> 2021-06-15 | E192: 10700000 | F192: UZ | G192: 202101 | H192: 1461.93 | I192: 0.001645 | J192: 0.00356083 | K192: 01 | L192: 2021 | M192: 01/2021 | N192: 2021-06-30
A193: 1010 | B193: 53481400 | C193: T10-0185-P-1000 | D193: =VLOOKUP($C193,'SEI ISD'!$A$4:$B$124,2,0) -> 2021-06-15 | E193: 10700000 | F193: UZ | G193: 202102 | H193: -71 | I193: 0.001645 | J193: 0.00356083 | K193: 02 | L193: 2021 | M193: 02/2021 | N193: 2021-06-30
A194: 1010 | B194: 53481400 | C194: T10-0185-P-1000 | D194: =VLOOKUP($C194,'SEI ISD'!$A$4:$B$124,2,0) -> 2021-06-15 | E194: 10700000 | F194: UZ | G194: 202103 | H194: 1263.64 | I194: 0.001645 | J194: 0.00356083 | K194: 03 | L194: 2021 | M194: 03/2021 | N194: 2021-06-30
A195: 1010 | B195: 53481400 | C195: T10-0185-P-1000 | D195: =VLOOKUP($C195,'SEI ISD'!$A$4:$B$124,2,0) -> 2021-06-15 | E195: 10700000 | F195: UZ | G195: 202104 | H195: 22.74 | I195: 0.001645 | J195: 0.00356083 | K195: =RIGHT(G195,2) -> 04 | L195: =LEFT(G195,4) -> 2021 | M195: =_xlfn.CONCAT(K195,"/",L195) -> 04/2021 | N195: =EOMONTH(D195,0) -> 2021-06-30
A196: 1010 | B196: 53481400 | C196: T10-0185-P-1000 | D196: =VLOOKUP($C196,'SEI ISD'!$A$4:$B$124,2,0) -> 2021-06-15 | E196: 10700000 | F196: UZ | G196: 202105 | H196: 278.62 | I196: 0.001645 | J196: 0.00356083 | K196: 05 | L196: 2021 | M196: 05/2021 | N196: 2021-06-30
A197: 1010 | B197: 53481400 | C197: T10-0185-P-1000 | D197: =VLOOKUP($C197,'SEI ISD'!$A$4:$B$124,2,0) -> 2021-06-15 | E197: 10700000 | F197: UZ | G197: 202106 | H197: 359.31 | I197: 0.001645 | J197: 0.00356083 | K197: 06 | L197: 2021 | M197: 06/2021 | N197: 2021-06-30
A198: 1010 | B198: 53481400 | C198: T10-0185-P-1000 | D198: =VLOOKUP($C198,'SEI ISD'!$A$4:$B$124,2,0) -> 2021-06-15 | E198: 10700000 | F198: UZ | G198: 202107 | H198: 194.95 | I198: 0.001645 | J198: 0.00356083 | K198: 07 | L198: 2021 | M198: 07/2021 | N198: 2021-06-30
A199: 1010 | B199: 53481400 | C199: T10-0185-P-1000 | D199: =VLOOKUP($C199,'SEI ISD'!$A$4:$B$124,2,0) -> 2021-06-15 | E199: 10700000 | F199: UZ | G199: 202108 | H199: 114.4 | I199: 0.001645 | J199: 0.00356083 | K199: 08 | L199: 2021 | M199: 08/2021 | N199: 2021-06-30
A200: 1010 | B200: 53481500 | C200: R10-01K3.19-P-4031 | D200: =VLOOKUP($C200,'SEI ISD'!$A$4:$B$124,2,0) -> 2021-03-01 | E200: 10700000 | F200: UZ | G200: 201911 | H200: -0.15 | I200: 0.001645 | J200: 0.00356083 | K200: 11 | L200: 2019 | M200: 11/2019 | N200: 2021-03-31
... 3821 more rows

Sheet CR CWIP query 112020 ISD (hidden)
A1: Company | B1: Cost Element | C1: Work Order Number | D1: In Service Dates | E1: Account | F1: Document Type | G1: Month Number | H1: Amount | I1: AFUDC Debt Rate | J1: AFUDC Equity Rate | K1: month | L1: year | M1: Date | N1: 1st month PIS AFUDC
A2: 1010 | B2: 52801700 | C2: T10-0184-P-1000 | D2: 2020-11-20 | E2: 10700000 | F2: UZ | G2: 202103 | H2: 24.41 | I2: 0.001645 | J2: 0.00356083 | K2: =RIGHT(G2,2) -> 03 | L2: =LEFT(G2,4) -> 2021 | M2: =_xlfn.CONCAT(K2,"/",L2) -> 03/2021 | N2: =EOMONTH(D2,0) -> 2020-11-30
A3: 1010 | B3: 53481000 | C3: T10-0184-P-1000 | D3: 2020-11-20 | E3: 10700000 | F3: UZ | G3: 202006 | H3: 56.47 | I3: 0.001645 | J3: 0.00356083 | K3: =RIGHT(G3,2) -> 06 | L3: =LEFT(G3,4) -> 2020 | M3: =_xlfn.CONCAT(K3,"/",L3) -> 06/2020 | N3: =EOMONTH(D3,0) -> 2020-11-30
A4: 1010 | B4: 53481000 | C4: T10-0184-P-1000 | D4: 2020-11-20 | E4: 10700000 | F4: UZ | G4: 202007 | H4: 229.09 | I4: 0.001645 | J4: 0.00356083 | K4: 07 | L4: 2020 | M4: 07/2020 | N4: 2020-11-30
A5: 1010 | B5: 53481000 | C5: T10-0184-P-1000 | D5: 2020-11-20 | E5: 10700000 | F5: UZ | G5: 202008 | H5: 1209.37 | I5: 0.001645 | J5: 0.00356083 | K5: 08 | L5: 2020 | M5: 08/2020 | N5: 2020-11-30
A6: 1010 | B6: 53481000 | C6: T10-0184-P-1000 | D6: 2020-11-20 | E6: 10700000 | F6: UZ | G6: 202009 | H6: 470.28 | I6: 0.001645 | J6: 0.00356083 | K6: 09 | L6: 2020 | M6: 09/2020 | N6: 2020-11-30
A7: 1010 | B7: 53481000 | C7: T10-0184-P-1000 | D7: 2020-11-20 | E7: 10700000 | F7: UZ | G7: 202010 | H7: 1244.99 | I7: 0.001645 | J7: 0.00356083 | K7: 10 | L7: 2020 | M7: 10/2020 | N7: 2020-11-30
A8: 1010 | B8: 53481000 | C8: T10-0184-P-1000 | D8: 2020-11-20 | E8: 10700000 | F8: UZ | G8: 202011 | H8: 257.41 | I8: 0.001645 | J8: 0.00356083 | K8: 11 | L8: 2020 | M8: 11/2020 | N8: 2020-11-30
A9: 1010 | B9: 53481000 | C9: T10-0184-P-1000 | D9: 2020-11-20 | E9: 10700000 | F9: UZ | G9: 202012 | H9: 320.37 | I9: 0.001645 | J9: 0.00356083 | K9: 12 | L9: 2020 | M9: 12/2020 | N9: 2020-11-30
A10: 1010 | B10: 53481000 | C10: T10-0184-P-1000 | D10: 2020-11-20 | E10: 10700000 | F10: UZ | G10: 202101 | H10: 395.1 | I10: 0.001645 | J10: 0.00356083 | K10: 01 | L10: 2021 | M10: 01/2021 | N10: 2020-11-30
A11: 1010 | B11: 53481000 | C11: T10-0184-P-1000 | D11: 2020-11-20 | E11: 10700000 | F11: UZ | G11: 202102 | H11: 341.01 | I11: 0.001645 | J11: 0.00356083 | K11: 02 | L11: 2021 | M11: 02/2021 | N11: 2020-11-30
A12: 1010 | B12: 53481000 | C12: T10-0184-P-1000 | D12: 2020-11-20 | E12: 10700000 | F12: UZ | G12: 202103 | H12: -435.08 | I12: 0.001645 | J12: 0.00356083 | K12: 03 | L12: 2021 | M12: 03/2021 | N12: 2020-11-30
A13: 1010 | B13: 53481100 | C13: T10-0184-P-1000 | D13: 2020-11-20 | E13: 10700000 | F13: UZ | G13: 202007 | H13: 2.54 | I13: 0.001645 | J13: 0.00356083 | K13: 07 | L13: 2020 | M13: 07/2020 | N13: 2020-11-30
A14: 1010 | B14: 53481100 | C14: T10-0184-P-1000 | D14: 2020-11-20 | E14: 10700000 | F14: UZ | G14: 202008 | H14: 13.15 | I14: 0.001645 | J14: 0.00356083 | K14: 08 | L14: 2020 | M14: 08/2020 | N14: 2020-11-30
A15: 1010 | B15: 53481100 | C15: T10-0184-P-1000 | D15: 2020-11-20 | E15: 10700000 | F15: UZ | G15: 202009 | H15: 4.9 | I15: 0.001645 | J15: 0.00356083 | K15: 09 | L15: 2020 | M15: 09/2020 | N15: 2020-11-30
A16: 1010 | B16: 53481100 | C16: T10-0184-P-1000 | D16: 2020-11-20 | E16: 10700000 | F16: UZ | G16: 202010 | H16: 13.03 | I16: 0.001645 | J16: 0.00356083 | K16: 10 | L16: 2020 | M16: 10/2020 | N16: 2020-11-30
A17: 1010 | B17: 53481100 | C17: T10-0184-P-1000 | D17: 2020-11-20 | E17: 10700000 | F17: UZ | G17: 202011 | H17: 3.38 | I17: 0.001645 | J17: 0.00356083 | K17: 11 | L17: 2020 | M17: 11/2020 | N17: 2020-11-30
A18: 1010 | B18: 53481100 | C18: T10-0184-P-1000 | D18: 2020-11-20 | E18: 10700000 | F18: UZ | G18: 202012 | H18: 3.82 | I18: 0.001645 | J18: 0.00356083 | K18: 12 | L18: 2020 | M18: 12/2020 | N18: 2020-11-30
A19: 1010 | B19: 53481100 | C19: T10-0184-P-1000 | D19: 2020-11-20 | E19: 10700000 | F19: UZ | G19: 202101 | H19: 5.17 | I19: 0.001645 | J19: 0.00356083 | K19: 01 | L19: 2021 | M19: 01/2021 | N19: 2020-11-30
A20: 1010 | B20: 53481100 | C20: T10-0184-P-1000 | D20: 2020-11-20 | E20: 10700000 | F20: UZ | G20: 202102 | H20: 4.96 | I20: 0.001645 | J20: 0.00356083 | K20: 02 | L20: 2021 | M20: 02/2021 | N20: 2020-11-30
A21: 1010 | B21: 53481200 | C21: T10-0184-P-1000 | D21: 2020-11-20 | E21: 10700000 | F21: UZ | G21: 202006 | H21: 4.99 | I21: 0.001645 | J21: 0.00356083 | K21: 06 | L21: 2020 | M21: 06/2020 | N21: 2020-11-30
A22: 1010 | B22: 53481200 | C22: T10-0184-P-1000 | D22: 2020-11-20 | E22: 10700000 | F22: UZ | G22: 202007 | H22: 23.83 | I22: 0.001645 | J22: 0.00356083 | K22: 07 | L22: 2020 | M22: 07/2020 | N22: 2020-11-30
A23: 1010 | B23: 53481200 | C23: T10-0184-P-1000 | D23: 2020-11-20 | E23: 10700000 | F23: UZ | G23: 202008 | H23: 141.63 | I23: 0.001645 | J23: 0.00356083 | K23: 08 | L23: 2020 | M23: 08/2020 | N23: 2020-11-30
A24: 1010 | B24: 53481200 | C24: T10-0184-P-1000 | D24: 2020-11-20 | E24: 10700000 | F24: UZ | G24: 202009 | H24: 36.34 | I24: 0.001645 | J24: 0.00356083 | K24: 09 | L24: 2020 | M24: 09/2020 | N24: 2020-11-30
A25: 1010 | B25: 53481200 | C25: T10-0184-P-1000 | D25: 2020-11-20 | E25: 10700000 | F25: UZ | G25: 202010 | H25: 132.74 | I25: 0.001645 | J25: 0.00356083 | K25: 10 | L25: 2020 | M25: 10/2020 | N25: 2020-11-30
A26: 1010 | B26: 53481200 | C26: T10-0184-P-1000 | D26: 2020-11-20 | E26: 10700000 | F26: UZ | G26: 202011 | H26: 9.53 | I26: 0.001645 | J26: 0.00356083 | K26: 11 | L26: 2020 | M26: 11/2020 | N26: 2020-11-30
A27: 1010 | B27: 53481200 | C27: T10-0184-P-1000 | D27: 2020-11-20 | E27: 10700000 | F27: UZ | G27: 202012 | H27: 12.57 | I27: 0.001645 | J27: 0.00356083 | K27: 12 | L27: 2020 | M27: 12/2020 | N27: 2020-11-30
A28: 1010 | B28: 53481200 | C28: T10-0184-P-1000 | D28: 2020-11-20 | E28: 10700000 | F28: UZ | G28: 202101 | H28: 64.16 | I28: 0.001645 | J28: 0.00356083 | K28: 01 | L28: 2021 | M28: 01/2021 | N28: 2020-11-30
A29: 1010 | B29: 53481200 | C29: T10-0184-P-1000 | D29: 2020-11-20 | E29: 10700000 | F29: UZ | G29: 202102 | H29: 29.25 | I29: 0.001645 | J29: 0.00356083 | K29: 02 | L29: 2021 | M29: 02/2021 | N29: 2020-11-30
A30: 1010 | B30: 53481200 | C30: T10-0184-P-1000 | D30: 2020-11-20 | E30: 10700000 | F30: UZ | G30: 202103 | H30: -37.2 | I30: 0.001645 | J30: 0.00356083 | K30: 03 | L30: 2021 | M30: 03/2021 | N30: 2020-11-30
A31: 1010 | B31: 53481300 | C31: T10-0184-P-1000 | D31: 2020-11-20 | E31: 10700000 | F31: UZ | G31: 202006 | H31: 4.99 | I31: 0.001645 | J31: 0.00356083 | K31: 06 | L31: 2020 | M31: 06/2020 | N31: 2020-11-30
A32: 1010 | B32: 53481300 | C32: T10-0184-P-1000 | D32: 2020-11-20 | E32: 10700000 | F32: UZ | G32: 202007 | H32: 18.22 | I32: 0.001645 | J32: 0.00356083 | K32: 07 | L32: 2020 | M32: 07/2020 | N32: 2020-11-30
A33: 1010 | B33: 53481300 | C33: T10-0184-P-1000 | D33: 2020-11-20 | E33: 10700000 | F33: UZ | G33: 202008 | H33: 104.21 | I33: 0.001645 | J33: 0.00356083 | K33: 08 | L33: 2020 | M33: 08/2020 | N33: 2020-11-30
A34: 1010 | B34: 53481300 | C34: T10-0184-P-1000 | D34: 2020-11-20 | E34: 10700000 | F34: UZ | G34: 202009 | H34: 46.84 | I34: 0.001645 | J34: 0.00356083 | K34: 09 | L34: 2020 | M34: 09/2020 | N34: 2020-11-30
A35: 1010 | B35: 53481300 | C35: T10-0184-P-1000 | D35: 2020-11-20 | E35: 10700000 | F35: UZ | G35: 202010 | H35: 115.88 | I35: 0.001645 | J35: 0.00356083 | K35: 10 | L35: 2020 | M35: 10/2020 | N35: 2020-11-30
A36: 1010 | B36: 53481300 | C36: T10-0184-P-1000 | D36: 2020-11-20 | E36: 10700000 | F36: UZ | G36: 202011 | H36: 23.48 | I36: 0.001645 | J36: 0.00356083 | K36: 11 | L36: 2020 | M36: 11/2020 | N36: 2020-11-30
A37: 1010 | B37: 53481300 | C37: T10-0184-P-1000 | D37: 2020-11-20 | E37: 10700000 | F37: UZ | G37: 202012 | H37: 28.38 | I37: 0.001645 | J37: 0.00356083 | K37: 12 | L37: 2020 | M37: 12/2020 | N37: 2020-11-30
A38: 1010 | B38: 53481300 | C38: T10-0184-P-1000 | D38: 2020-11-20 | E38: 10700000 | F38: UZ | G38: 202101 | H38: 37.11 | I38: 0.001645 | J38: 0.00356083 | K38: 01 | L38: 2021 | M38: 01/2021 | N38: 2020-11-30
A39: 1010 | B39: 53481300 | C39: T10-0184-P-1000 | D39: 2020-11-20 | E39: 10700000 | F39: UZ | G39: 202102 | H39: 31.69 | I39: 0.001645 | J39: 0.00356083 | K39: 02 | L39: 2021 | M39: 02/2021 | N39: 2020-11-30
A40: 1010 | B40: 53481300 | C40: T10-0184-P-1000 | D40: 2020-11-20 | E40: 10700000 | F40: UZ | G40: 202103 | H40: -39.57 | I40: 0.001645 | J40: 0.00356083 | K40: 03 | L40: 2021 | M40: 03/2021 | N40: 2020-11-30
A41: 1010 | B41: 53481400 | C41: T10-0184-P-1000 | D41: 2020-11-20 | E41: 10700000 | F41: UZ | G41: 202006 | H41: 1885.68 | I41: 0.001645 | J41: 0.00356083 | K41: 06 | L41: 2020 | M41: 06/2020 | N41: 2020-11-30
A42: 1010 | B42: 53481400 | C42: T10-0184-P-1000 | D42: 2020-11-20 | E42: 10700000 | F42: UZ | G42: 202007 | H42: 0.12 | I42: 0.001645 | J42: 0.00356083 | K42: 07 | L42: 2020 | M42: 07/2020 | N42: 2020-11-30
A43: 1010 | B43: 53481400 | C43: T10-0184-P-1000 | D43: 2020-11-20 | E43: 10700000 | F43: UZ | G43: 202008 | H43: 0.58 | I43: 0.001645 | J43: 0.00356083 | K43: 08 | L43: 2020 | M43: 08/2020 | N43: 2020-11-30
A44: 1010 | B44: 53481400 | C44: T10-0184-P-1000 | D44: 2020-11-20 | E44: 10700000 | F44: UZ | G44: 202009 | H44: -0.34 | I44: 0.001645 | J44: 0.00356083 | K44: 09 | L44: 2020 | M44: 09/2020 | N44: 2020-11-30
A45: 1010 | B45: 53481400 | C45: T10-0184-P-1000 | D45: 2020-11-20 | E45: 10700000 | F45: UZ | G45: 202010 | H45: 10372.5 | I45: 0.001645 | J45: 0.00356083 | K45: 10 | L45: 2020 | M45: 10/2020 | N45: 2020-11-30
A46: 1010 | B46: 53481400 | C46: T10-0184-P-1000 | D46: 2020-11-20 | E46: 10700000 | F46: UZ | G46: 202011 | H46: -0.08 | I46: 0.001645 | J46: 0.00356083 | K46: 11 | L46: 2020 | M46: 11/2020 | N46: 2020-11-30
A47: 1010 | B47: 53481400 | C47: T10-0184-P-1000 | D47: 2020-11-20 | E47: 10700000 | F47: UZ | G47: 202012 | H47: 16031.74 | I47: 0.001645 | J47: 0.00356083 | K47: 12 | L47: 2020 | M47: 12/2020 | N47: 2020-11-30
A48: 1010 | B48: 53481400 | C48: T10-0184-P-1000 | D48: 2020-11-20 | E48: 10700000 | F48: UZ | G48: 202101 | H48: 2.61 | I48: 0.001645 | J48: 0.00356083 | K48: 01 | L48: 2021 | M48: 01/2021 | N48: 2020-11-30
A49: 1010 | B49: 53481400 | C49: T10-0184-P-1000 | D49: 2020-11-20 | E49: 10700000 | F49: UZ | G49: 202102 | H49: 2.4 | I49: 0.001645 | J49: 0.00356083 | K49: 02 | L49: 2021 | M49: 02/2021 | N49: 2020-11-30
A50: 1010 | B50: 53481700 | C50: T10-0184-P-1000 | D50: 2020-11-20 | E50: 10700000 | F50: UZ | G50: 202007 | H50: 0.17 | I50: 0.001645 | J50: 0.00356083 | K50: 07 | L50: 2020 | M50: 07/2020 | N50: 2020-11-30
A51: 1010 | B51: 53481700 | C51: T10-0184-P-1000 | D51: 2020-11-20 | E51: 10700000 | F51: UZ | G51: 202008 | H51: 0.86 | I51: 0.001645 | J51: 0.00356083 | K51: 08 | L51: 2020 | M51: 08/2020 | N51: 2020-11-30
A52: 1010 | B52: 53481700 | C52: T10-0184-P-1000 | D52: 2020-11-20 | E52: 10700000 | F52: UZ | G52: 202009 | H52: 0.32 | I52: 0.001645 | J52: 0.00356083 | K52: 09 | L52: 2020 | M52: 09/2020 | N52: 2020-11-30
A53: 1010 | B53: 53481700 | C53: T10-0184-P-1000 | D53: 2020-11-20 | E53: 10700000 | F53: UZ | G53: 202010 | H53: 0.85 | I53: 0.001645 | J53: 0.00356083 | K53: 10 | L53: 2020 | M53: 10/2020 | N53: 2020-11-30
A54: 1010 | B54: 53481700 | C54: T10-0184-P-1000 | D54: 2020-11-20 | E54: 10700000 | F54: UZ | G54: 202011 | H54: -1.8 | I54: 0.001645 | J54: 0.00356083 | K54: 11 | L54: 2020 | M54: 11/2020 | N54: 2020-11-30
A55: 1010 | B55: 53481700 | C55: T10-0184-P-1000 | D55: 2020-11-20 | E55: 10700000 | F55: UZ | G55: 202012 | H55: 0.04 | I55: 0.001645 | J55: 0.00356083 | K55: 12 | L55: 2020 | M55: 12/2020 | N55: 2020-11-30
A56: 1010 | B56: 53481700 | C56: T10-0184-P-1000 | D56: 2020-11-20 | E56: 10700000 | F56: UZ | G56: 202101 | H56: 0.05 | I56: 0.001645 | J56: 0.00356083 | K56: 01 | L56: 2021 | M56: 01/2021 | N56: 2020-11-30
A57: 1010 | B57: 53481700 | C57: T10-0184-P-1000 | D57: 2020-11-20 | E57: 10700000 | F57: UZ | G57: 202102 | H57: 0.05 | I57: 0.001645 | J57: 0.00356083 | K57: 02 | L57: 2021 | M57: 02/2021 | N57: 2020-11-30
A58: 1010 | B58: 53481900 | C58: T10-0184-P-1000 | D58: 2020-11-20 | E58: 10700000 | F58: UZ | G58: 202007 | H58: -1.39 | I58: 0.001645 | J58: 0.00356083 | K58: 07 | L58: 2020 | M58: 07/2020 | N58: 2020-11-30
A59: 1010 | B59: 53481900 | C59: T10-0184-P-1000 | D59: 2020-11-20 | E59: 10700000 | F59: UZ | G59: 202009 | H59: 0.52 | I59: 0.001645 | J59: 0.00356083 | K59: 09 | L59: 2020 | M59: 09/2020 | N59: 2020-11-30
A60: 1010 | B60: 53482100 | C60: T10-0184-P-1000 | D60: 2020-11-20 | E60: 10700000 | F60: UZ | G60: 202006 | H60: 66985.56 | I60: 0.001645 | J60: 0.00356083 | K60: 06 | L60: 2020 | M60: 06/2020 | N60: 2020-11-30
A61: 1010 | B61: 53482100 | C61: T10-0184-P-1000 | D61: 2020-11-20 | E61: 10700000 | F61: UZ | G61: 202007 | H61: 39.49 | I61: 0.001645 | J61: 0.00356083 | K61: 07 | L61: 2020 | M61: 07/2020 | N61: 2020-11-30
A62: 1010 | B62: 53482100 | C62: T10-0184-P-1000 | D62: 2020-11-20 | E62: 10700000 | F62: UZ | G62: 202008 | H62: 214.87 | I62: 0.001645 | J62: 0.00356083 | K62: 08 | L62: 2020 | M62: 08/2020 | N62: 2020-11-30
A63: 1010 | B63: 53482100 | C63: T10-0184-P-1000 | D63: 2020-11-20 | E63: 10700000 | F63: UZ | G63: 202009 | H63: 57.16 | I63: 0.001645 | J63: 0.00356083 | K63: 09 | L63: 2020 | M63: 09/2020 | N63: 2020-11-30
A64: 1010 | B64: 53482100 | C64: T10-0184-P-1000 | D64: 2020-11-20 | E64: 10700000 | F64: UZ | G64: 202010 | H64: 226.46 | I64: 0.001645 | J64: 0.00356083 | K64: 10 | L64: 2020 | M64: 10/2020 | N64: 2020-11-30
A65: 1010 | B65: 53482100 | C65: T10-0184-P-1000 | D65: 2020-11-20 | E65: 10700000 | F65: UZ | G65: 202011 | H65: 52.18 | I65: 0.001645 | J65: 0.00356083 | K65: 11 | L65: 2020 | M65: 11/2020 | N65: 2020-11-30
A66: 1010 | B66: 53482100 | C66: T10-0184-P-1000 | D66: 2020-11-20 | E66: 10700000 | F66: UZ | G66: 202012 | H66: 51.93 | I66: 0.001645 | J66: 0.00356083 | K66: 12 | L66: 2020 | M66: 12/2020 | N66: 2020-11-30
A67: 1010 | B67: 53482100 | C67: T10-0184-P-1000 | D67: 2020-11-20 | E67: 10700000 | F67: UZ | G67: 202101 | H67: 73.16 | I67: 0.001645 | J67: 0.00356083 | K67: =RIGHT(G67,2) -> 01 | L67: =LEFT(G67,4) -> 2021 | M67: =_xlfn.CONCAT(K67,"/",L67) -> 01/2021 | N67: =EOMONTH(D67,0) -> 2020-11-30
A68: 1010 | B68: 53482100 | C68: T10-0184-P-1000 | D68: 2020-11-20 | E68: 10700000 | F68: UZ | G68: 202102 | H68: 76.18 | I68: 0.001645 | J68: 0.00356083 | K68: 02 | L68: 2021 | M68: 02/2021 | N68: 2020-11-30
A69: 1010 | B69: 53482300 | C69: T10-0184-P-1000 | D69: 2020-11-20 | E69: 10700000 | F69: UZ | G69: 202006 | H69: 4.61 | I69: 0.001645 | J69: 0.00356083 | K69: 06 | L69: 2020 | M69: 06/2020 | N69: 2020-11-30
A70: 1010 | B70: 53482300 | C70: T10-0184-P-1000 | D70: 2020-11-20 | E70: 10700000 | F70: UZ | G70: 202007 | H70: 15.93 | I70: 0.001645 | J70: 0.00356083 | K70: 07 | L70: 2020 | M70: 07/2020 | N70: 2020-11-30
A71: 1010 | B71: 53482300 | C71: T10-0184-P-1000 | D71: 2020-11-20 | E71: 10700000 | F71: UZ | G71: 202008 | H71: 91.2 | I71: 0.001645 | J71: 0.00356083 | K71: 08 | L71: 2020 | M71: 08/2020 | N71: 2020-11-30
A72: 1010 | B72: 53482300 | C72: T10-0184-P-1000 | D72: 2020-11-20 | E72: 10700000 | F72: UZ | G72: 202009 | H72: 37.81 | I72: 0.001645 | J72: 0.00356083 | K72: 09 | L72: 2020 | M72: 09/2020 | N72: 2020-11-30
A73: 1010 | B73: 53482300 | C73: T10-0184-P-1000 | D73: 2020-11-20 | E73: 10700000 | F73: UZ | G73: 202010 | H73: 93 | I73: 0.001645 | J73: 0.00356083 | K73: 10 | L73: 2020 | M73: 10/2020 | N73: 2020-11-30
A74: 1010 | B74: 53482300 | C74: T10-0184-P-1000 | D74: 2020-11-20 | E74: 10700000 | F74: UZ | G74: 202011 | H74: 19.58 | I74: 0.001645 | J74: 0.00356083 | K74: 11 | L74: 2020 | M74: 11/2020 | N74: 2020-11-30
A75: 1010 | B75: 53482300 | C75: T10-0184-P-1000 | D75: 2020-11-20 | E75: 10700000 | F75: UZ | G75: 202012 | H75: 24.8 | I75: 0.001645 | J75: 0.00356083 | K75: 12 | L75: 2020 | M75: 12/2020 | N75: 2020-11-30
A76: 1010 | B76: 53482300 | C76: T10-0184-P-1000 | D76: 2020-11-20 | E76: 10700000 | F76: UZ | G76: 202101 | H76: 38.5 | I76: 0.001645 | J76: 0.00356083 | K76: 01 | L76: 2021 | M76: 01/2021 | N76: 2020-11-30
A77: 1010 | B77: 53482300 | C77: T10-0184-P-1000 | D77: 2020-11-20 | E77: 10700000 | F77: UZ | G77: 202102 | H77: 32.13 | I77: 0.001645 | J77: 0.00356083 | K77: 02 | L77: 2021 | M77: 02/2021 | N77: 2020-11-30
A78: 1010 | B78: 53482300 | C78: T10-0184-P-1000 | D78: 2020-11-20 | E78: 10700000 | F78: UZ | G78: 202103 | H78: -39.35 | I78: 0.001645 | J78: 0.00356083 | K78: 03 | L78: 2021 | M78: 03/2021 | N78: 2020-11-30
A79: 1010 | B79: 70510000 | C79: T10-0184-P-1000 | D79: 2020-11-20 | E79: 10700000 | F79: UZ | G79: 202007 | H79: 245.49 | I79: 0.001645 | J79: 0.00356083 | K79: 07 | L79: 2020 | M79: 07/2020 | N79: 2020-11-30
A80: 1010 | B80: 70510000 | C80: T10-0184-P-1000 | D80: 2020-11-20 | E80: 10700000 | F80: UZ | G80: 202008 | H80: 247.94 | I80: 0.001645 | J80: 0.00356083 | K80: 08 | L80: 2020 | M80: 08/2020 | N80: 2020-11-30
A81: 1010 | B81: 70510000 | C81: T10-0184-P-1000 | D81: 2020-11-20 | E81: 10700000 | F81: UZ | G81: 202009 | H81: 255.55 | I81: 0.001645 | J81: 0.00356083 | K81: 09 | L81: 2020 | M81: 09/2020 | N81: 2020-11-30
A82: 1010 | B82: 70510000 | C82: T10-0184-P-1000 | D82: 2020-11-20 | E82: 10700000 | F82: UZ | G82: 202010 | H82: 259.21 | I82: 0.001645 | J82: 0.00356083 | K82: 10 | L82: 2020 | M82: 10/2020 | N82: 2020-11-30
A83: 1010 | B83: 70510000 | C83: T10-0184-P-1000 | D83: 2020-11-20 | E83: 10700000 | F83: UZ | G83: 202011 | H83: 152 | I83: 0.001645 | J83: 0.00356083 | K83: 11 | L83: 2020 | M83: 11/2020 | N83: 2020-11-30
A84: 1010 | B84: 85000000 | C84: T10-0184-P-1000 | D84: 2020-11-20 | E84: 10700000 | F84: UZ | G84: 202007 | H84: 113.41 | I84: 0.001645 | J84: 0.00356083 | K84: 07 | L84: 2020 | M84: 07/2020 | N84: 2020-11-30
A85: 1010 | B85: 85000000 | C85: T10-0184-P-1000 | D85: 2020-11-20 | E85: 10700000 | F85: UZ | G85: 202008 | H85: 114.54 | I85: 0.001645 | J85: 0.00356083 | K85: 08 | L85: 2020 | M85: 08/2020 | N85: 2020-11-30
A86: 1010 | B86: 85000000 | C86: T10-0184-P-1000 | D86: 2020-11-20 | E86: 10700000 | F86: UZ | G86: 202009 | H86: 118.06 | I86: 0.001645 | J86: 0.00356083 | K86: 09 | L86: 2020 | M86: 09/2020 | N86: 2020-11-30
A87: 1010 | B87: 85000000 | C87: T10-0184-P-1000 | D87: 2020-11-20 | E87: 10700000 | F87: UZ | G87: 202010 | H87: 119.75 | I87: 0.001645 | J87: 0.00356083 | K87: 10 | L87: 2020 | M87: 10/2020 | N87: 2020-11-30
A88: 1010 | B88: 85000000 | C88: T10-0184-P-1000 | D88: 2020-11-20 | E88: 10700000 | F88: UZ | G88: 202011 | H88: 70.22 | I88: 0.001645 | J88: 0.00356083 | K88: 11 | L88: 2020 | M88: 11/2020 | N88: 2020-11-30

Sheet CR CWIP query 032021 ISD (hidden)
A1: Company | B1: Cost Element | C1: Work Order Number | D1: In Service Dates | E1: Account | F1: Document Type | G1: Month Number | H1: Amount | I1: AFUDC Debt Rate | J1: AFUDC Equity Rate | K1: month | L1: year | M1: Date | N1: 1st month PIS AFUDC
A2: 1010 | B2: 53481000 | C2: R10-01K3.19-P-4031 | D2: 2021-03-01 | E2: 10700000 | F2: UZ | G2: 201909 | H2: 28.98 | I2: 0.001645 | J2: 0.00356083 | K2: =RIGHT(G2,2) -> 09 | L2: =LEFT(G2,4) -> 2019 | M2: =_xlfn.CONCAT(K2,"/",L2) -> 09/2019 | N2: =EOMONTH(D2,0) -> 2021-03-31
A3: 1010 | B3: 53481000 | C3: R10-01K3.19-P-4031 | D3: 2021-03-01 | E3: 10700000 | F3: UZ | G3: 201910 | H3: -10.87 | I3: 0.001645 | J3: 0.00356083 | K3: =RIGHT(G3,2) -> 10 | L3: =LEFT(G3,4) -> 2019 | M3: =_xlfn.CONCAT(K3,"/",L3) -> 10/2019 | N3: =EOMONTH(D3,0) -> 2021-03-31
A4: 1010 | B4: 53481000 | C4: R10-01K3.19-P-4031 | D4: 2021-03-01 | E4: 10700000 | F4: UZ | G4: 201911 | H4: 337.54 | I4: 0.001645 | J4: 0.00356083 | K4: 11 | L4: 2019 | M4: 11/2019 | N4: 2021-03-31
A5: 1010 | B5: 53481000 | C5: R10-01K3.19-P-4031 | D5: 2021-03-01 | E5: 10700000 | F5: UZ | G5: 201912 | H5: 39.67 | I5: 0.001645 | J5: 0.00356083 | K5: 12 | L5: 2019 | M5: 12/2019 | N5: 2021-03-31
A6: 1010 | B6: 53481000 | C6: R10-01K3.19-P-4031 | D6: 2021-03-01 | E6: 10700000 | F6: UZ | G6: 202001 | H6: 840.95 | I6: 0.001645 | J6: 0.00356083 | K6: 01 | L6: 2020 | M6: 01/2020 | N6: 2021-03-31
A7: 1010 | B7: 53481000 | C7: R10-01K3.19-P-4031 | D7: 2021-03-01 | E7: 10700000 | F7: UZ | G7: 202002 | H7: 467.31 | I7: 0.001645 | J7: 0.00356083 | K7: 02 | L7: 2020 | M7: 02/2020 | N7: 2021-03-31
A8: 1010 | B8: 53481000 | C8: R10-01K3.19-P-4031 | D8: 2021-03-01 | E8: 10700000 | F8: UZ | G8: 202003 | H8: 1452.08 | I8: 0.001645 | J8: 0.00356083 | K8: 03 | L8: 2020 | M8: 03/2020 | N8: 2021-03-31
A9: 1010 | B9: 53481000 | C9: R10-01K3.19-P-4031 | D9: 2021-03-01 | E9: 10700000 | F9: UZ | G9: 202004 | H9: 511.73 | I9: 0.001645 | J9: 0.00356083 | K9: 04 | L9: 2020 | M9: 04/2020 | N9: 2021-03-31
A10: 1010 | B10: 53481000 | C10: R10-01K3.19-P-4031 | D10: 2021-03-01 | E10: 10700000 | F10: UZ | G10: 202005 | H10: 871.4 | I10: 0.001645 | J10: 0.00356083 | K10: 05 | L10: 2020 | M10: 05/2020 | N10: 2021-03-31
A11: 1010 | B11: 53481000 | C11: R10-01K3.19-P-4031 | D11: 2021-03-01 | E11: 10700000 | F11: UZ | G11: 202006 | H11: 699.92 | I11: 0.001645 | J11: 0.00356083 | K11: 06 | L11: 2020 | M11: 06/2020 | N11: 2021-03-31
A12: 1010 | B12: 53481000 | C12: R10-01K3.19-P-4031 | D12: 2021-03-01 | E12: 10700000 | F12: UZ | G12: 202007 | H12: 748.83 | I12: 0.001645 | J12: 0.00356083 | K12: 07 | L12: 2020 | M12: 07/2020 | N12: 2021-03-31
A13: 1010 | B13: 53481000 | C13: R10-01K3.19-P-4031 | D13: 2021-03-01 | E13: 10700000 | F13: UZ | G13: 202008 | H13: 1637.95 | I13: 0.001645 | J13: 0.00356083 | K13: 08 | L13: 2020 | M13: 08/2020 | N13: 2021-03-31
A14: 1010 | B14: 53481000 | C14: R10-01K3.19-P-4031 | D14: 2021-03-01 | E14: 10700000 | F14: UZ | G14: 202009 | H14: 1084.29 | I14: 0.001645 | J14: 0.00356083 | K14: 09 | L14: 2020 | M14: 09/2020 | N14: 2021-03-31
A15: 1010 | B15: 53481000 | C15: R10-01K3.19-P-4031 | D15: 2021-03-01 | E15: 10700000 | F15: UZ | G15: 202010 | H15: 669.66 | I15: 0.001645 | J15: 0.00356083 | K15: 10 | L15: 2020 | M15: 10/2020 | N15: 2021-03-31
A16: 1010 | B16: 53481000 | C16: R10-01K3.19-P-4031 | D16: 2021-03-01 | E16: 10700000 | F16: UZ | G16: 202011 | H16: 1315.04 | I16: 0.001645 | J16: 0.00356083 | K16: 11 | L16: 2020 | M16: 11/2020 | N16: 2021-03-31
A17: 1010 | B17: 53481000 | C17: R10-01K3.19-P-4031 | D17: 2021-03-01 | E17: 10700000 | F17: UZ | G17: 202012 | H17: 781.98 | I17: 0.001645 | J17: 0.00356083 | K17: 12 | L17: 2020 | M17: 12/2020 | N17: 2021-03-31
A18: 1010 | B18: 53481000 | C18: R10-01K3.19-P-4031 | D18: 2021-03-01 | E18: 10700000 | F18: UZ | G18: 202101 | H18: -35.94 | I18: 0.001645 | J18: 0.00356083 | K18: 01 | L18: 2021 | M18: 01/2021 | N18: 2021-03-31
A19: 1010 | B19: 53481000 | C19: R10-01K3.19-P-4031 | D19: 2021-03-01 | E19: 10700000 | F19: UZ | G19: 202102 | H19: 222.46 | I19: 0.001645 | J19: 0.00356083 | K19: 02 | L19: 2021 | M19: 02/2021 | N19: 2021-03-31
A20: 1010 | B20: 53481000 | C20: R10-01K3.19-P-4031 | D20: 2021-03-01 | E20: 10700000 | F20: UZ | G20: 202103 | H20: 653.23 | I20: 0.001645 | J20: 0.00356083 | K20: 03 | L20: 2021 | M20: 03/2021 | N20: 2021-03-31
A21: 1010 | B21: 53481100 | C21: R10-01K3.19-P-4031 | D21: 2021-03-01 | E21: 10700000 | F21: UZ | G21: 201911 | H21: 5.14 | I21: 0.001645 | J21: 0.00356083 | K21: 11 | L21: 2019 | M21: 11/2019 | N21: 2021-03-31
A22: 1010 | B22: 53481100 | C22: R10-01K3.19-P-4031 | D22: 2021-03-01 | E22: 10700000 | F22: UZ | G22: 201912 | H22: 1.67 | I22: 0.001645 | J22: 0.00356083 | K22: 12 | L22: 2019 | M22: 12/2019 | N22: 2021-03-31
A23: 1010 | B23: 53481100 | C23: R10-01K3.19-P-4031 | D23: 2021-03-01 | E23: 10700000 | F23: UZ | G23: 202001 | H23: 27.7 | I23: 0.001645 | J23: 0.00356083 | K23: 01 | L23: 2020 | M23: 01/2020 | N23: 2021-03-31
A24: 1010 | B24: 53481100 | C24: R10-01K3.19-P-4031 | D24: 2021-03-01 | E24: 10700000 | F24: UZ | G24: 202002 | H24: 14.78 | I24: 0.001645 | J24: 0.00356083 | K24: 02 | L24: 2020 | M24: 02/2020 | N24: 2021-03-31
A25: 1010 | B25: 53481100 | C25: R10-01K3.19-P-4031 | D25: 2021-03-01 | E25: 10700000 | F25: UZ | G25: 202003 | H25: 33.49 | I25: 0.001645 | J25: 0.00356083 | K25: 03 | L25: 2020 | M25: 03/2020 | N25: 2021-03-31
A26: 1010 | B26: 53481100 | C26: R10-01K3.19-P-4031 | D26: 2021-03-01 | E26: 10700000 | F26: UZ | G26: 202004 | H26: 12.52 | I26: 0.001645 | J26: 0.00356083 | K26: 04 | L26: 2020 | M26: 04/2020 | N26: 2021-03-31
A27: 1010 | B27: 53481100 | C27: R10-01K3.19-P-4031 | D27: 2021-03-01 | E27: 10700000 | F27: UZ | G27: 202005 | H27: 20.28 | I27: 0.001645 | J27: 0.00356083 | K27: 05 | L27: 2020 | M27: 05/2020 | N27: 2021-03-31
A28: 1010 | B28: 53481100 | C28: R10-01K3.19-P-4031 | D28: 2021-03-01 | E28: 10700000 | F28: UZ | G28: 202006 | H28: -21.77 | I28: 0.001645 | J28: 0.00356083 | K28: 06 | L28: 2020 | M28: 06/2020 | N28: 2021-03-31
A29: 1010 | B29: 53481100 | C29: R10-01K3.19-P-4031 | D29: 2021-03-01 | E29: 10700000 | F29: UZ | G29: 202007 | H29: 7.62 | I29: 0.001645 | J29: 0.00356083 | K29: 07 | L29: 2020 | M29: 07/2020 | N29: 2021-03-31
A30: 1010 | B30: 53481100 | C30: R10-01K3.19-P-4031 | D30: 2021-03-01 | E30: 10700000 | F30: UZ | G30: 202008 | H30: 17.8 | I30: 0.001645 | J30: 0.00356083 | K30: 08 | L30: 2020 | M30: 08/2020 | N30: 2021-03-31
A31: 1010 | B31: 53481100 | C31: R10-01K3.19-P-4031 | D31: 2021-03-01 | E31: 10700000 | F31: UZ | G31: 202009 | H31: 11.44 | I31: 0.001645 | J31: 0.00356083 | K31: 09 | L31: 2020 | M31: 09/2020 | N31: 2021-03-31
A32: 1010 | B32: 53481100 | C32: R10-01K3.19-P-4031 | D32: 2021-03-01 | E32: 10700000 | F32: UZ | G32: 202010 | H32: 6.82 | I32: 0.001645 | J32: 0.00356083 | K32: 10 | L32: 2020 | M32: 10/2020 | N32: 2021-03-31
A33: 1010 | B33: 53481100 | C33: R10-01K3.19-P-4031 | D33: 2021-03-01 | E33: 10700000 | F33: UZ | G33: 202011 | H33: 15.22 | I33: 0.001645 | J33: 0.00356083 | K33: 11 | L33: 2020 | M33: 11/2020 | N33: 2021-03-31
A34: 1010 | B34: 53481100 | C34: R10-01K3.19-P-4031 | D34: 2021-03-01 | E34: 10700000 | F34: UZ | G34: 202012 | H34: 8.59 | I34: 0.001645 | J34: 0.00356083 | K34: =RIGHT(G34,2) -> 12 | L34: =LEFT(G34,4) -> 2020 | M34: =_xlfn.CONCAT(K34,"/",L34) -> 12/2020 | N34: =EOMONTH(D34,0) -> 2021-03-31
A35: 1010 | B35: 53481100 | C35: R10-01K3.19-P-4031 | D35: 2021-03-01 | E35: 10700000 | F35: UZ | G35: 202102 | H35: 2.98 | I35: 0.001645 | J35: 0.00356083 | K35: 02 | L35: 2021 | M35: 02/2021 | N35: 2021-03-31
A36: 1010 | B36: 53481100 | C36: R10-01K3.19-P-4031 | D36: 2021-03-01 | E36: 10700000 | F36: UZ | G36: 202103 | H36: 9.7 | I36: 0.001645 | J36: 0.00356083 | K36: 03 | L36: 2021 | M36: 03/2021 | N36: 2021-03-31
A37: 1010 | B37: 53481200 | C37: R10-01K3.19-P-4031 | D37: 2021-03-01 | E37: 10700000 | F37: UZ | G37: 201909 | H37: 4.25 | I37: 0.001645 | J37: 0.00356083 | K37: 09 | L37: 2019 | M37: 09/2019 | N37: 2021-03-31
A38: 1010 | B38: 53481200 | C38: R10-01K3.19-P-4031 | D38: 2021-03-01 | E38: 10700000 | F38: UZ | G38: 201910 | H38: -1.59 | I38: 0.001645 | J38: 0.00356083 | K38: 10 | L38: 2019 | M38: 10/2019 | N38: 2021-03-31
A39: 1010 | B39: 53481200 | C39: R10-01K3.19-P-4031 | D39: 2021-03-01 | E39: 10700000 | F39: UZ | G39: 201911 | H39: 48.66 | I39: 0.001645 | J39: 0.00356083 | K39: 11 | L39: 2019 | M39: 11/2019 | N39: 2021-03-31
A40: 1010 | B40: 53481200 | C40: R10-01K3.19-P-4031 | D40: 2021-03-01 | E40: 10700000 | F40: UZ | G40: 201912 | H40: 4.57 | I40: 0.001645 | J40: 0.00356083 | K40: 12 | L40: 2019 | M40: 12/2019 | N40: 2021-03-31
A41: 1010 | B41: 53481200 | C41: R10-01K3.19-P-4031 | D41: 2021-03-01 | E41: 10700000 | F41: UZ | G41: 202001 | H41: 138.94 | I41: 0.001645 | J41: 0.00356083 | K41: 01 | L41: 2020 | M41: 01/2020 | N41: 2021-03-31
A42: 1010 | B42: 53481200 | C42: R10-01K3.19-P-4031 | D42: 2021-03-01 | E42: 10700000 | F42: UZ | G42: 202002 | H42: 78.35 | I42: 0.001645 | J42: 0.00356083 | K42: 02 | L42: 2020 | M42: 02/2020 | N42: 2021-03-31
A43: 1010 | B43: 53481200 | C43: R10-01K3.19-P-4031 | D43: 2021-03-01 | E43: 10700000 | F43: UZ | G43: 202003 | H43: 270.82 | I43: 0.001645 | J43: 0.00356083 | K43: 03 | L43: 2020 | M43: 03/2020 | N43: 2021-03-31
A44: 1010 | B44: 53481200 | C44: R10-01K3.19-P-4031 | D44: 2021-03-01 | E44: 10700000 | F44: UZ | G44: 202004 | H44: 72.61 | I44: 0.001645 | J44: 0.00356083 | K44: 04 | L44: 2020 | M44: 04/2020 | N44: 2021-03-31
A45: 1010 | B45: 53481200 | C45: R10-01K3.19-P-4031 | D45: 2021-03-01 | E45: 10700000 | F45: UZ | G45: 202005 | H45: 141.34 | I45: 0.001645 | J45: 0.00356083 | K45: 05 | L45: 2020 | M45: 05/2020 | N45: 2021-03-31
A46: 1010 | B46: 53481200 | C46: R10-01K3.19-P-4031 | D46: 2021-03-01 | E46: 10700000 | F46: UZ | G46: 202006 | H46: 108.3 | I46: 0.001645 | J46: 0.00356083 | K46: 06 | L46: 2020 | M46: 06/2020 | N46: 2021-03-31
A47: 1010 | B47: 53481200 | C47: R10-01K3.19-P-4031 | D47: 2021-03-01 | E47: 10700000 | F47: UZ | G47: 202007 | H47: 140.18 | I47: 0.001645 | J47: 0.00356083 | K47: 07 | L47: 2020 | M47: 07/2020 | N47: 2021-03-31
A48: 1010 | B48: 53481200 | C48: R10-01K3.19-P-4031 | D48: 2021-03-01 | E48: 10700000 | F48: UZ | G48: 202008 | H48: 320.25 | I48: 0.001645 | J48: 0.00356083 | K48: 08 | L48: 2020 | M48: 08/2020 | N48: 2021-03-31
A49: 1010 | B49: 53481200 | C49: R10-01K3.19-P-4031 | D49: 2021-03-01 | E49: 10700000 | F49: UZ | G49: 202009 | H49: 116.25 | I49: 0.001645 | J49: 0.00356083 | K49: 09 | L49: 2020 | M49: 09/2020 | N49: 2021-03-31
A50: 1010 | B50: 53481200 | C50: R10-01K3.19-P-4031 | D50: 2021-03-01 | E50: 10700000 | F50: UZ | G50: 202010 | H50: 134.98 | I50: 0.001645 | J50: 0.00356083 | K50: 10 | L50: 2020 | M50: 10/2020 | N50: 2021-03-31
A51: 1010 | B51: 53481200 | C51: R10-01K3.19-P-4031 | D51: 2021-03-01 | E51: 10700000 | F51: UZ | G51: 202011 | H51: 283.98 | I51: 0.001645 | J51: 0.00356083 | K51: 11 | L51: 2020 | M51: 11/2020 | N51: 2021-03-31
A52: 1010 | B52: 53481200 | C52: R10-01K3.19-P-4031 | D52: 2021-03-01 | E52: 10700000 | F52: UZ | G52: 202012 | H52: 91.6 | I52: 0.001645 | J52: 0.00356083 | K52: 12 | L52: 2020 | M52: 12/2020 | N52: 2021-03-31
A53: 1010 | B53: 53481200 | C53: R10-01K3.19-P-4031 | D53: 2021-03-01 | E53: 10700000 | F53: UZ | G53: 202101 | H53: -17.22 | I53: 0.001645 | J53: 0.00356083 | K53: 01 | L53: 2021 | M53: 01/2021 | N53: 2021-03-31
A54: 1010 | B54: 53481200 | C54: R10-01K3.19-P-4031 | D54: 2021-03-01 | E54: 10700000 | F54: UZ | G54: 202102 | H54: 37.94 | I54: 0.001645 | J54: 0.00356083 | K54: 02 | L54: 2021 | M54: 02/2021 | N54: 2021-03-31
A55: 1010 | B55: 53481200 | C55: R10-01K3.19-P-4031 | D55: 2021-03-01 | E55: 10700000 | F55: UZ | G55: 202103 | H55: 163.46 | I55: 0.001645 | J55: 0.00356083 | K55: 03 | L55: 2021 | M55: 03/2021 | N55: 2021-03-31
A56: 1010 | B56: 53481300 | C56: R10-01K3.19-P-4031 | D56: 2021-03-01 | E56: 10700000 | F56: UZ | G56: 201909 | H56: 1.52 | I56: 0.001645 | J56: 0.00356083 | K56: 09 | L56: 2019 | M56: 09/2019 | N56: 2021-03-31
A57: 1010 | B57: 53481300 | C57: R10-01K3.19-P-4031 | D57: 2021-03-01 | E57: 10700000 | F57: UZ | G57: 201910 | H57: -0.57 | I57: 0.001645 | J57: 0.00356083 | K57: 10 | L57: 2019 | M57: 10/2019 | N57: 2021-03-31
A58: 1010 | B58: 53481300 | C58: R10-01K3.19-P-4031 | D58: 2021-03-01 | E58: 10700000 | F58: UZ | G58: 201911 | H58: 18.28 | I58: 0.001645 | J58: 0.00356083 | K58: 11 | L58: 2019 | M58: 11/2019 | N58: 2021-03-31
A59: 1010 | B59: 53481300 | C59: R10-01K3.19-P-4031 | D59: 2021-03-01 | E59: 10700000 | F59: UZ | G59: 201912 | H59: 2.86 | I59: 0.001645 | J59: 0.00356083 | K59: 12 | L59: 2019 | M59: 12/2019 | N59: 2021-03-31
A60: 1010 | B60: 53481300 | C60: R10-01K3.19-P-4031 | D60: 2021-03-01 | E60: 10700000 | F60: UZ | G60: 202001 | H60: 47.46 | I60: 0.001645 | J60: 0.00356083 | K60: 01 | L60: 2020 | M60: 01/2020 | N60: 2021-03-31
A61: 1010 | B61: 53481300 | C61: R10-01K3.19-P-4031 | D61: 2021-03-01 | E61: 10700000 | F61: UZ | G61: 202002 | H61: 25.13 | I61: 0.001645 | J61: 0.00356083 | K61: 02 | L61: 2020 | M61: 02/2020 | N61: 2021-03-31
A62: 1010 | B62: 53481300 | C62: R10-01K3.19-P-4031 | D62: 2021-03-01 | E62: 10700000 | F62: UZ | G62: 202003 | H62: 86.84 | I62: 0.001645 | J62: 0.00356083 | K62: 03 | L62: 2020 | M62: 03/2020 | N62: 2021-03-31
A63: 1010 | B63: 53481300 | C63: R10-01K3.19-P-4031 | D63: 2021-03-01 | E63: 10700000 | F63: UZ | G63: 202004 | H63: 24.54 | I63: 0.001645 | J63: 0.00356083 | K63: 04 | L63: 2020 | M63: 04/2020 | N63: 2021-03-31
A64: 1010 | B64: 53481300 | C64: R10-01K3.19-P-4031 | D64: 2021-03-01 | E64: 10700000 | F64: UZ | G64: 202005 | H64: 46.59 | I64: 0.001645 | J64: 0.00356083 | K64: 05 | L64: 2020 | M64: 05/2020 | N64: 2021-03-31
A65: 1010 | B65: 53481300 | C65: R10-01K3.19-P-4031 | D65: 2021-03-01 | E65: 10700000 | F65: UZ | G65: 202006 | H65: 31.82 | I65: 0.001645 | J65: 0.00356083 | K65: 06 | L65: 2020 | M65: 06/2020 | N65: 2021-03-31
A66: 1010 | B66: 53481300 | C66: R10-01K3.19-P-4031 | D66: 2021-03-01 | E66: 10700000 | F66: UZ | G66: 202007 | H66: 44.98 | I66: 0.001645 | J66: 0.00356083 | K66: 07 | L66: 2020 | M66: 07/2020 | N66: 2021-03-31
A67: 1010 | B67: 53481300 | C67: R10-01K3.19-P-4031 | D67: 2021-03-01 | E67: 10700000 | F67: UZ | G67: 202008 | H67: 102.6 | I67: 0.001645 | J67: 0.00356083 | K67: 08 | L67: 2020 | M67: 08/2020 | N67: 2021-03-31
A68: 1010 | B68: 53481300 | C68: R10-01K3.19-P-4031 | D68: 2021-03-01 | E68: 10700000 | F68: UZ | G68: 202009 | H68: 37.97 | I68: 0.001645 | J68: 0.00356083 | K68: 09 | L68: 2020 | M68: 09/2020 | N68: 2021-03-31
A69: 1010 | B69: 53481300 | C69: R10-01K3.19-P-4031 | D69: 2021-03-01 | E69: 10700000 | F69: UZ | G69: 202010 | H69: 42.99 | I69: 0.001645 | J69: 0.00356083 | K69: 10 | L69: 2020 | M69: 10/2020 | N69: 2021-03-31
A70: 1010 | B70: 53481300 | C70: R10-01K3.19-P-4031 | D70: 2021-03-01 | E70: 10700000 | F70: UZ | G70: 202011 | H70: 89.77 | I70: 0.001645 | J70: 0.00356083 | K70: 11 | L70: 2020 | M70: 11/2020 | N70: 2021-03-31
A71: 1010 | B71: 53481300 | C71: R10-01K3.19-P-4031 | D71: 2021-03-01 | E71: 10700000 | F71: UZ | G71: 202012 | H71: 49.11 | I71: 0.001645 | J71: 0.00356083 | K71: 12 | L71: 2020 | M71: 12/2020 | N71: 2021-03-31
A72: 1010 | B72: 53481300 | C72: R10-01K3.19-P-4031 | D72: 2021-03-01 | E72: 10700000 | F72: UZ | G72: 202101 | H72: -3.3 | I72: 0.001645 | J72: 0.00356083 | K72: 01 | L72: 2021 | M72: 01/2021 | N72: 2021-03-31
A73: 1010 | B73: 53481300 | C73: R10-01K3.19-P-4031 | D73: 2021-03-01 | E73: 10700000 | F73: UZ | G73: 202102 | H73: 12.17 | I73: 0.001645 | J73: 0.00356083 | K73: 02 | L73: 2021 | M73: 02/2021 | N73: 2021-03-31
A74: 1010 | B74: 53481300 | C74: R10-01K3.19-P-4031 | D74: 2021-03-01 | E74: 10700000 | F74: UZ | G74: 202103 | H74: 62.87 | I74: 0.001645 | J74: 0.00356083 | K74: 03 | L74: 2021 | M74: 03/2021 | N74: 2021-03-31
A75: 1010 | B75: 53481400 | C75: R10-01K3.19-P-4031 | D75: 2021-03-01 | E75: 10700000 | F75: UZ | G75: 201911 | H75: 6.8 | I75: 0.001645 | J75: 0.00356083 | K75: 11 | L75: 2019 | M75: 11/2019 | N75: 2021-03-31
A76: 1010 | B76: 53481400 | C76: R10-01K3.19-P-4031 | D76: 2021-03-01 | E76: 10700000 | F76: UZ | G76: 201912 | H76: 17994.32 | I76: 0.001645 | J76: 0.00356083 | K76: 12 | L76: 2019 | M76: 12/2019 | N76: 2021-03-31
A77: 1010 | B77: 53481400 | C77: R10-01K3.19-P-4031 | D77: 2021-03-01 | E77: 10700000 | F77: UZ | G77: 202001 | H77: 25.9 | I77: 0.001645 | J77: 0.00356083 | K77: 01 | L77: 2020 | M77: 01/2020 | N77: 2021-03-31
A78: 1010 | B78: 53481400 | C78: R10-01K3.19-P-4031 | D78: 2021-03-01 | E78: 10700000 | F78: UZ | G78: 202002 | H78: 0.47 | I78: 0.001645 | J78: 0.00356083 | K78: 02 | L78: 2020 | M78: 02/2020 | N78: 2021-03-31
A79: 1010 | B79: 53481400 | C79: R10-01K3.19-P-4031 | D79: 2021-03-01 | E79: 10700000 | F79: UZ | G79: 202003 | H79: 0.09 | I79: 0.001645 | J79: 0.00356083 | K79: 03 | L79: 2020 | M79: 03/2020 | N79: 2021-03-31
A80: 1010 | B80: 53481400 | C80: R10-01K3.19-P-4031 | D80: 2021-03-01 | E80: 10700000 | F80: UZ | G80: 202005 | H80: 1.63 | I80: 0.001645 | J80: 0.00356083 | K80: 05 | L80: 2020 | M80: 05/2020 | N80: 2021-03-31
A81: 1010 | B81: 53481400 | C81: R10-01K3.19-P-4031 | D81: 2021-03-01 | E81: 10700000 | F81: UZ | G81: 202006 | H81: 5078.58 | I81: 0.001645 | J81: 0.00356083 | K81: 06 | L81: 2020 | M81: 06/2020 | N81: 2021-03-31
A82: 1010 | B82: 53481400 | C82: R10-01K3.19-P-4031 | D82: 2021-03-01 | E82: 10700000 | F82: UZ | G82: 202007 | H82: 12545.91 | I82: 0.001645 | J82: 0.00356083 | K82: 07 | L82: 2020 | M82: 07/2020 | N82: 2021-03-31
A83: 1010 | B83: 53481400 | C83: R10-01K3.19-P-4031 | D83: 2021-03-01 | E83: 10700000 | F83: UZ | G83: 202008 | H83: 0.79 | I83: 0.001645 | J83: 0.00356083 | K83: 08 | L83: 2020 | M83: 08/2020 | N83: 2021-03-31
A84: 1010 | B84: 53481400 | C84: R10-01K3.19-P-4031 | D84: 2021-03-01 | E84: 10700000 | F84: UZ | G84: 202009 | H84: -0.79 | I84: 0.001645 | J84: 0.00356083 | K84: 09 | L84: 2020 | M84: 09/2020 | N84: 2021-03-31
A85: 1010 | B85: 53481400 | C85: R10-01K3.19-P-4031 | D85: 2021-03-01 | E85: 10700000 | F85: UZ | G85: 202010 | H85: 9857.3 | I85: 0.001645 | J85: 0.00356083 | K85: 10 | L85: 2020 | M85: 10/2020 | N85: 2021-03-31
A86: 1010 | B86: 53481400 | C86: R10-01K3.19-P-4031 | D86: 2021-03-01 | E86: 10700000 | F86: UZ | G86: 202011 | H86: -0.37 | I86: 0.001645 | J86: 0.00356083 | K86: 11 | L86: 2020 | M86: 11/2020 | N86: 2021-03-31
A87: 1010 | B87: 53481400 | C87: R10-01K3.19-P-4031 | D87: 2021-03-01 | E87: 10700000 | F87: UZ | G87: 202012 | H87: 14915.14 | I87: 0.001645 | J87: 0.00356083 | K87: 12 | L87: 2020 | M87: 12/2020 | N87: 2021-03-31
A88: 1010 | B88: 53481400 | C88: R10-01K3.19-P-4031 | D88: 2021-03-01 | E88: 10700000 | F88: UZ | G88: 202102 | H88: -27.13 | I88: 0.001645 | J88: 0.00356083 | K88: 02 | L88: 2021 | M88: 02/2021 | N88: 2021-03-31
A89: 1010 | B89: 53481400 | C89: R10-01K3.19-P-4031 | D89: 2021-03-01 | E89: 10700000 | F89: UZ | G89: 202103 | H89: 8.02 | I89: 0.001645 | J89: 0.00356083 | K89: 03 | L89: 2021 | M89: 03/2021 | N89: 2021-03-31
A90: 1010 | B90: 53481500 | C90: R10-01K3.19-P-4031 | D90: 2021-03-01 | E90: 10700000 | F90: UZ | G90: 201911 | H90: -0.15 | I90: 0.001645 | J90: 0.00356083 | K90: 11 | L90: 2019 | M90: 11/2019 | N90: 2021-03-31
A91: 1010 | B91: 53481500 | C91: R10-01K3.19-P-4031 | D91: 2021-03-01 | E91: 10700000 | F91: UZ | G91: 201912 | H91: -0.02 | I91: 0.001645 | J91: 0.00356083 | K91: 12 | L91: 2019 | M91: 12/2019 | N91: 2021-03-31
A92: 1010 | B92: 53481500 | C92: R10-01K3.19-P-4031 | D92: 2021-03-01 | E92: 10700000 | F92: UZ | G92: 202001 | H92: 0.55 | I92: 0.001645 | J92: 0.00356083 | K92: 01 | L92: 2020 | M92: 01/2020 | N92: 2021-03-31
A93: 1010 | B93: 53481500 | C93: R10-01K3.19-P-4031 | D93: 2021-03-01 | E93: 10700000 | F93: UZ | G93: 202003 | H93: 0.36 | I93: 0.001645 | J93: 0.00356083 | K93: 03 | L93: 2020 | M93: 03/2020 | N93: 2021-03-31
A94: 1010 | B94: 53481500 | C94: R10-01K3.19-P-4031 | D94: 2021-03-01 | E94: 10700000 | F94: UZ | G94: 202103 | H94: 0.06 | I94: 0.001645 | J94: 0.00356083 | K94: 03 | L94: 2021 | M94: 03/2021 | N94: 2021-03-31
A95: 1010 | B95: 53481700 | C95: R10-01K3.19-P-4031 | D95: 2021-03-01 | E95: 10700000 | F95: UZ | G95: 201911 | H95: 12.81 | I95: 0.001645 | J95: 0.00356083 | K95: 11 | L95: 2019 | M95: 11/2019 | N95: 2021-03-31
A96: 1010 | B96: 53481700 | C96: R10-01K3.19-P-4031 | D96: 2021-03-01 | E96: 10700000 | F96: UZ | G96: 201912 | H96: 4.18 | I96: 0.001645 | J96: 0.00356083 | K96: 12 | L96: 2019 | M96: 12/2019 | N96: 2021-03-31
A97: 1010 | B97: 53481700 | C97: R10-01K3.19-P-4031 | D97: 2021-03-01 | E97: 10700000 | F97: UZ | G97: 202001 | H97: 49.35 | I97: 0.001645 | J97: 0.00356083 | K97: 01 | L97: 2020 | M97: 01/2020 | N97: 2021-03-31
A98: 1010 | B98: 53481700 | C98: R10-01K3.19-P-4031 | D98: 2021-03-01 | E98: 10700000 | F98: UZ | G98: 202002 | H98: 0.45 | I98: 0.001645 | J98: 0.00356083 | K98: =RIGHT(G98,2) -> 02 | L98: =LEFT(G98,4) -> 2020 | M98: =_xlfn.CONCAT(K98,"/",L98) -> 02/2020 | N98: =EOMONTH(D98,0) -> 2021-03-31
A99: 1010 | B99: 53481700 | C99: R10-01K3.19-P-4031 | D99: 2021-03-01 | E99: 10700000 | F99: UZ | G99: 202003 | H99: 1.02 | I99: 0.001645 | J99: 0.00356083 | K99: 03 | L99: 2020 | M99: 03/2020 | N99: 2021-03-31
A100: 1010 | B100: 53481700 | C100: R10-01K3.19-P-4031 | D100: 2021-03-01 | E100: 10700000 | F100: UZ | G100: 202004 | H100: 0.38 | I100: 0.001645 | J100: 0.00356083 | K100: 04 | L100: 2020 | M100: 04/2020 | N100: 2021-03-31
A101: 1010 | B101: 53481700 | C101: R10-01K3.19-P-4031 | D101: 2021-03-01 | E101: 10700000 | F101: UZ | G101: 202005 | H101: 0.62 | I101: 0.001645 | J101: 0.00356083 | K101: 05 | L101: 2020 | M101: 05/2020 | N101: 2021-03-31
A102: 1010 | B102: 53481700 | C102: R10-01K3.19-P-4031 | D102: 2021-03-01 | E102: 10700000 | F102: UZ | G102: 202006 | H102: 0.3 | I102: 0.001645 | J102: 0.00356083 | K102: 06 | L102: 2020 | M102: 06/2020 | N102: 2021-03-31
A103: 1010 | B103: 53481700 | C103: R10-01K3.19-P-4031 | D103: 2021-03-01 | E103: 10700000 | F103: UZ | G103: 202007 | H103: 0.5 | I103: 0.001645 | J103: 0.00356083 | K103: 07 | L103: 2020 | M103: 07/2020 | N103: 2021-03-31
A104: 1010 | B104: 53481700 | C104: R10-01K3.19-P-4031 | D104: 2021-03-01 | E104: 10700000 | F104: UZ | G104: 202008 | H104: 1.16 | I104: 0.001645 | J104: 0.00356083 | K104: 08 | L104: 2020 | M104: 08/2020 | N104: 2021-03-31
A105: 1010 | B105: 53481700 | C105: R10-01K3.19-P-4031 | D105: 2021-03-01 | E105: 10700000 | F105: UZ | G105: 202009 | H105: 0.75 | I105: 0.001645 | J105: 0.00356083 | K105: 09 | L105: 2020 | M105: 09/2020 | N105: 2021-03-31
A106: 1010 | B106: 53481700 | C106: R10-01K3.19-P-4031 | D106: 2021-03-01 | E106: 10700000 | F106: UZ | G106: 202010 | H106: 0.44 | I106: 0.001645 | J106: 0.00356083 | K106: 10 | L106: 2020 | M106: 10/2020 | N106: 2021-03-31
A107: 1010 | B107: 53481700 | C107: R10-01K3.19-P-4031 | D107: 2021-03-01 | E107: 10700000 | F107: UZ | G107: 202011 | H107: -8.09 | I107: 0.001645 | J107: 0.00356083 | K107: 11 | L107: 2020 | M107: 11/2020 | N107: 2021-03-31
A108: 1010 | B108: 53481700 | C108: R10-01K3.19-P-4031 | D108: 2021-03-01 | E108: 10700000 | F108: UZ | G108: 202012 | H108: 0.09 | I108: 0.001645 | J108: 0.00356083 | K108: 12 | L108: 2020 | M108: 12/2020 | N108: 2021-03-31
A109: 1010 | B109: 53481700 | C109: R10-01K3.19-P-4031 | D109: 2021-03-01 | E109: 10700000 | F109: UZ | G109: 202102 | H109: 0.03 | I109: 0.001645 | J109: 0.00356083 | K109: 02 | L109: 2021 | M109: 02/2021 | N109: 2021-03-31
A110: 1010 | B110: 53481700 | C110: R10-01K3.19-P-4031 | D110: 2021-03-01 | E110: 10700000 | F110: UZ | G110: 202103 | H110: 0.09 | I110: 0.001645 | J110: 0.00356083 | K110: 03 | L110: 2021 | M110: 03/2021 | N110: 2021-03-31
A111: 1010 | B111: 53481900 | C111: R10-01K3.19-P-4031 | D111: 2021-03-01 | E111: 10700000 | F111: UZ | G111: 201908 | H111: 82320.62 | I111: 0.001645 | J111: 0.00356083 | K111: 08 | L111: 2019 | M111: 08/2019 | N111: 2021-03-31
A112: 1010 | B112: 53481900 | C112: R10-01K3.19-P-4031 | D112: 2021-03-01 | E112: 10700000 | F112: UZ | G112: 202001 | H112: 0.06 | I112: 0.001645 | J112: 0.00356083 | K112: 01 | L112: 2020 | M112: 01/2020 | N112: 2021-03-31
A113: 1010 | B113: 53481900 | C113: R10-01K3.19-P-4031 | D113: 2021-03-01 | E113: 10700000 | F113: UZ | G113: 202002 | H113: 0.25 | I113: 0.001645 | J113: 0.00356083 | K113: 02 | L113: 2020 | M113: 02/2020 | N113: 2021-03-31
A114: 1010 | B114: 53481900 | C114: R10-01K3.19-P-4031 | D114: 2021-03-01 | E114: 10700000 | F114: UZ | G114: 202003 | H114: 0.57 | I114: 0.001645 | J114: 0.00356083 | K114: 03 | L114: 2020 | M114: 03/2020 | N114: 2021-03-31
A115: 1010 | B115: 53481900 | C115: R10-01K3.19-P-4031 | D115: 2021-03-01 | E115: 10700000 | F115: UZ | G115: 202004 | H115: 0.21 | I115: 0.001645 | J115: 0.00356083 | K115: 04 | L115: 2020 | M115: 04/2020 | N115: 2021-03-31
A116: 1010 | B116: 53481900 | C116: R10-01K3.19-P-4031 | D116: 2021-03-01 | E116: 10700000 | F116: UZ | G116: 202005 | H116: 0.35 | I116: 0.001645 | J116: 0.00356083 | K116: 05 | L116: 2020 | M116: 05/2020 | N116: 2021-03-31
A117: 1010 | B117: 53481900 | C117: R10-01K3.19-P-4031 | D117: 2021-03-01 | E117: 10700000 | F117: UZ | G117: 202006 | H117: 0.17 | I117: 0.001645 | J117: 0.00356083 | K117: 06 | L117: 2020 | M117: 06/2020 | N117: 2021-03-31
A118: 1010 | B118: 53481900 | C118: R10-01K3.19-P-4031 | D118: 2021-03-01 | E118: 10700000 | F118: UZ | G118: 202007 | H118: -4.17 | I118: 0.001645 | J118: 0.00356083 | K118: 07 | L118: 2020 | M118: 07/2020 | N118: 2021-03-31
A119: 1010 | B119: 53481900 | C119: R10-01K3.19-P-4031 | D119: 2021-03-01 | E119: 10700000 | F119: UZ | G119: 202009 | H119: 1.22 | I119: 0.001645 | J119: 0.00356083 | K119: 09 | L119: 2020 | M119: 09/2020 | N119: 2021-03-31
A120: 1010 | B120: 53482100 | C120: R10-01K3.19-P-4031 | D120: 2021-03-01 | E120: 10700000 | F120: UZ | G120: 201911 | H120: 5.46 | I120: 0.001645 | J120: 0.00356083 | K120: 11 | L120: 2019 | M120: 11/2019 | N120: 2021-03-31
A121: 1010 | B121: 53482100 | C121: R10-01K3.19-P-4031 | D121: 2021-03-01 | E121: 10700000 | F121: UZ | G121: 201912 | H121: 1.73 | I121: 0.001645 | J121: 0.00356083 | K121: 12 | L121: 2019 | M121: 12/2019 | N121: 2021-03-31
A122: 1010 | B122: 53482100 | C122: R10-01K3.19-P-4031 | D122: 2021-03-01 | E122: 10700000 | F122: UZ | G122: 202001 | H122: 44.06 | I122: 0.001645 | J122: 0.00356083 | K122: 01 | L122: 2020 | M122: 01/2020 | N122: 2021-03-31
A123: 1010 | B123: 53482100 | C123: R10-01K3.19-P-4031 | D123: 2021-03-01 | E123: 10700000 | F123: UZ | G123: 202002 | H123: 76.61 | I123: 0.001645 | J123: 0.00356083 | K123: 02 | L123: 2020 | M123: 02/2020 | N123: 2021-03-31
A124: 1010 | B124: 53482100 | C124: R10-01K3.19-P-4031 | D124: 2021-03-01 | E124: 10700000 | F124: UZ | G124: 202003 | H124: 257.31 | I124: 0.001645 | J124: 0.00356083 | K124: 03 | L124: 2020 | M124: 03/2020 | N124: 2021-03-31
A125: 1010 | B125: 53482100 | C125: R10-01K3.19-P-4031 | D125: 2021-03-01 | E125: 10700000 | F125: UZ | G125: 202004 | H125: 78.4 | I125: 0.001645 | J125: 0.00356083 | K125: 04 | L125: 2020 | M125: 04/2020 | N125: 2021-03-31
A126: 1010 | B126: 53482100 | C126: R10-01K3.19-P-4031 | D126: 2021-03-01 | E126: 10700000 | F126: UZ | G126: 202005 | H126: 148.62 | I126: 0.001645 | J126: 0.00356083 | K126: 05 | L126: 2020 | M126: 05/2020 | N126: 2021-03-31
A127: 1010 | B127: 53482100 | C127: R10-01K3.19-P-4031 | D127: 2021-03-01 | E127: 10700000 | F127: UZ | G127: 202006 | H127: 65.76 | I127: 0.001645 | J127: 0.00356083 | K127: 06 | L127: 2020 | M127: 06/2020 | N127: 2021-03-31
A128: 1010 | B128: 53482100 | C128: R10-01K3.19-P-4031 | D128: 2021-03-01 | E128: 10700000 | F128: UZ | G128: 202007 | H128: 118.46 | I128: 0.001645 | J128: 0.00356083 | K128: 07 | L128: 2020 | M128: 07/2020 | N128: 2021-03-31
A129: 1010 | B129: 53482100 | C129: R10-01K3.19-P-4031 | D129: 2021-03-01 | E129: 10700000 | F129: UZ | G129: 202008 | H129: 290.72 | I129: 0.001645 | J129: 0.00356083 | K129: 08 | L129: 2020 | M129: 08/2020 | N129: 2021-03-31
A130: 1010 | B130: 53482100 | C130: R10-01K3.19-P-4031 | D130: 2021-03-01 | E130: 10700000 | F130: UZ | G130: 202009 | H130: 133.36 | I130: 0.001645 | J130: 0.00356083 | K130: 09 | L130: 2020 | M130: 09/2020 | N130: 2021-03-31
A131: 1010 | B131: 53482100 | C131: R10-01K3.19-P-4031 | D131: 2021-03-01 | E131: 10700000 | F131: UZ | G131: 202010 | H131: 118.63 | I131: 0.001645 | J131: 0.00356083 | K131: 10 | L131: 2020 | M131: 10/2020 | N131: 2021-03-31
A132: 1010 | B132: 53482100 | C132: R10-01K3.19-P-4031 | D132: 2021-03-01 | E132: 10700000 | F132: UZ | G132: 202011 | H132: 234.8 | I132: 0.001645 | J132: 0.00356083 | K132: 11 | L132: 2020 | M132: 11/2020 | N132: 2021-03-31
A133: 1010 | B133: 53482100 | C133: R10-01K3.19-P-4031 | D133: 2021-03-01 | E133: 10700000 | F133: UZ | G133: 202012 | H133: 116.83 | I133: 0.001645 | J133: 0.00356083 | K133: 12 | L133: 2020 | M133: 12/2020 | N133: 2021-03-31
A134: 1010 | B134: 53482100 | C134: R10-01K3.19-P-4031 | D134: 2021-03-01 | E134: 10700000 | F134: UZ | G134: 202102 | H134: 45.7 | I134: 0.001645 | J134: 0.00356083 | K134: 02 | L134: 2021 | M134: 02/2021 | N134: 2021-03-31
A135: 1010 | B135: 53482100 | C135: R10-01K3.19-P-4031 | D135: 2021-03-01 | E135: 10700000 | F135: UZ | G135: 202103 | H135: 131.02 | I135: 0.001645 | J135: 0.00356083 | K135: 03 | L135: 2021 | M135: 03/2021 | N135: 2021-03-31
A136: 1010 | B136: 53482300 | C136: R10-01K3.19-P-4031 | D136: 2021-03-01 | E136: 10700000 | F136: UZ | G136: 201909 | H136: 2.17 | I136: 0.001645 | J136: 0.00356083 | K136: 09 | L136: 2019 | M136: 09/2019 | N136: 2021-03-31
A137: 1010 | B137: 53482300 | C137: R10-01K3.19-P-4031 | D137: 2021-03-01 | E137: 10700000 | F137: UZ | G137: 201910 | H137: -0.82 | I137: 0.001645 | J137: 0.00356083 | K137: 10 | L137: 2019 | M137: 10/2019 | N137: 2021-03-31
A138: 1010 | B138: 53482300 | C138: R10-01K3.19-P-4031 | D138: 2021-03-01 | E138: 10700000 | F138: UZ | G138: 201911 | H138: 24.77 | I138: 0.001645 | J138: 0.00356083 | K138: 11 | L138: 2019 | M138: 11/2019 | N138: 2021-03-31
A139: 1010 | B139: 53482300 | C139: R10-01K3.19-P-4031 | D139: 2021-03-01 | E139: 10700000 | F139: UZ | G139: 201912 | H139: -1.58 | I139: 0.001645 | J139: 0.00356083 | K139: 12 | L139: 2019 | M139: 12/2019 | N139: 2021-03-31
A140: 1010 | B140: 53482300 | C140: R10-01K3.19-P-4031 | D140: 2021-03-01 | E140: 10700000 | F140: UZ | G140: 202001 | H140: 82.78 | I140: 0.001645 | J140: 0.00356083 | K140: 01 | L140: 2020 | M140: 01/2020 | N140: 2021-03-31
A141: 1010 | B141: 53482300 | C141: R10-01K3.19-P-4031 | D141: 2021-03-01 | E141: 10700000 | F141: UZ | G141: 202002 | H141: 40.54 | I141: 0.001645 | J141: 0.00356083 | K141: 02 | L141: 2020 | M141: 02/2020 | N141: 2021-03-31
A142: 1010 | B142: 53482300 | C142: R10-01K3.19-P-4031 | D142: 2021-03-01 | E142: 10700000 | F142: UZ | G142: 202003 | H142: 109.43 | I142: 0.001645 | J142: 0.00356083 | K142: 03 | L142: 2020 | M142: 03/2020 | N142: 2021-03-31
A143: 1010 | B143: 53482300 | C143: R10-01K3.19-P-4031 | D143: 2021-03-01 | E143: 10700000 | F143: UZ | G143: 202004 | H143: 38.43 | I143: 0.001645 | J143: 0.00356083 | K143: 04 | L143: 2020 | M143: 04/2020 | N143: 2021-03-31
A144: 1010 | B144: 53482300 | C144: R10-01K3.19-P-4031 | D144: 2021-03-01 | E144: 10700000 | F144: UZ | G144: 202005 | H144: 65.03 | I144: 0.001645 | J144: 0.00356083 | K144: 05 | L144: 2020 | M144: 05/2020 | N144: 2021-03-31
A145: 1010 | B145: 53482300 | C145: R10-01K3.19-P-4031 | D145: 2021-03-01 | E145: 10700000 | F145: UZ | G145: 202006 | H145: 54.23 | I145: 0.001645 | J145: 0.00356083 | K145: 06 | L145: 2020 | M145: 06/2020 | N145: 2021-03-31
A146: 1010 | B146: 53482300 | C146: R10-01K3.19-P-4031 | D146: 2021-03-01 | E146: 10700000 | F146: UZ | G146: 202007 | H146: 54.32 | I146: 0.001645 | J146: 0.00356083 | K146: 07 | L146: 2020 | M146: 07/2020 | N146: 2021-03-31
A147: 1010 | B147: 53482300 | C147: R10-01K3.19-P-4031 | D147: 2021-03-01 | E147: 10700000 | F147: UZ | G147: 202008 | H147: 120.9 | I147: 0.001645 | J147: 0.00356083 | K147: 08 | L147: 2020 | M147: 08/2020 | N147: 2021-03-31
A148: 1010 | B148: 53482300 | C148: R10-01K3.19-P-4031 | D148: 2021-03-01 | E148: 10700000 | F148: UZ | G148: 202009 | H148: 82.11 | I148: 0.001645 | J148: 0.00356083 | K148: 09 | L148: 2020 | M148: 09/2020 | N148: 2021-03-31
A149: 1010 | B149: 53482300 | C149: R10-01K3.19-P-4031 | D149: 2021-03-01 | E149: 10700000 | F149: UZ | G149: 202010 | H149: 48.72 | I149: 0.001645 | J149: 0.00356083 | K149: 10 | L149: 2020 | M149: 10/2020 | N149: 2021-03-31
A150: 1010 | B150: 53482300 | C150: R10-01K3.19-P-4031 | D150: 2021-03-01 | E150: 10700000 | F150: UZ | G150: 202011 | H150: 96.42 | I150: 0.001645 | J150: 0.00356083 | K150: 11 | L150: 2020 | M150: 11/2020 | N150: 2021-03-31
A151: 1010 | B151: 53482300 | C151: R10-01K3.19-P-4031 | D151: 2021-03-01 | E151: 10700000 | F151: UZ | G151: 202012 | H151: 35.87 | I151: 0.001645 | J151: 0.00356083 | K151: 12 | L151: 2020 | M151: 12/2020 | N151: 2021-03-31
A152: 1010 | B152: 53482300 | C152: R10-01K3.19-P-4031 | D152: 2021-03-01 | E152: 10700000 | F152: UZ | G152: 202101 | H152: 4.2 | I152: 0.001645 | J152: 0.00356083 | K152: 01 | L152: 2021 | M152: 01/2021 | N152: 2021-03-31
A153: 1010 | B153: 53482300 | C153: R10-01K3.19-P-4031 | D153: 2021-03-01 | E153: 10700000 | F153: UZ | G153: 202102 | H153: 19.68 | I153: 0.001645 | J153: 0.00356083 | K153: 02 | L153: 2021 | M153: 02/2021 | N153: 2021-03-31
A154: 1010 | B154: 53482300 | C154: R10-01K3.19-P-4031 | D154: 2021-03-01 | E154: 10700000 | F154: UZ | G154: 202103 | H154: 58.49 | I154: 0.001645 | J154: 0.00356083 | K154: 03 | L154: 2021 | M154: 03/2021 | N154: 2021-03-31
A155: 1010 | B155: 53482400 | C155: R10-01K3.19-P-4031 | D155: 2021-03-01 | E155: 10700000 | F155: UZ | G155: 201911 | H155: -5.89 | I155: 0.001645 | J155: 0.00356083 | K155: 11 | L155: 2019 | M155: 11/2019 | N155: 2021-03-31
A156: 1010 | B156: 53482400 | C156: R10-01K3.19-P-4031 | D156: 2021-03-01 | E156: 10700000 | F156: UZ | G156: 201912 | H156: -2.15 | I156: 0.001645 | J156: 0.00356083 | K156: 12 | L156: 2019 | M156: 12/2019 | N156: 2021-03-31
A157: 1010 | B157: 53482400 | C157: R10-01K3.19-P-4031 | D157: 2021-03-01 | E157: 10700000 | F157: UZ | G157: 202001 | H157: -31.72 | I157: 0.001645 | J157: 0.00356083 | K157: 01 | L157: 2020 | M157: 01/2020 | N157: 2021-03-31
A158: 1010 | B158: 70510000 | C158: R10-01K3.19-P-4031 | D158: 2021-03-01 | E158: 10700000 | F158: UZ | G158: 201909 | H158: 288.26 | I158: 0.001645 | J158: 0.00356083 | K158: 09 | L158: 2019 | M158: 09/2019 | N158: 2021-03-31
A159: 1010 | B159: 70510000 | C159: R10-01K3.19-P-4031 | D159: 2021-03-01 | E159: 10700000 | F159: UZ | G159: 201910 | H159: 289.87 | I159: 0.001645 | J159: 0.00356083 | K159: 10 | L159: 2019 | M159: 10/2019 | N159: 2021-03-31
A160: 1010 | B160: 70510000 | C160: R10-01K3.19-P-4031 | D160: 2021-03-01 | E160: 10700000 | F160: UZ | G160: 201911 | H160: 291.31 | I160: 0.001645 | J160: 0.00356083 | K160: 11 | L160: 2019 | M160: 11/2019 | N160: 2021-03-31
A161: 1010 | B161: 70510000 | C161: R10-01K3.19-P-4031 | D161: 2021-03-01 | E161: 10700000 | F161: UZ | G161: 201912 | H161: 294.4 | I161: 0.001645 | J161: 0.00356083 | K161: 12 | L161: 2019 | M161: 12/2019 | N161: 2021-03-31
A162: 1010 | B162: 70510000 | C162: R10-01K3.19-P-4031 | D162: 2021-03-01 | E162: 10700000 | F162: UZ | G162: 202001 | H162: 359.1 | I162: 0.001645 | J162: 0.00356083 | K162: =RIGHT(G162,2) -> 01 | L162: =LEFT(G162,4) -> 2020 | M162: =_xlfn.CONCAT(K162,"/",L162) -> 01/2020 | N162: =EOMONTH(D162,0) -> 2021-03-31
A163: 1010 | B163: 70510000 | C163: R10-01K3.19-P-4031 | D163: 2021-03-01 | E163: 10700000 | F163: UZ | G163: 202002 | H163: 365.24 | I163: 0.001645 | J163: 0.00356083 | K163: 02 | L163: 2020 | M163: 02/2020 | N163: 2021-03-31
A164: 1010 | B164: 70510000 | C164: R10-01K3.19-P-4031 | D164: 2021-03-01 | E164: 10700000 | F164: UZ | G164: 202003 | H164: 369.58 | I164: 0.001645 | J164: 0.00356083 | K164: 03 | L164: 2020 | M164: 03/2020 | N164: 2021-03-31
A165: 1010 | B165: 70510000 | C165: R10-01K3.19-P-4031 | D165: 2021-03-01 | E165: 10700000 | F165: UZ | G165: 202004 | H165: 379.23 | I165: 0.001645 | J165: 0.00356083 | K165: 04 | L165: 2020 | M165: 04/2020 | N165: 2021-03-31
A166: 1010 | B166: 70510000 | C166: R10-01K3.19-P-4031 | D166: 2021-03-01 | E166: 10700000 | F166: UZ | G166: 202005 | H166: 390.25 | I166: 0.001645 | J166: 0.00356083 | K166: 05 | L166: 2020 | M166: 05/2020 | N166: 2021-03-31
A167: 1010 | B167: 70510000 | C167: R10-01K3.19-P-4031 | D167: 2021-03-01 | E167: 10700000 | F167: UZ | G167: 202006 | H167: 396.9 | I167: 0.001645 | J167: 0.00356083 | K167: 06 | L167: 2020 | M167: 06/2020 | N167: 2021-03-31
A168: 1010 | B168: 70510000 | C168: R10-01K3.19-P-4031 | D168: 2021-03-01 | E168: 10700000 | F168: UZ | G168: 202007 | H168: 420.39 | I168: 0.001645 | J168: 0.00356083 | K168: 07 | L168: 2020 | M168: 07/2020 | N168: 2021-03-31
A169: 1010 | B169: 70510000 | C169: R10-01K3.19-P-4031 | D169: 2021-03-01 | E169: 10700000 | F169: UZ | G169: 202008 | H169: 471.21 | I169: 0.001645 | J169: 0.00356083 | K169: 08 | L169: 2020 | M169: 08/2020 | N169: 2021-03-31
A170: 1010 | B170: 70510000 | C170: R10-01K3.19-P-4031 | D170: 2021-03-01 | E170: 10700000 | F170: UZ | G170: 202009 | H170: 482.53 | I170: 0.001645 | J170: 0.00356083 | K170: 09 | L170: 2020 | M170: 09/2020 | N170: 2021-03-31
A171: 1010 | B171: 70510000 | C171: R10-01K3.19-P-4031 | D171: 2021-03-01 | E171: 10700000 | F171: UZ | G171: 202010 | H171: 490.27 | I171: 0.001645 | J171: 0.00356083 | K171: 10 | L171: 2020 | M171: 10/2020 | N171: 2021-03-31
A172: 1010 | B172: 70510000 | C172: R10-01K3.19-P-4031 | D172: 2021-03-01 | E172: 10700000 | F172: UZ | G172: 202011 | H172: 531.56 | I172: 0.001645 | J172: 0.00356083 | K172: 11 | L172: 2020 | M172: 11/2020 | N172: 2021-03-31
A173: 1010 | B173: 70510000 | C173: R10-01K3.19-P-4031 | D173: 2021-03-01 | E173: 10700000 | F173: UZ | G173: 202012 | H173: 541.54 | I173: 0.001645 | J173: 0.00356083 | K173: 12 | L173: 2020 | M173: 12/2020 | N173: 2021-03-31
A174: 1010 | B174: 70510000 | C174: R10-01K3.19-P-4031 | D174: 2021-03-01 | E174: 10700000 | F174: UZ | G174: 202101 | H174: 601.33 | I174: 0.001645 | J174: 0.00356083 | K174: 01 | L174: 2021 | M174: 01/2021 | N174: 2021-03-31
A175: 1010 | B175: 70510000 | C175: R10-01K3.19-P-4031 | D175: 2021-03-01 | E175: 10700000 | F175: UZ | G175: 202102 | H175: 604.28 | I175: 0.001645 | J175: 0.00356083 | K175: 02 | L175: 2021 | M175: 02/2021 | N175: 2021-03-31
A176: 1010 | B176: 70510000 | C176: R10-01K3.19-P-4031 | D176: 2021-03-01 | E176: 10700000 | F176: UZ | G176: 202103 | H176: 304.27 | I176: 0.001645 | J176: 0.00356083 | K176: 03 | L176: 2021 | M176: 03/2021 | N176: 2021-03-31
A177: 1010 | B177: 85000000 | C177: R10-01K3.19-P-4031 | D177: 2021-03-01 | E177: 10700000 | F177: UZ | G177: 201909 | H177: 135.01 | I177: 0.001645 | J177: 0.00356083 | K177: 09 | L177: 2019 | M177: 09/2019 | N177: 2021-03-31
A178: 1010 | B178: 85000000 | C178: R10-01K3.19-P-4031 | D178: 2021-03-01 | E178: 10700000 | F178: UZ | G178: 201910 | H178: 135.76 | I178: 0.001645 | J178: 0.00356083 | K178: 10 | L178: 2019 | M178: 10/2019 | N178: 2021-03-31
A179: 1010 | B179: 85000000 | C179: R10-01K3.19-P-4031 | D179: 2021-03-01 | E179: 10700000 | F179: UZ | G179: 201911 | H179: 136.44 | I179: 0.001645 | J179: 0.00356083 | K179: 11 | L179: 2019 | M179: 11/2019 | N179: 2021-03-31
A180: 1010 | B180: 85000000 | C180: R10-01K3.19-P-4031 | D180: 2021-03-01 | E180: 10700000 | F180: UZ | G180: 201912 | H180: 137.88 | I180: 0.001645 | J180: 0.00356083 | K180: 12 | L180: 2019 | M180: 12/2019 | N180: 2021-03-31
A181: 1010 | B181: 85000000 | C181: R10-01K3.19-P-4031 | D181: 2021-03-01 | E181: 10700000 | F181: UZ | G181: 202001 | H181: 168.18 | I181: 0.001645 | J181: 0.00356083 | K181: 01 | L181: 2020 | M181: 01/2020 | N181: 2021-03-31
A182: 1010 | B182: 85000000 | C182: R10-01K3.19-P-4031 | D182: 2021-03-01 | E182: 10700000 | F182: UZ | G182: 202002 | H182: 171.06 | I182: 0.001645 | J182: 0.00356083 | K182: 02 | L182: 2020 | M182: 02/2020 | N182: 2021-03-31
A183: 1010 | B183: 85000000 | C183: R10-01K3.19-P-4031 | D183: 2021-03-01 | E183: 10700000 | F183: UZ | G183: 202003 | H183: 173.09 | I183: 0.001645 | J183: 0.00356083 | K183: 03 | L183: 2020 | M183: 03/2020 | N183: 2021-03-31
A184: 1010 | B184: 85000000 | C184: R10-01K3.19-P-4031 | D184: 2021-03-01 | E184: 10700000 | F184: UZ | G184: 202004 | H184: 177.61 | I184: 0.001645 | J184: 0.00356083 | K184: 04 | L184: 2020 | M184: 04/2020 | N184: 2021-03-31
A185: 1010 | B185: 85000000 | C185: R10-01K3.19-P-4031 | D185: 2021-03-01 | E185: 10700000 | F185: UZ | G185: 202005 | H185: 180.28 | I185: 0.001645 | J185: 0.00356083 | K185: 05 | L185: 2020 | M185: 05/2020 | N185: 2021-03-31
A186: 1010 | B186: 85000000 | C186: R10-01K3.19-P-4031 | D186: 2021-03-01 | E186: 10700000 | F186: UZ | G186: 202006 | H186: 183.35 | I186: 0.001645 | J186: 0.00356083 | K186: 06 | L186: 2020 | M186: 06/2020 | N186: 2021-03-31
A187: 1010 | B187: 85000000 | C187: R10-01K3.19-P-4031 | D187: 2021-03-01 | E187: 10700000 | F187: UZ | G187: 202007 | H187: 194.21 | I187: 0.001645 | J187: 0.00356083 | K187: 07 | L187: 2020 | M187: 07/2020 | N187: 2021-03-31
A188: 1010 | B188: 85000000 | C188: R10-01K3.19-P-4031 | D188: 2021-03-01 | E188: 10700000 | F188: UZ | G188: 202008 | H188: 217.68 | I188: 0.001645 | J188: 0.00356083 | K188: 08 | L188: 2020 | M188: 08/2020 | N188: 2021-03-31
A189: 1010 | B189: 85000000 | C189: R10-01K3.19-P-4031 | D189: 2021-03-01 | E189: 10700000 | F189: UZ | G189: 202009 | H189: 222.92 | I189: 0.001645 | J189: 0.00356083 | K189: 09 | L189: 2020 | M189: 09/2020 | N189: 2021-03-31
A190: 1010 | B190: 85000000 | C190: R10-01K3.19-P-4031 | D190: 2021-03-01 | E190: 10700000 | F190: UZ | G190: 202010 | H190: 226.49 | I190: 0.001645 | J190: 0.00356083 | K190: 10 | L190: 2020 | M190: 10/2020 | N190: 2021-03-31
A191: 1010 | B191: 85000000 | C191: R10-01K3.19-P-4031 | D191: 2021-03-01 | E191: 10700000 | F191: UZ | G191: 202011 | H191: 245.57 | I191: 0.001645 | J191: 0.00356083 | K191: 11 | L191: 2020 | M191: 11/2020 | N191: 2021-03-31
A192: 1010 | B192: 85000000 | C192: R10-01K3.19-P-4031 | D192: 2021-03-01 | E192: 10700000 | F192: UZ | G192: 202012 | H192: 250.18 | I192: 0.001645 | J192: 0.00356083 | K192: 12 | L192: 2020 | M192: 12/2020 | N192: 2021-03-31
A193: 1010 | B193: 85000000 | C193: R10-01K3.19-P-4031 | D193: 2021-03-01 | E193: 10700000 | F193: UZ | G193: 202101 | H193: 277.8 | I193: 0.001645 | J193: 0.00356083 | K193: 01 | L193: 2021 | M193: 01/2021 | N193: 2021-03-31
A194: 1010 | B194: 85000000 | C194: R10-01K3.19-P-4031 | D194: 2021-03-01 | E194: 10700000 | F194: UZ | G194: 202102 | H194: 279.16 | I194: 0.001645 | J194: 0.00356083 | K194: 02 | L194: 2021 | M194: 02/2021 | N194: 2021-03-31
A195: 1010 | B195: 85000000 | C195: R10-01K3.19-P-4031 | D195: 2021-03-01 | E195: 10700000 | F195: UZ | G195: 202103 | H195: 140.56 | I195: 0.001645 | J195: 0.00356083 | K195: 03 | L195: 2021 | M195: 03/2021 | N195: 2021-03-31

Sheet CR CWIP query 062021 ISD (hidden)
A1: Company | B1: Cost Element | C1: Work Order Number | D1: In Service Dates | E1: Account | F1: Document Type | G1: Month Number | H1: Amount | I1: AFUDC Debt Rate | J1: AFUDC Equity Rate | K1: month | L1: year | M1: Date | N1: 1st month PIS AFUDC
A2: 1010 | B2: 52801700 | C2: T10-0185-P-1000 | D2: 2021-06-15 | E2: 10700000 | F2: UZ | G2: 202103 | H2: 231.92 | I2: 0.001645 | J2: 0.00356083 | K2: =RIGHT(G2,2) -> 03 | L2: =LEFT(G2,4) -> 2021 | M2: =_xlfn.CONCAT(K2,"/",L2) -> 03/2021 | N2: =EOMONTH(D2,0) -> 2021-06-30
A3: 1010 | B3: 52801700 | C3: T10-0185-P-1000 | D3: 2021-06-15 | E3: 10700000 | F3: UZ | G3: 202104 | H3: 44.73 | I3: 0.001645 | J3: 0.00356083 | K3: =RIGHT(G3,2) -> 04 | L3: =LEFT(G3,4) -> 2021 | M3: =_xlfn.CONCAT(K3,"/",L3) -> 04/2021 | N3: =EOMONTH(D3,0) -> 2021-06-30
A4: 1010 | B4: 52801700 | C4: T10-0185-P-1000 | D4: 2021-06-15 | E4: 10700000 | F4: UZ | G4: 202105 | H4: -3.75 | I4: 0.001645 | J4: 0.00356083 | K4: 05 | L4: 2021 | M4: 05/2021 | N4: 2021-06-30
A5: 1010 | B5: 52801700 | C5: T10-0185-P-1000 | D5: 2021-06-15 | E5: 10700000 | F5: UZ | G5: 202106 | H5: 119.62 | I5: 0.001645 | J5: 0.00356083 | K5: 06 | L5: 2021 | M5: 06/2021 | N5: 2021-06-30
A6: 1010 | B6: 52801700 | C6: T10-0185-P-1000 | D6: 2021-06-15 | E6: 10700000 | F6: UZ | G6: 202107 | H6: 37.72 | I6: 0.001645 | J6: 0.00356083 | K6: 07 | L6: 2021 | M6: 07/2021 | N6: 2021-06-30
A7: 1010 | B7: 52801700 | C7: T10-0185-P-1000 | D7: 2021-06-15 | E7: 10700000 | F7: UZ | G7: 202108 | H7: 6.74 | I7: 0.001645 | J7: 0.00356083 | K7: 08 | L7: 2021 | M7: 08/2021 | N7: 2021-06-30
A8: 1010 | B8: 53150000 | C8: T10-0185-P-1000 | D8: 2021-06-15 | E8: 10700000 | F8: UZ | G8: 202112 | H8: 1389.45 | I8: 0.001645 | J8: 0.00356083 | K8: 12 | L8: 2021 | M8: 12/2021 | N8: 2021-06-30
A9: 1010 | B9: 53481000 | C9: T10-0185-P-1000 | D9: 2021-06-15 | E9: 10700000 | F9: UZ | G9: 202007 | H9: 88.44 | I9: 0.001645 | J9: 0.00356083 | K9: 07 | L9: 2020 | M9: 07/2020 | N9: 2021-06-30
A10: 1010 | B10: 53481000 | C10: T10-0185-P-1000 | D10: 2021-06-15 | E10: 10700000 | F10: UZ | G10: 202009 | H10: 53.06 | I10: 0.001645 | J10: 0.00356083 | K10: 09 | L10: 2020 | M10: 09/2020 | N10: 2021-06-30
A11: 1010 | B11: 53481000 | C11: T10-0185-P-1000 | D11: 2021-06-15 | E11: 10700000 | F11: UZ | G11: 202010 | H11: -23.58 | I11: 0.001645 | J11: 0.00356083 | K11: 10 | L11: 2020 | M11: 10/2020 | N11: 2021-06-30
A12: 1010 | B12: 53481000 | C12: T10-0185-P-1000 | D12: 2021-06-15 | E12: 10700000 | F12: UZ | G12: 202011 | H12: 4.37 | I12: 0.001645 | J12: 0.00356083 | K12: 11 | L12: 2020 | M12: 11/2020 | N12: 2021-06-30
A13: 1010 | B13: 53481000 | C13: T10-0185-P-1000 | D13: 2021-06-15 | E13: 10700000 | F13: UZ | G13: 202012 | H13: 862.82 | I13: 0.001645 | J13: 0.00356083 | K13: 12 | L13: 2020 | M13: 12/2020 | N13: 2021-06-30
A14: 1010 | B14: 53481000 | C14: T10-0185-P-1000 | D14: 2021-06-15 | E14: 10700000 | F14: UZ | G14: 202101 | H14: 206.96 | I14: 0.001645 | J14: 0.00356083 | K14: 01 | L14: 2021 | M14: 01/2021 | N14: 2021-06-30
A15: 1010 | B15: 53481000 | C15: T10-0185-P-1000 | D15: 2021-06-15 | E15: 10700000 | F15: UZ | G15: 202102 | H15: 996.22 | I15: 0.001645 | J15: 0.00356083 | K15: 02 | L15: 2021 | M15: 02/2021 | N15: 2021-06-30
A16: 1010 | B16: 53481000 | C16: T10-0185-P-1000 | D16: 2021-06-15 | E16: 10700000 | F16: UZ | G16: 202103 | H16: 664.86 | I16: 0.001645 | J16: 0.00356083 | K16: 03 | L16: 2021 | M16: 03/2021 | N16: 2021-06-30
A17: 1010 | B17: 53481000 | C17: T10-0185-P-1000 | D17: 2021-06-15 | E17: 10700000 | F17: UZ | G17: 202104 | H17: 609.81 | I17: 0.001645 | J17: 0.00356083 | K17: 04 | L17: 2021 | M17: 04/2021 | N17: 2021-06-30
A18: 1010 | B18: 53481000 | C18: T10-0185-P-1000 | D18: 2021-06-15 | E18: 10700000 | F18: UZ | G18: 202105 | H18: -273.47 | I18: 0.001645 | J18: 0.00356083 | K18: 05 | L18: 2021 | M18: 05/2021 | N18: 2021-06-30
A19: 1010 | B19: 53481000 | C19: T10-0185-P-1000 | D19: 2021-06-15 | E19: 10700000 | F19: UZ | G19: 202106 | H19: 728.71 | I19: 0.001645 | J19: 0.00356083 | K19: 06 | L19: 2021 | M19: 06/2021 | N19: 2021-06-30
A20: 1010 | B20: 53481100 | C20: T10-0185-P-1000 | D20: 2021-06-15 | E20: 10700000 | F20: UZ | G20: 202007 | H20: 0.85 | I20: 0.001645 | J20: 0.00356083 | K20: 07 | L20: 2020 | M20: 07/2020 | N20: 2021-06-30
A21: 1010 | B21: 53481100 | C21: T10-0185-P-1000 | D21: 2021-06-15 | E21: 10700000 | F21: UZ | G21: 202009 | H21: 0.82 | I21: 0.001645 | J21: 0.00356083 | K21: 09 | L21: 2020 | M21: 09/2020 | N21: 2021-06-30
A22: 1010 | B22: 53481100 | C22: T10-0185-P-1000 | D22: 2021-06-15 | E22: 10700000 | F22: UZ | G22: 202012 | H22: 9.55 | I22: 0.001645 | J22: 0.00356083 | K22: 12 | L22: 2020 | M22: 12/2020 | N22: 2021-06-30
A23: 1010 | B23: 53481100 | C23: T10-0185-P-1000 | D23: 2021-06-15 | E23: 10700000 | F23: UZ | G23: 202101 | H23: 2.87 | I23: 0.001645 | J23: 0.00356083 | K23: 01 | L23: 2021 | M23: 01/2021 | N23: 2021-06-30
A24: 1010 | B24: 53481100 | C24: T10-0185-P-1000 | D24: 2021-06-15 | E24: 10700000 | F24: UZ | G24: 202102 | H24: 40.42 | I24: 0.001645 | J24: 0.00356083 | K24: 02 | L24: 2021 | M24: 02/2021 | N24: 2021-06-30
A25: 1010 | B25: 53481100 | C25: T10-0185-P-1000 | D25: 2021-06-15 | E25: 10700000 | F25: UZ | G25: 202103 | H25: 22.85 | I25: 0.001645 | J25: 0.00356083 | K25: 03 | L25: 2021 | M25: 03/2021 | N25: 2021-06-30
A26: 1010 | B26: 53481100 | C26: T10-0185-P-1000 | D26: 2021-06-15 | E26: 10700000 | F26: UZ | G26: 202104 | H26: 20.73 | I26: 0.001645 | J26: 0.00356083 | K26: 04 | L26: 2021 | M26: 04/2021 | N26: 2021-06-30
A27: 1010 | B27: 53481100 | C27: T10-0185-P-1000 | D27: 2021-06-15 | E27: 10700000 | F27: UZ | G27: 202106 | H27: 25.63 | I27: 0.001645 | J27: 0.00356083 | K27: 06 | L27: 2021 | M27: 06/2021 | N27: 2021-06-30
A28: 1010 | B28: 53481200 | C28: T10-0185-P-1000 | D28: 2021-06-15 | E28: 10700000 | F28: UZ | G28: 202007 | H28: 17.73 | I28: 0.001645 | J28: 0.00356083 | K28: 07 | L28: 2020 | M28: 07/2020 | N28: 2021-06-30
A29: 1010 | B29: 53481200 | C29: T10-0185-P-1000 | D29: 2021-06-15 | E29: 10700000 | F29: UZ | G29: 202009 | H29: 6.47 | I29: 0.001645 | J29: 0.00356083 | K29: 09 | L29: 2020 | M29: 09/2020 | N29: 2021-06-30
A30: 1010 | B30: 53481200 | C30: T10-0185-P-1000 | D30: 2021-06-15 | E30: 10700000 | F30: UZ | G30: 202010 | H30: -2.86 | I30: 0.001645 | J30: 0.00356083 | K30: 10 | L30: 2020 | M30: 10/2020 | N30: 2021-06-30
A31: 1010 | B31: 53481200 | C31: T10-0185-P-1000 | D31: 2021-06-15 | E31: 10700000 | F31: UZ | G31: 202011 | H31: 0.39 | I31: 0.001645 | J31: 0.00356083 | K31: 11 | L31: 2020 | M31: 11/2020 | N31: 2021-06-30
A32: 1010 | B32: 53481200 | C32: T10-0185-P-1000 | D32: 2021-06-15 | E32: 10700000 | F32: UZ | G32: 202012 | H32: 180.19 | I32: 0.001645 | J32: 0.00356083 | K32: 12 | L32: 2020 | M32: 12/2020 | N32: 2021-06-30
A33: 1010 | B33: 53481200 | C33: T10-0185-P-1000 | D33: 2021-06-15 | E33: 10700000 | F33: UZ | G33: 202101 | H33: 12.62 | I33: 0.001645 | J33: 0.00356083 | K33: 01 | L33: 2021 | M33: 01/2021 | N33: 2021-06-30
A34: 1010 | B34: 53481200 | C34: T10-0185-P-1000 | D34: 2021-06-15 | E34: 10700000 | F34: UZ | G34: 202102 | H34: 218.21 | I34: 0.001645 | J34: 0.00356083 | K34: 02 | L34: 2021 | M34: 02/2021 | N34: 2021-06-30
A35: 1010 | B35: 53481200 | C35: T10-0185-P-1000 | D35: 2021-06-15 | E35: 10700000 | F35: UZ | G35: 202103 | H35: 143.7 | I35: 0.001645 | J35: 0.00356083 | K35: 03 | L35: 2021 | M35: 03/2021 | N35: 2021-06-30
A36: 1010 | B36: 53481200 | C36: T10-0185-P-1000 | D36: 2021-06-15 | E36: 10700000 | F36: UZ | G36: 202104 | H36: 131.27 | I36: 0.001645 | J36: 0.00356083 | K36: 04 | L36: 2021 | M36: 04/2021 | N36: 2021-06-30
A37: 1010 | B37: 53481200 | C37: T10-0185-P-1000 | D37: 2021-06-15 | E37: 10700000 | F37: UZ | G37: 202105 | H37: -59.38 | I37: 0.001645 | J37: 0.00356083 | K37: 05 | L37: 2021 | M37: 05/2021 | N37: 2021-06-30
A38: 1010 | B38: 53481200 | C38: T10-0185-P-1000 | D38: 2021-06-15 | E38: 10700000 | F38: UZ | G38: 202106 | H38: 154.59 | I38: 0.001645 | J38: 0.00356083 | K38: 06 | L38: 2021 | M38: 06/2021 | N38: 2021-06-30
A39: 1010 | B39: 53481300 | C39: T10-0185-P-1000 | D39: 2021-06-15 | E39: 10700000 | F39: UZ | G39: 202007 | H39: 8.22 | I39: 0.001645 | J39: 0.00356083 | K39: 07 | L39: 2020 | M39: 07/2020 | N39: 2021-06-30
A40: 1010 | B40: 53481300 | C40: T10-0185-P-1000 | D40: 2021-06-15 | E40: 10700000 | F40: UZ | G40: 202009 | H40: 4.98 | I40: 0.001645 | J40: 0.00356083 | K40: 09 | L40: 2020 | M40: 09/2020 | N40: 2021-06-30
A41: 1010 | B41: 53481300 | C41: T10-0185-P-1000 | D41: 2021-06-15 | E41: 10700000 | F41: UZ | G41: 202010 | H41: -2.18 | I41: 0.001645 | J41: 0.00356083 | K41: 10 | L41: 2020 | M41: 10/2020 | N41: 2021-06-30
A42: 1010 | B42: 53481300 | C42: T10-0185-P-1000 | D42: 2021-06-15 | E42: 10700000 | F42: UZ | G42: 202011 | H42: 0.4 | I42: 0.001645 | J42: 0.00356083 | K42: 11 | L42: 2020 | M42: 11/2020 | N42: 2021-06-30
A43: 1010 | B43: 53481300 | C43: T10-0185-P-1000 | D43: 2021-06-15 | E43: 10700000 | F43: UZ | G43: 202012 | H43: 79.54 | I43: 0.001645 | J43: 0.00356083 | K43: 12 | L43: 2020 | M43: 12/2020 | N43: 2021-06-30
A44: 1010 | B44: 53481300 | C44: T10-0185-P-1000 | D44: 2021-06-15 | E44: 10700000 | F44: UZ | G44: 202101 | H44: 19.62 | I44: 0.001645 | J44: 0.00356083 | K44: =RIGHT(G44,2) -> 01 | L44: =LEFT(G44,4) -> 2021 | M44: =_xlfn.CONCAT(K44,"/",L44) -> 01/2021 | N44: =EOMONTH(D44,0) -> 2021-06-30
A45: 1010 | B45: 53481300 | C45: T10-0185-P-1000 | D45: 2021-06-15 | E45: 10700000 | F45: UZ | G45: 202102 | H45: 96.03 | I45: 0.001645 | J45: 0.00356083 | K45: 02 | L45: 2021 | M45: 02/2021 | N45: 2021-06-30
A46: 1010 | B46: 53481300 | C46: T10-0185-P-1000 | D46: 2021-06-15 | E46: 10700000 | F46: UZ | G46: 202103 | H46: 64.06 | I46: 0.001645 | J46: 0.00356083 | K46: 03 | L46: 2021 | M46: 03/2021 | N46: 2021-06-30
A47: 1010 | B47: 53481300 | C47: T10-0185-P-1000 | D47: 2021-06-15 | E47: 10700000 | F47: UZ | G47: 202104 | H47: 58.92 | I47: 0.001645 | J47: 0.00356083 | K47: 04 | L47: 2021 | M47: 04/2021 | N47: 2021-06-30
A48: 1010 | B48: 53481300 | C48: T10-0185-P-1000 | D48: 2021-06-15 | E48: 10700000 | F48: UZ | G48: 202105 | H48: -25.3 | I48: 0.001645 | J48: 0.00356083 | K48: 05 | L48: 2021 | M48: 05/2021 | N48: 2021-06-30
A49: 1010 | B49: 53481300 | C49: T10-0185-P-1000 | D49: 2021-06-15 | E49: 10700000 | F49: UZ | G49: 202106 | H49: 68.57 | I49: 0.001645 | J49: 0.00356083 | K49: 06 | L49: 2021 | M49: 06/2021 | N49: 2021-06-30
A50: 1010 | B50: 53481400 | C50: T10-0185-P-1000 | D50: 2021-06-15 | E50: 10700000 | F50: UZ | G50: 202007 | H50: 0.04 | I50: 0.001645 | J50: 0.00356083 | K50: 07 | L50: 2020 | M50: 07/2020 | N50: 2021-06-30
A51: 1010 | B51: 53481400 | C51: T10-0185-P-1000 | D51: 2021-06-15 | E51: 10700000 | F51: UZ | G51: 202008 | H51: 3274.37 | I51: 0.001645 | J51: 0.00356083 | K51: 08 | L51: 2020 | M51: 08/2020 | N51: 2021-06-30
A52: 1010 | B52: 53481400 | C52: T10-0185-P-1000 | D52: 2021-06-15 | E52: 10700000 | F52: UZ | G52: 202009 | H52: 4282.31 | I52: 0.001645 | J52: 0.00356083 | K52: 09 | L52: 2020 | M52: 09/2020 | N52: 2021-06-30
A53: 1010 | B53: 53481400 | C53: T10-0185-P-1000 | D53: 2021-06-15 | E53: 10700000 | F53: UZ | G53: 202010 | H53: -263.23 | I53: 0.001645 | J53: 0.00356083 | K53: 10 | L53: 2020 | M53: 10/2020 | N53: 2021-06-30
A54: 1010 | B54: 53481400 | C54: T10-0185-P-1000 | D54: 2021-06-15 | E54: 10700000 | F54: UZ | G54: 202011 | H54: 3165.23 | I54: 0.001645 | J54: 0.00356083 | K54: 11 | L54: 2020 | M54: 11/2020 | N54: 2021-06-30
A55: 1010 | B55: 53481400 | C55: T10-0185-P-1000 | D55: 2021-06-15 | E55: 10700000 | F55: UZ | G55: 202012 | H55: 4372.06 | I55: 0.001645 | J55: 0.00356083 | K55: 12 | L55: 2020 | M55: 12/2020 | N55: 2021-06-30
A56: 1010 | B56: 53481400 | C56: T10-0185-P-1000 | D56: 2021-06-15 | E56: 10700000 | F56: UZ | G56: 202101 | H56: 1461.93 | I56: 0.001645 | J56: 0.00356083 | K56: 01 | L56: 2021 | M56: 01/2021 | N56: 2021-06-30
A57: 1010 | B57: 53481400 | C57: T10-0185-P-1000 | D57: 2021-06-15 | E57: 10700000 | F57: UZ | G57: 202102 | H57: -71 | I57: 0.001645 | J57: 0.00356083 | K57: 02 | L57: 2021 | M57: 02/2021 | N57: 2021-06-30
A58: 1010 | B58: 53481400 | C58: T10-0185-P-1000 | D58: 2021-06-15 | E58: 10700000 | F58: UZ | G58: 202103 | H58: 1263.64 | I58: 0.001645 | J58: 0.00356083 | K58: 03 | L58: 2021 | M58: 03/2021 | N58: 2021-06-30
A59: 1010 | B59: 53481400 | C59: T10-0185-P-1000 | D59: 2021-06-15 | E59: 10700000 | F59: UZ | G59: 202104 | H59: 22.74 | I59: 0.001645 | J59: 0.00356083 | K59: 04 | L59: 2021 | M59: 04/2021 | N59: 2021-06-30
A60: 1010 | B60: 53481400 | C60: T10-0185-P-1000 | D60: 2021-06-15 | E60: 10700000 | F60: UZ | G60: 202105 | H60: 278.62 | I60: 0.001645 | J60: 0.00356083 | K60: 05 | L60: 2021 | M60: 05/2021 | N60: 2021-06-30
A61: 1010 | B61: 53481400 | C61: T10-0185-P-1000 | D61: 2021-06-15 | E61: 10700000 | F61: UZ | G61: 202106 | H61: 359.31 | I61: 0.001645 | J61: 0.00356083 | K61: 06 | L61: 2021 | M61: 06/2021 | N61: 2021-06-30
A62: 1010 | B62: 53481400 | C62: T10-0185-P-1000 | D62: 2021-06-15 | E62: 10700000 | F62: UZ | G62: 202107 | H62: 194.95 | I62: 0.001645 | J62: 0.00356083 | K62: 07 | L62: 2021 | M62: 07/2021 | N62: 2021-06-30
A63: 1010 | B63: 53481400 | C63: T10-0185-P-1000 | D63: 2021-06-15 | E63: 10700000 | F63: UZ | G63: 202108 | H63: 114.4 | I63: 0.001645 | J63: 0.00356083 | K63: 08 | L63: 2021 | M63: 08/2021 | N63: 2021-06-30
A64: 1010 | B64: 53481500 | C64: T10-0185-P-1000 | D64: 2021-06-15 | E64: 10700000 | F64: UZ | G64: 202102 | H64: 0.13 | I64: 0.001645 | J64: 0.00356083 | K64: 02 | L64: 2021 | M64: 02/2021 | N64: 2021-06-30
A65: 1010 | B65: 53481500 | C65: T10-0185-P-1000 | D65: 2021-06-15 | E65: 10700000 | F65: UZ | G65: 202103 | H65: -0.04 | I65: 0.001645 | J65: 0.00356083 | K65: 03 | L65: 2021 | M65: 03/2021 | N65: 2021-06-30
A66: 1010 | B66: 53481500 | C66: T10-0185-P-1000 | D66: 2021-06-15 | E66: 10700000 | F66: UZ | G66: 202104 | H66: 0.24 | I66: 0.001645 | J66: 0.00356083 | K66: 04 | L66: 2021 | M66: 04/2021 | N66: 2021-06-30
A67: 1010 | B67: 53481500 | C67: T10-0185-P-1000 | D67: 2021-06-15 | E67: 10700000 | F67: UZ | G67: 202106 | H67: -0.28 | I67: 0.001645 | J67: 0.00356083 | K67: 06 | L67: 2021 | M67: 06/2021 | N67: 2021-06-30
A68: 1010 | B68: 53481700 | C68: T10-0185-P-1000 | D68: 2021-06-15 | E68: 10700000 | F68: UZ | G68: 202007 | H68: 0.06 | I68: 0.001645 | J68: 0.00356083 | K68: 07 | L68: 2020 | M68: 07/2020 | N68: 2021-06-30
A69: 1010 | B69: 53481700 | C69: T10-0185-P-1000 | D69: 2021-06-15 | E69: 10700000 | F69: UZ | G69: 202009 | H69: 0.05 | I69: 0.001645 | J69: 0.00356083 | K69: 09 | L69: 2020 | M69: 09/2020 | N69: 2021-06-30
A70: 1010 | B70: 53481700 | C70: T10-0185-P-1000 | D70: 2021-06-15 | E70: 10700000 | F70: UZ | G70: 202012 | H70: 0.1 | I70: 0.001645 | J70: 0.00356083 | K70: 12 | L70: 2020 | M70: 12/2020 | N70: 2021-06-30
A71: 1010 | B71: 53481700 | C71: T10-0185-P-1000 | D71: 2021-06-15 | E71: 10700000 | F71: UZ | G71: 202101 | H71: 0.03 | I71: 0.001645 | J71: 0.00356083 | K71: 01 | L71: 2021 | M71: 01/2021 | N71: 2021-06-30
A72: 1010 | B72: 53481700 | C72: T10-0185-P-1000 | D72: 2021-06-15 | E72: 10700000 | F72: UZ | G72: 202102 | H72: 81.53 | I72: 0.001645 | J72: 0.00356083 | K72: 02 | L72: 2021 | M72: 02/2021 | N72: 2021-06-30
A73: 1010 | B73: 53481700 | C73: T10-0185-P-1000 | D73: 2021-06-15 | E73: 10700000 | F73: UZ | G73: 202103 | H73: 46.13 | I73: 0.001645 | J73: 0.00356083 | K73: 03 | L73: 2021 | M73: 03/2021 | N73: 2021-06-30
A74: 1010 | B74: 53481700 | C74: T10-0185-P-1000 | D74: 2021-06-15 | E74: 10700000 | F74: UZ | G74: 202104 | H74: 41.77 | I74: 0.001645 | J74: 0.00356083 | K74: 04 | L74: 2021 | M74: 04/2021 | N74: 2021-06-30
A75: 1010 | B75: 53481700 | C75: T10-0185-P-1000 | D75: 2021-06-15 | E75: 10700000 | F75: UZ | G75: 202106 | H75: 51.74 | I75: 0.001645 | J75: 0.00356083 | K75: 06 | L75: 2021 | M75: 06/2021 | N75: 2021-06-30
A76: 1010 | B76: 53481900 | C76: T10-0185-P-1000 | D76: 2021-06-15 | E76: 10700000 | F76: UZ | G76: 202007 | H76: -0.46 | I76: 0.001645 | J76: 0.00356083 | K76: 07 | L76: 2020 | M76: 07/2020 | N76: 2021-06-30
A77: 1010 | B77: 53481900 | C77: T10-0185-P-1000 | D77: 2021-06-15 | E77: 10700000 | F77: UZ | G77: 202009 | H77: 0.09 | I77: 0.001645 | J77: 0.00356083 | K77: 09 | L77: 2020 | M77: 09/2020 | N77: 2021-06-30
A78: 1010 | B78: 53481900 | C78: T10-0185-P-1000 | D78: 2021-06-15 | E78: 10700000 | F78: UZ | G78: 202103 | H78: 0.58 | I78: 0.001645 | J78: 0.00356083 | K78: 03 | L78: 2021 | M78: 03/2021 | N78: 2021-06-30
A79: 1010 | B79: 53481900 | C79: T10-0185-P-1000 | D79: 2021-06-15 | E79: 10700000 | F79: UZ | G79: 202104 | H79: 8.18 | I79: 0.001645 | J79: 0.00356083 | K79: 04 | L79: 2021 | M79: 04/2021 | N79: 2021-06-30
A80: 1010 | B80: 53481900 | C80: T10-0185-P-1000 | D80: 2021-06-15 | E80: 10700000 | F80: UZ | G80: 202106 | H80: 13.35 | I80: 0.001645 | J80: 0.00356083 | K80: 06 | L80: 2021 | M80: 06/2021 | N80: 2021-06-30
A81: 1010 | B81: 53482100 | C81: T10-0185-P-1000 | D81: 2021-06-15 | E81: 10700000 | F81: UZ | G81: 202007 | H81: 13.16 | I81: 0.001645 | J81: 0.00356083 | K81: 07 | L81: 2020 | M81: 07/2020 | N81: 2021-06-30
A82: 1010 | B82: 53482100 | C82: T10-0185-P-1000 | D82: 2021-06-15 | E82: 10700000 | F82: UZ | G82: 202009 | H82: 9.53 | I82: 0.001645 | J82: 0.00356083 | K82: 09 | L82: 2020 | M82: 09/2020 | N82: 2021-06-30
A83: 1010 | B83: 53482100 | C83: T10-0185-P-1000 | D83: 2021-06-15 | E83: 10700000 | F83: UZ | G83: 202012 | H83: 129.81 | I83: 0.001645 | J83: 0.00356083 | K83: 12 | L83: 2020 | M83: 12/2020 | N83: 2021-06-30
A84: 1010 | B84: 53482100 | C84: T10-0185-P-1000 | D84: 2021-06-15 | E84: 10700000 | F84: UZ | G84: 202101 | H84: 40.64 | I84: 0.001645 | J84: 0.00356083 | K84: 01 | L84: 2021 | M84: 01/2021 | N84: 2021-06-30
A85: 1010 | B85: 53482100 | C85: T10-0185-P-1000 | D85: 2021-06-15 | E85: 10700000 | F85: UZ | G85: 202102 | H85: 42.22 | I85: 0.001645 | J85: 0.00356083 | K85: 02 | L85: 2021 | M85: 02/2021 | N85: 2021-06-30
A86: 1010 | B86: 53482100 | C86: T10-0185-P-1000 | D86: 2021-06-15 | E86: 10700000 | F86: UZ | G86: 202103 | H86: 25.71 | I86: 0.001645 | J86: 0.00356083 | K86: 03 | L86: 2021 | M86: 03/2021 | N86: 2021-06-30
A87: 1010 | B87: 53482100 | C87: T10-0185-P-1000 | D87: 2021-06-15 | E87: 10700000 | F87: UZ | G87: 202104 | H87: 20.24 | I87: 0.001645 | J87: 0.00356083 | K87: 04 | L87: 2021 | M87: 04/2021 | N87: 2021-06-30
A88: 1010 | B88: 53482100 | C88: T10-0185-P-1000 | D88: 2021-06-15 | E88: 10700000 | F88: UZ | G88: 202106 | H88: 25.07 | I88: 0.001645 | J88: 0.00356083 | K88: 06 | L88: 2021 | M88: 06/2021 | N88: 2021-06-30
A89: 1010 | B89: 53482300 | C89: T10-0185-P-1000 | D89: 2021-06-15 | E89: 10700000 | F89: UZ | G89: 202007 | H89: 6.55 | I89: 0.001645 | J89: 0.00356083 | K89: 07 | L89: 2020 | M89: 07/2020 | N89: 2021-06-30
A90: 1010 | B90: 53482300 | C90: T10-0185-P-1000 | D90: 2021-06-15 | E90: 10700000 | F90: UZ | G90: 202009 | H90: 4.09 | I90: 0.001645 | J90: 0.00356083 | K90: 09 | L90: 2020 | M90: 09/2020 | N90: 2021-06-30
A91: 1010 | B91: 53482300 | C91: T10-0185-P-1000 | D91: 2021-06-15 | E91: 10700000 | F91: UZ | G91: 202010 | H91: -1.82 | I91: 0.001645 | J91: 0.00356083 | K91: 10 | L91: 2020 | M91: 10/2020 | N91: 2021-06-30
A92: 1010 | B92: 53482300 | C92: T10-0185-P-1000 | D92: 2021-06-15 | E92: 10700000 | F92: UZ | G92: 202011 | H92: 0.33 | I92: 0.001645 | J92: 0.00356083 | K92: 11 | L92: 2020 | M92: 11/2020 | N92: 2021-06-30
A93: 1010 | B93: 53482300 | C93: T10-0185-P-1000 | D93: 2021-06-15 | E93: 10700000 | F93: UZ | G93: 202012 | H93: 63.84 | I93: 0.001645 | J93: 0.00356083 | K93: 12 | L93: 2020 | M93: 12/2020 | N93: 2021-06-30
A94: 1010 | B94: 53482300 | C94: T10-0185-P-1000 | D94: 2021-06-15 | E94: 10700000 | F94: UZ | G94: 202101 | H94: 17.03 | I94: 0.001645 | J94: 0.00356083 | K94: 01 | L94: 2021 | M94: 01/2021 | N94: 2021-06-30
A95: 1010 | B95: 53482300 | C95: T10-0185-P-1000 | D95: 2021-06-15 | E95: 10700000 | F95: UZ | G95: 202102 | H95: 89.39 | I95: 0.001645 | J95: 0.00356083 | K95: 02 | L95: 2021 | M95: 02/2021 | N95: 2021-06-30
A96: 1010 | B96: 53482300 | C96: T10-0185-P-1000 | D96: 2021-06-15 | E96: 10700000 | F96: UZ | G96: 202103 | H96: 50.92 | I96: 0.001645 | J96: 0.00356083 | K96: 03 | L96: 2021 | M96: 03/2021 | N96: 2021-06-30
A97: 1010 | B97: 53482300 | C97: T10-0185-P-1000 | D97: 2021-06-15 | E97: 10700000 | F97: UZ | G97: 202104 | H97: 45.9 | I97: 0.001645 | J97: 0.00356083 | K97: 04 | L97: 2021 | M97: 04/2021 | N97: 2021-06-30
A98: 1010 | B98: 53482300 | C98: T10-0185-P-1000 | D98: 2021-06-15 | E98: 10700000 | F98: UZ | G98: 202105 | H98: -20.2 | I98: 0.001645 | J98: 0.00356083 | K98: 05 | L98: 2021 | M98: 05/2021 | N98: 2021-06-30
A99: 1010 | B99: 53482300 | C99: T10-0185-P-1000 | D99: 2021-06-15 | E99: 10700000 | F99: UZ | G99: 202106 | H99: 53.59 | I99: 0.001645 | J99: 0.00356083 | K99: 06 | L99: 2021 | M99: 06/2021 | N99: 2021-06-30
A100: 1010 | B100: 53482400 | C100: T10-0185-P-1000 | D100: 2021-06-15 | E100: 10700000 | F100: UZ | G100: 202102 | H100: -3.64 | I100: 0.001645 | J100: 0.00356083 | K100: 02 | L100: 2021 | M100: 02/2021 | N100: 2021-06-30
A101: 1010 | B101: 53482400 | C101: T10-0185-P-1000 | D101: 2021-06-15 | E101: 10700000 | F101: UZ | G101: 202103 | H101: -1.82 | I101: 0.001645 | J101: 0.00356083 | K101: 03 | L101: 2021 | M101: 03/2021 | N101: 2021-06-30
A102: 1010 | B102: 53482400 | C102: T10-0185-P-1000 | D102: 2021-06-15 | E102: 10700000 | F102: UZ | G102: 202104 | H102: -1.55 | I102: 0.001645 | J102: 0.00356083 | K102: 04 | L102: 2021 | M102: 04/2021 | N102: 2021-06-30
A103: 1010 | B103: 53482400 | C103: T10-0185-P-1000 | D103: 2021-06-15 | E103: 10700000 | F103: UZ | G103: 202106 | H103: -1.78 | I103: 0.001645 | J103: 0.00356083 | K103: 06 | L103: 2021 | M103: 06/2021 | N103: 2021-06-30
A104: 1010 | B104: 70510000 | C104: T10-0185-P-1000 | D104: 2021-06-15 | E104: 10700000 | F104: UZ | G104: 202008 | H104: 0.48 | I104: 0.001645 | J104: 0.00356083 | K104: 08 | L104: 2020 | M104: 08/2020 | N104: 2021-06-30
A105: 1010 | B105: 70510000 | C105: T10-0185-P-1000 | D105: 2021-06-15 | E105: 10700000 | F105: UZ | G105: 202009 | H105: 12.14 | I105: 0.001645 | J105: 0.00356083 | K105: 09 | L105: 2020 | M105: 09/2020 | N105: 2021-06-30
A106: 1010 | B106: 70510000 | C106: T10-0185-P-1000 | D106: 2021-06-15 | E106: 10700000 | F106: UZ | G106: 202010 | H106: 27.73 | I106: 0.001645 | J106: 0.00356083 | K106: 10 | L106: 2020 | M106: 10/2020 | N106: 2021-06-30
A107: 1010 | B107: 70510000 | C107: T10-0185-P-1000 | D107: 2021-06-15 | E107: 10700000 | F107: UZ | G107: 202011 | H107: 26.83 | I107: 0.001645 | J107: 0.00356083 | K107: 11 | L107: 2020 | M107: 11/2020 | N107: 2021-06-30
A108: 1010 | B108: 70510000 | C108: T10-0185-P-1000 | D108: 2021-06-15 | E108: 10700000 | F108: UZ | G108: 202012 | H108: 38.26 | I108: 0.001645 | J108: 0.00356083 | K108: =RIGHT(G108,2) -> 12 | L108: =LEFT(G108,4) -> 2020 | M108: =_xlfn.CONCAT(K108,"/",L108) -> 12/2020 | N108: =EOMONTH(D108,0) -> 2021-06-30
A109: 1010 | B109: 70510000 | C109: T10-0185-P-1000 | D109: 2021-06-15 | E109: 10700000 | F109: UZ | G109: 202101 | H109: 58.75 | I109: 0.001645 | J109: 0.00356083 | K109: 01 | L109: 2021 | M109: 01/2021 | N109: 2021-06-30
A110: 1010 | B110: 70510000 | C110: T10-0185-P-1000 | D110: 2021-06-15 | E110: 10700000 | F110: UZ | G110: 202102 | H110: 65.33 | I110: 0.001645 | J110: 0.00356083 | K110: 02 | L110: 2021 | M110: 02/2021 | N110: 2021-06-30
A111: 1010 | B111: 70510000 | C111: T10-0185-P-1000 | D111: 2021-06-15 | E111: 10700000 | F111: UZ | G111: 202103 | H111: 70.97 | I111: 0.001645 | J111: 0.00356083 | K111: 03 | L111: 2021 | M111: 03/2021 | N111: 2021-06-30
A112: 1010 | B112: 70510000 | C112: T10-0185-P-1000 | D112: 2021-06-15 | E112: 10700000 | F112: UZ | G112: 202104 | H112: 80.29 | I112: 0.001645 | J112: 0.00356083 | K112: 04 | L112: 2021 | M112: 04/2021 | N112: 2021-06-30
A113: 1010 | B113: 70510000 | C113: T10-0185-P-1000 | D113: 2021-06-15 | E113: 10700000 | F113: UZ | G113: 202105 | H113: 84.28 | I113: 0.001645 | J113: 0.00356083 | K113: 05 | L113: 2021 | M113: 05/2021 | N113: 2021-06-30
A114: 1010 | B114: 70510000 | C114: T10-0185-P-1000 | D114: 2021-06-15 | E114: 10700000 | F114: UZ | G114: 202106 | H114: 42.18 | I114: 0.001645 | J114: 0.00356083 | K114: 06 | L114: 2021 | M114: 06/2021 | N114: 2021-06-30
A115: 1010 | B115: 85000000 | C115: T10-0185-P-1000 | D115: 2021-06-15 | E115: 10700000 | F115: UZ | G115: 202008 | H115: 0.22 | I115: 0.001645 | J115: 0.00356083 | K115: 08 | L115: 2020 | M115: 08/2020 | N115: 2021-06-30
A116: 1010 | B116: 85000000 | C116: T10-0185-P-1000 | D116: 2021-06-15 | E116: 10700000 | F116: UZ | G116: 202009 | H116: 5.61 | I116: 0.001645 | J116: 0.00356083 | K116: 09 | L116: 2020 | M116: 09/2020 | N116: 2021-06-30
A117: 1010 | B117: 85000000 | C117: T10-0185-P-1000 | D117: 2021-06-15 | E117: 10700000 | F117: UZ | G117: 202010 | H117: 12.81 | I117: 0.001645 | J117: 0.00356083 | K117: 10 | L117: 2020 | M117: 10/2020 | N117: 2021-06-30
A118: 1010 | B118: 85000000 | C118: T10-0185-P-1000 | D118: 2021-06-15 | E118: 10700000 | F118: UZ | G118: 202011 | H118: 12.4 | I118: 0.001645 | J118: 0.00356083 | K118: 11 | L118: 2020 | M118: 11/2020 | N118: 2021-06-30
A119: 1010 | B119: 85000000 | C119: T10-0185-P-1000 | D119: 2021-06-15 | E119: 10700000 | F119: UZ | G119: 202012 | H119: 17.68 | I119: 0.001645 | J119: 0.00356083 | K119: 12 | L119: 2020 | M119: 12/2020 | N119: 2021-06-30
A120: 1010 | B120: 85000000 | C120: T10-0185-P-1000 | D120: 2021-06-15 | E120: 10700000 | F120: UZ | G120: 202101 | H120: 27.14 | I120: 0.001645 | J120: 0.00356083 | K120: 01 | L120: 2021 | M120: 01/2021 | N120: 2021-06-30
A121: 1010 | B121: 85000000 | C121: T10-0185-P-1000 | D121: 2021-06-15 | E121: 10700000 | F121: UZ | G121: 202102 | H121: 30.18 | I121: 0.001645 | J121: 0.00356083 | K121: 02 | L121: 2021 | M121: 02/2021 | N121: 2021-06-30
A122: 1010 | B122: 85000000 | C122: T10-0185-P-1000 | D122: 2021-06-15 | E122: 10700000 | F122: UZ | G122: 202103 | H122: 32.79 | I122: 0.001645 | J122: 0.00356083 | K122: 03 | L122: 2021 | M122: 03/2021 | N122: 2021-06-30
A123: 1010 | B123: 85000000 | C123: T10-0185-P-1000 | D123: 2021-06-15 | E123: 10700000 | F123: UZ | G123: 202104 | H123: 37.09 | I123: 0.001645 | J123: 0.00356083 | K123: 04 | L123: 2021 | M123: 04/2021 | N123: 2021-06-30
A124: 1010 | B124: 85000000 | C124: T10-0185-P-1000 | D124: 2021-06-15 | E124: 10700000 | F124: UZ | G124: 202105 | H124: 38.94 | I124: 0.001645 | J124: 0.00356083 | K124: 05 | L124: 2021 | M124: 05/2021 | N124: 2021-06-30
A125: 1010 | B125: 85000000 | C125: T10-0185-P-1000 | D125: 2021-06-15 | E125: 10700000 | F125: UZ | G125: 202106 | H125: 19.48 | I125: 0.001645 | J125: 0.00356083 | K125: 06 | L125: 2021 | M125: 06/2021 | N125: 2021-06-30

Sheet SEI ISD (hidden)
A1: PM>wo>Select use comma macro to pull this info for in service dates
A4: work_order_number | B4: in_service_date | C4: completion_date | D4: description | E4: description | F4: description | G4: description | H4: long_description
A5: R10-01K3.19-P-4031 | B5: 2021-03-01 | C5: 2021-03-31 | D5: VMWare Workspace One | E5: posted to CPR | G5: Indiana Corp-Specific
A6: T10-0185-P-1000 | B6: 2021-06-15 | C6: 2022-03-23 | D6: New Authentication Platform (Okta) | E6: posted to CPR | G6: Indiana Corp-Specific
A7: R10-01K3.19-P-4031 | B7: 2021-03-01 | C7: 2021-03-31 | D7: VMWare Workspace One | E7: posted to CPR | G7: Indiana Corp-Specific
A8: T10-0184-P-1000 | B8: 2020-11-20 | D8: SIEM Suite Implementation | E8: in service | G8: Indiana Corp-Specific
A9: T10-0185-P-1000 | B9: 2021-06-15 | C9: 2022-03-23 | D9: New Authentication Platform (Okta) | E9: posted to CPR | G9: Indiana Corp-Specific

Sheet WBS by Depr info (hidden)
A1: Used Asset 1200 Report & Depr 1039 to build this > looked for more than 1 Utility acct >highlighted magenta> Removed $0 rows> Selected larger balance Depr group
A4: cpr_activity_wo_number | B4: Depr group | C4: Sum of activity_cost | D4: dup | E4: Life Rate | F4: COR Rate | G4: Slvg Rate
A5: R10-01K3.19-P-4031 | B5: 10C:340300 | C5: 172430.46 | E5: =VLOOKUP($B5,'sei depr 1039'!$C:$G,5,0) -> 0.1 | F5: =VLOOKUP($B5,'sei depr 1039'!$C:$L,10,0) -> 0 | G5: =VLOOKUP($B5,'sei depr 1039'!$C:$M,11,0) -> 0
A6: T10-0185-P-1000 | B6: 10C:340300 | C6: 27091.5 | E6: =VLOOKUP($B6,'sei depr 1039'!$C:$G,5,0) -> 0.1 | F6: =VLOOKUP($B6,'sei depr 1039'!$C:$L,10,0) -> 0 | G6: =VLOOKUP($B6,'sei depr 1039'!$C:$M,11,0) -> 0
A7: R10-01K3.19-P-4031 | B7: 10C:340300 | C7: 0 | E7: =VLOOKUP($B7,'sei depr 1039'!$C:$G,5,0) -> 0.1 | F7: =VLOOKUP($B7,'sei depr 1039'!$C:$L,10,0) -> 0 | G7: =VLOOKUP($B7,'sei depr 1039'!$C:$M,11,0) -> 0
A8: T10-0184-P-1000 | B8: 10C:340300 | C8: 103039.69 | E8: =VLOOKUP($B8,'sei depr 1039'!$C:$G,5,0) -> 0.1 | F8: =VLOOKUP($B8,'sei depr 1039'!$C:$L,10,0) -> 0 | G8: =VLOOKUP($B8,'sei depr 1039'!$C:$M,11,0) -> 0
A9: T10-0185-P-1000 | B9: 10C:340300 | C9: 0 | E9: =VLOOKUP($B9,'sei depr 1039'!$C:$G,5,0) -> 0.1 | F9: =VLOOKUP($B9,'sei depr 1039'!$C:$L,10,0) -> 0 | G9: =VLOOKUP($B9,'sei depr 1039'!$C:$M,11,0) -> 0

Sheet sei depr 1039 (hidden)
A1: start_month | B1: end_month | C1: description | D1: depr_group_id | E1: gl_post_mo_yr | F1: depreciation_base | G1: depreciation_rate | H1: description | I1: COS Area | J1: description | K1: description | L1: cost_of_removal_rate | M1: salvage_rate
A2: 2020-11-01 | B2: 2021-06-01 | C2: 10C:121100 | D2: 3858 | E2: 2020-11-01 | F2: 0 | G2: 0 | H2: 10C:121100 | J2: Indiana Corporate | K2: 121100-Land | L2: 0 | M2: 0
A3: 2020-11-01 | B3: 2021-06-01 | C3: 10C:121100 | D3: 3858 | E3: 2020-12-01 | F3: 0 | G3: 0 | H3: 10C:121100 | J3: Indiana Corporate | K3: 121100-Land | L3: 0 | M3: 0
A4: 2020-11-01 | B4: 2021-06-01 | C4: 10C:121100 | D4: 3858 | E4: 2021-01-01 | F4: 0 | G4: 0 | H4: 10C:121100 | J4: Indiana Corporate | K4: 121100-Land | L4: 0 | M4: 0
A5: 2020-11-01 | B5: 2021-06-01 | C5: 10C:121100 | D5: 3858 | E5: 2021-02-01 | F5: 0 | G5: 0 | H5: 10C:121100 | J5: Indiana Corporate | K5: 121100-Land | L5: 0 | M5: 0
A6: 2020-11-01 | B6: 2021-06-01 | C6: 10C:121100 | D6: 3858 | E6: 2021-03-01 | F6: 0 | G6: 0 | H6: 10C:121100 | J6: Indiana Corporate | K6: 121100-Land | L6: 0 | M6: 0
A7: 2020-11-01 | B7: 2021-06-01 | C7: 10C:121100 | D7: 3858 | E7: 2021-04-01 | F7: 0 | G7: 0 | H7: 10C:121100 | J7: Indiana Corporate | K7: 121100-Land | L7: 0 | M7: 0
A8: 2020-11-01 | B8: 2021-06-01 | C8: 10C:121100 | D8: 3858 | E8: 2021-05-01 | F8: 0 | G8: 0 | H8: 10C:121100 | J8: Indiana Corporate | K8: 121100-Land | L8: 0 | M8: 0
A9: 2020-11-01 | B9: 2021-06-01 | C9: 10C:121100 | D9: 3858 | E9: 2021-06-01 | F9: 0 | G9: 0 | H9: 10C:121100 | J9: Indiana Corporate | K9: 121100-Land | L9: 0 | M9: 0
A10: 2020-11-01 | B10: 2021-06-01 | C10: 10C:121200 | D10: 4531 | E10: 2020-11-01 | F10: 0 | G10: 0 | H10: 10C:121200 | J10: Indiana Corporate | K10: 121200-Buildings | L10: 0 | M10: 0
A11: 2020-11-01 | B11: 2021-06-01 | C11: 10C:121200 | D11: 4531 | E11: 2020-12-01 | F11: 0 | G11: 0 | H11: 10C:121200 | J11: Indiana Corporate | K11: 121200-Buildings | L11: 0 | M11: 0
A12: 2020-11-01 | B12: 2021-06-01 | C12: 10C:121200 | D12: 4531 | E12: 2021-01-01 | F12: 0 | G12: 0 | H12: 10C:121200 | J12: Indiana Corporate | K12: 121200-Buildings | L12: 0 | M12: 0
A13: 2020-11-01 | B13: 2021-06-01 | C13: 10C:121200 | D13: 4531 | E13: 2021-02-01 | F13: 0 | G13: 0 | H13: 10C:121200 | J13: Indiana Corporate | K13: 121200-Buildings | L13: 0 | M13: 0
A14: 2020-11-01 | B14: 2021-06-01 | C14: 10C:121200 | D14: 4531 | E14: 2021-03-01 | F14: 0 | G14: 0 | H14: 10C:121200 | J14: Indiana Corporate | K14: 121200-Buildings | L14: 0 | M14: 0
A15: 2020-11-01 | B15: 2021-06-01 | C15: 10C:121200 | D15: 4531 | E15: 2021-04-01 | F15: 0 | G15: 0 | H15: 10C:121200 | J15: Indiana Corporate | K15: 121200-Buildings | L15: 0 | M15: 0
A16: 2020-11-01 | B16: 2021-06-01 | C16: 10C:121200 | D16: 4531 | E16: 2021-05-01 | F16: 0 | G16: 0 | H16: 10C:121200 | J16: Indiana Corporate | K16: 121200-Buildings | L16: 0 | M16: 0
A17: 2020-11-01 | B17: 2021-06-01 | C17: 10C:121200 | D17: 4531 | E17: 2021-06-01 | F17: 0 | G17: 0 | H17: 10C:121200 | J17: Indiana Corporate | K17: 121200-Buildings | L17: 0 | M17: 0
A18: 2020-11-01 | B18: 2021-06-01 | C18: 10C:121300 | D18: 2620 | E18: 2020-11-01 | F18: 0 | G18: 0 | H18: 10C:121300 | J18: Indiana Corporate | K18: 121300-Capital Lease 5 Year | L18: 0 | M18: 0
A19: 2020-11-01 | B19: 2021-06-01 | C19: 10C:121300 | D19: 2620 | E19: 2020-12-01 | F19: 0 | G19: 0 | H19: 10C:121300 | J19: Indiana Corporate | K19: 121300-Capital Lease 5 Year | L19: 0 | M19: 0
A20: 2020-11-01 | B20: 2021-06-01 | C20: 10C:121300 | D20: 2620 | E20: 2021-01-01 | F20: 0 | G20: 0 | H20: 10C:121300 | J20: Indiana Corporate | K20: 121300-Capital Lease 5 Year | L20: 0 | M20: 0
A21: 2020-11-01 | B21: 2021-06-01 | C21: 10C:121300 | D21: 2620 | E21: 2021-02-01 | F21: 0 | G21: 0 | H21: 10C:121300 | J21: Indiana Corporate | K21: 121300-Capital Lease 5 Year | L21: 0 | M21: 0
A22: 2020-11-01 | B22: 2021-06-01 | C22: 10C:121300 | D22: 2620 | E22: 2021-03-01 | F22: 0 | G22: 0 | H22: 10C:121300 | J22: Indiana Corporate | K22: 121300-Capital Lease 5 Year | L22: 0 | M22: 0
A23: 2020-11-01 | B23: 2021-06-01 | C23: 10C:121300 | D23: 2620 | E23: 2021-04-01 | F23: 0 | G23: 0 | H23: 10C:121300 | J23: Indiana Corporate | K23: 121300-Capital Lease 5 Year | L23: 0 | M23: 0
A24: 2020-11-01 | B24: 2021-06-01 | C24: 10C:121300 | D24: 2620 | E24: 2021-05-01 | F24: 0 | G24: 0 | H24: 10C:121300 | J24: Indiana Corporate | K24: 121300-Capital Lease 5 Year | L24: 0 | M24: 0
A25: 2020-11-01 | B25: 2021-06-01 | C25: 10C:121300 | D25: 2620 | E25: 2021-06-01 | F25: 0 | G25: 0 | H25: 10C:121300 | J25: Indiana Corporate | K25: 121300-Capital Lease 5 Year | L25: 0 | M25: 0
A26: 2020-11-01 | B26: 2021-06-01 | C26: 10C:121400 | D26: 6351 | E26: 2020-11-01 | F26: 0 | G26: 0 | H26: 10C:121400 | J26: Indiana Corporate | K26: 121400-Lease Improvements | L26: 0 | M26: 0
A27: 2020-11-01 | B27: 2021-06-01 | C27: 10C:121400 | D27: 6351 | E27: 2020-12-01 | F27: 0 | G27: 0 | H27: 10C:121400 | J27: Indiana Corporate | K27: 121400-Lease Improvements | L27: 0 | M27: 0
A28: 2020-11-01 | B28: 2021-06-01 | C28: 10C:121400 | D28: 6351 | E28: 2021-01-01 | F28: 0 | G28: 0 | H28: 10C:121400 | J28: Indiana Corporate | K28: 121400-Lease Improvements | L28: 0 | M28: 0
A29: 2020-11-01 | B29: 2021-06-01 | C29: 10C:121400 | D29: 6351 | E29: 2021-02-01 | F29: 0 | G29: 0 | H29: 10C:121400 | J29: Indiana Corporate | K29: 121400-Lease Improvements | L29: 0 | M29: 0
A30: 2020-11-01 | B30: 2021-06-01 | C30: 10C:121400 | D30: 6351 | E30: 2021-03-01 | F30: 0 | G30: 0 | H30: 10C:121400 | J30: Indiana Corporate | K30: 121400-Lease Improvements | L30: 0 | M30: 0
A31: 2020-11-01 | B31: 2021-06-01 | C31: 10C:121400 | D31: 6351 | E31: 2021-04-01 | F31: 0 | G31: 0 | H31: 10C:121400 | J31: Indiana Corporate | K31: 121400-Lease Improvements | L31: 0 | M31: 0
A32: 2020-11-01 | B32: 2021-06-01 | C32: 10C:121400 | D32: 6351 | E32: 2021-05-01 | F32: 0 | G32: 0 | H32: 10C:121400 | J32: Indiana Corporate | K32: 121400-Lease Improvements | L32: 0 | M32: 0
A33: 2020-11-01 | B33: 2021-06-01 | C33: 10C:121400 | D33: 6351 | E33: 2021-06-01 | F33: 0 | G33: 0 | H33: 10C:121400 | J33: Indiana Corporate | K33: 121400-Lease Improvements | L33: 0 | M33: 0
A34: 2020-11-01 | B34: 2021-06-01 | C34: 10C:121500 | D34: 4551 | E34: 2020-11-01 | F34: 7865.73 | G34: 0 | H34: 10C:121500 | J34: Indiana Corporate | K34: 121500-Other Equipment -10 Yrs | L34: 0 | M34: 0
A35: 2020-11-01 | B35: 2021-06-01 | C35: 10C:121500 | D35: 4551 | E35: 2020-12-01 | F35: 7780.21 | G35: 0 | H35: 10C:121500 | J35: Indiana Corporate | K35: 121500-Other Equipment -10 Yrs | L35: 0 | M35: 0
A36: 2020-11-01 | B36: 2021-06-01 | C36: 10C:121500 | D36: 4551 | E36: 2021-01-01 | F36: 7694.72 | G36: 0 | H36: 10C:121500 | J36: Indiana Corporate | K36: 121500-Other Equipment -10 Yrs | L36: 0 | M36: 0
A37: 2020-11-01 | B37: 2021-06-01 | C37: 10C:121500 | D37: 4551 | E37: 2021-02-01 | F37: 7609.23 | G37: 0 | H37: 10C:121500 | J37: Indiana Corporate | K37: 121500-Other Equipment -10 Yrs | L37: 0 | M37: 0
A38: 2020-11-01 | B38: 2021-06-01 | C38: 10C:121500 | D38: 4551 | E38: 2021-03-01 | F38: 7523.71 | G38: 0 | H38: 10C:121500 | J38: Indiana Corporate | K38: 121500-Other Equipment -10 Yrs | L38: 0 | M38: 0
A39: 2020-11-01 | B39: 2021-06-01 | C39: 10C:121500 | D39: 4551 | E39: 2021-04-01 | F39: 7438.19 | G39: 0 | H39: 10C:121500 | J39: Indiana Corporate | K39: 121500-Other Equipment -10 Yrs | L39: 0 | M39: 0
A40: 2020-11-01 | B40: 2021-06-01 | C40: 10C:121500 | D40: 4551 | E40: 2021-05-01 | F40: 7352.69 | G40: 0 | H40: 10C:121500 | J40: Indiana Corporate | K40: 121500-Other Equipment -10 Yrs | L40: 0 | M40: 0
A41: 2020-11-01 | B41: 2021-06-01 | C41: 10C:121500 | D41: 4551 | E41: 2021-06-01 | F41: 7267.17 | G41: 0 | H41: 10C:121500 | J41: Indiana Corporate | K41: 121500-Other Equipment -10 Yrs | L41: 0 | M41: 0
A42: 2020-11-01 | B42: 2021-06-01 | C42: 10C:252 271160 | D42: 4552 | E42: 2020-11-01 | F42: 0 | G42: 0 | H42: 10C:252 271160 | J42: Indiana Corporate | K42: 271160-CIAC-NT Other-Water | L42: 0 | M42: 0
A43: 2020-11-01 | B43: 2021-06-01 | C43: 10C:252 271160 | D43: 4552 | E43: 2020-12-01 | F43: 0 | G43: 0 | H43: 10C:252 271160 | J43: Indiana Corporate | K43: 271160-CIAC-NT Other-Water | L43: 0 | M43: 0
A44: 2020-11-01 | B44: 2021-06-01 | C44: 10C:252 271160 | D44: 4552 | E44: 2021-01-01 | F44: 0 | G44: 0 | H44: 10C:252 271160 | J44: Indiana Corporate | K44: 271160-CIAC-NT Other-Water | L44: 0 | M44: 0
A45: 2020-11-01 | B45: 2021-06-01 | C45: 10C:252 271160 | D45: 4552 | E45: 2021-02-01 | F45: 0 | G45: 0 | H45: 10C:252 271160 | J45: Indiana Corporate | K45: 271160-CIAC-NT Other-Water | L45: 0 | M45: 0
A46: 2020-11-01 | B46: 2021-06-01 | C46: 10C:252 271160 | D46: 4552 | E46: 2021-03-01 | F46: 0 | G46: 0 | H46: 10C:252 271160 | J46: Indiana Corporate | K46: 271160-CIAC-NT Other-Water | L46: 0 | M46: 0
A47: 2020-11-01 | B47: 2021-06-01 | C47: 10C:252 271160 | D47: 4552 | E47: 2021-04-01 | F47: 0 | G47: 0 | H47: 10C:252 271160 | J47: Indiana Corporate | K47: 271160-CIAC-NT Other-Water | L47: 0 | M47: 0
A48: 2020-11-01 | B48: 2021-06-01 | C48: 10C:252 271160 | D48: 4552 | E48: 2021-05-01 | F48: 0 | G48: 0 | H48: 10C:252 271160 | J48: Indiana Corporate | K48: 271160-CIAC-NT Other-Water | L48: 0 | M48: 0
A49: 2020-11-01 | B49: 2021-06-01 | C49: 10C:252 271160 | D49: 4552 | E49: 2021-06-01 | F49: 0 | G49: 0 | H49: 10C:252 271160 | J49: Indiana Corporate | K49: 271160-CIAC-NT Other-Water | L49: 0 | M49: 0
A50: 2020-11-01 | B50: 2021-06-01 | C50: 10C:271160 | D50: 2004 | E50: 2020-11-01 | F50: -116904.86 | G50: 0 | H50: 10C:271160 | J50: Indiana Corporate | K50: 271160-CIAC-NT Other-Water | L50: 0 | M50: 0
A51: 2020-11-01 | B51: 2021-06-01 | C51: 10C:271160 | D51: 2004 | E51: 2020-12-01 | F51: -116904.86 | G51: 0 | H51: 10C:271160 | J51: Indiana Corporate | K51: 271160-CIAC-NT Other-Water | L51: 0 | M51: 0
A52: 2020-11-01 | B52: 2021-06-01 | C52: 10C:271160 | D52: 2004 | E52: 2021-01-01 | F52: -116904.86 | G52: 0 | H52: 10C:271160 | J52: Indiana Corporate | K52: 271160-CIAC-NT Other-Water | L52: 0 | M52: 0
A53: 2020-11-01 | B53: 2021-06-01 | C53: 10C:271160 | D53: 2004 | E53: 2021-02-01 | F53: -116904.86 | G53: 0 | H53: 10C:271160 | J53: Indiana Corporate | K53: 271160-CIAC-NT Other-Water | L53: 0 | M53: 0
A54: 2020-11-01 | B54: 2021-06-01 | C54: 10C:271160 | D54: 2004 | E54: 2021-03-01 | F54: -116904.86 | G54: 0 | H54: 10C:271160 | J54: Indiana Corporate | K54: 271160-CIAC-NT Other-Water | L54: 0 | M54: 0
A55: 2020-11-01 | B55: 2021-06-01 | C55: 10C:271160 | D55: 2004 | E55: 2021-04-01 | F55: -116904.86 | G55: 0 | H55: 10C:271160 | J55: Indiana Corporate | K55: 271160-CIAC-NT Other-Water | L55: 0 | M55: 0
A56: 2020-11-01 | B56: 2021-06-01 | C56: 10C:271160 | D56: 2004 | E56: 2021-05-01 | F56: -116904.86 | G56: 0 | H56: 10C:271160 | J56: Indiana Corporate | K56: 271160-CIAC-NT Other-Water | L56: 0 | M56: 0
A57: 2020-11-01 | B57: 2021-06-01 | C57: 10C:271160 | D57: 2004 | E57: 2021-06-01 | F57: -116904.86 | G57: 0 | H57: 10C:271160 | J57: Indiana Corporate | K57: 271160-CIAC-NT Other-Water | L57: 0 | M57: 0
A58: 2020-11-01 | B58: 2021-06-01 | C58: 10C:271210 | D58: 2005 | E58: 2020-11-01 | F58: 0 | G58: 0 | H58: 10C:271210 | J58: Indiana Corporate | K58: 271210-CIAC-Tax Mains-Water | L58: 0 | M58: 0
A59: 2020-11-01 | B59: 2021-06-01 | C59: 10C:271210 | D59: 2005 | E59: 2020-12-01 | F59: 0 | G59: 0 | H59: 10C:271210 | J59: Indiana Corporate | K59: 271210-CIAC-Tax Mains-Water | L59: 0 | M59: 0
A60: 2020-11-01 | B60: 2021-06-01 | C60: 10C:271210 | D60: 2005 | E60: 2021-01-01 | F60: 0 | G60: 0 | H60: 10C:271210 | J60: Indiana Corporate | K60: 271210-CIAC-Tax Mains-Water | L60: 0 | M60: 0
A61: 2020-11-01 | B61: 2021-06-01 | C61: 10C:271210 | D61: 2005 | E61: 2021-02-01 | F61: 0 | G61: 0 | H61: 10C:271210 | J61: Indiana Corporate | K61: 271210-CIAC-Tax Mains-Water | L61: 0 | M61: 0
A62: 2020-11-01 | B62: 2021-06-01 | C62: 10C:271210 | D62: 2005 | E62: 2021-03-01 | F62: 0 | G62: 0 | H62: 10C:271210 | J62: Indiana Corporate | K62: 271210-CIAC-Tax Mains-Water | L62: 0 | M62: 0
A63: 2020-11-01 | B63: 2021-06-01 | C63: 10C:271210 | D63: 2005 | E63: 2021-04-01 | F63: 0 | G63: 0 | H63: 10C:271210 | J63: Indiana Corporate | K63: 271210-CIAC-Tax Mains-Water | L63: 0 | M63: 0
A64: 2020-11-01 | B64: 2021-06-01 | C64: 10C:271210 | D64: 2005 | E64: 2021-05-01 | F64: 0 | G64: 0 | H64: 10C:271210 | J64: Indiana Corporate | K64: 271210-CIAC-Tax Mains-Water | L64: 0 | M64: 0
A65: 2020-11-01 | B65: 2021-06-01 | C65: 10C:271210 | D65: 2005 | E65: 2021-06-01 | F65: 0 | G65: 0 | H65: 10C:271210 | J65: Indiana Corporate | K65: 271210-CIAC-Tax Mains-Water | L65: 0 | M65: 0
A66: 2020-11-01 | B66: 2021-06-01 | C66: 10C:252 271260 | D66: 4449 | E66: 2020-11-01 | F66: 0 | G66: 0 | H66: 10C:252 271260 | J66: Indiana Corporate | K66: 271260-CIAC-Tax Other-Water | L66: 0 | M66: 0
A67: 2020-11-01 | B67: 2021-06-01 | C67: 10C:252 271260 | D67: 4449 | E67: 2020-12-01 | F67: 0 | G67: 0 | H67: 10C:252 271260 | J67: Indiana Corporate | K67: 271260-CIAC-Tax Other-Water | L67: 0 | M67: 0
A68: 2020-11-01 | B68: 2021-06-01 | C68: 10C:252 271260 | D68: 4449 | E68: 2021-01-01 | F68: 0 | G68: 0 | H68: 10C:252 271260 | J68: Indiana Corporate | K68: 271260-CIAC-Tax Other-Water | L68: 0 | M68: 0
A69: 2020-11-01 | B69: 2021-06-01 | C69: 10C:252 271260 | D69: 4449 | E69: 2021-02-01 | F69: 0 | G69: 0 | H69: 10C:252 271260 | J69: Indiana Corporate | K69: 271260-CIAC-Tax Other-Water | L69: 0 | M69: 0
A70: 2020-11-01 | B70: 2021-06-01 | C70: 10C:252 271260 | D70: 4449 | E70: 2021-03-01 | F70: 0 | G70: 0 | H70: 10C:252 271260 | J70: Indiana Corporate | K70: 271260-CIAC-Tax Other-Water | L70: 0 | M70: 0
A71: 2020-11-01 | B71: 2021-06-01 | C71: 10C:252 271260 | D71: 4449 | E71: 2021-04-01 | F71: 0 | G71: 0 | H71: 10C:252 271260 | J71: Indiana Corporate | K71: 271260-CIAC-Tax Other-Water | L71: 0 | M71: 0
A72: 2020-11-01 | B72: 2021-06-01 | C72: 10C:252 271260 | D72: 4449 | E72: 2021-05-01 | F72: 0 | G72: 0 | H72: 10C:252 271260 | J72: Indiana Corporate | K72: 271260-CIAC-Tax Other-Water | L72: 0 | M72: 0
A73: 2020-11-01 | B73: 2021-06-01 | C73: 10C:252 271260 | D73: 4449 | E73: 2021-06-01 | F73: 0 | G73: 0 | H73: 10C:252 271260 | J73: Indiana Corporate | K73: 271260-CIAC-Tax Other-Water | L73: 0 | M73: 0
A74: 2020-11-01 | B74: 2021-06-01 | C74: 10C:271260 | D74: 3146 | E74: 2020-11-01 | F74: 0 | G74: 0 | H74: 10C:271260 | J74: Indiana Corporate | K74: 271260-CIAC-Tax Other-Water | L74: 0 | M74: 0
A75: 2020-11-01 | B75: 2021-06-01 | C75: 10C:271260 | D75: 3146 | E75: 2020-12-01 | F75: 0 | G75: 0 | H75: 10C:271260 | J75: Indiana Corporate | K75: 271260-CIAC-Tax Other-Water | L75: 0 | M75: 0
A76: 2020-11-01 | B76: 2021-06-01 | C76: 10C:271260 | D76: 3146 | E76: 2021-01-01 | F76: 0 | G76: 0 | H76: 10C:271260 | J76: Indiana Corporate | K76: 271260-CIAC-Tax Other-Water | L76: 0 | M76: 0
A77: 2020-11-01 | B77: 2021-06-01 | C77: 10C:271260 | D77: 3146 | E77: 2021-02-01 | F77: 0 | G77: 0 | H77: 10C:271260 | J77: Indiana Corporate | K77: 271260-CIAC-Tax Other-Water | L77: 0 | M77: 0
A78: 2020-11-01 | B78: 2021-06-01 | C78: 10C:271260 | D78: 3146 | E78: 2021-03-01 | F78: 0 | G78: 0 | H78: 10C:271260 | J78: Indiana Corporate | K78: 271260-CIAC-Tax Other-Water | L78: 0 | M78: 0
A79: 2020-11-01 | B79: 2021-06-01 | C79: 10C:271260 | D79: 3146 | E79: 2021-04-01 | F79: 0 | G79: 0 | H79: 10C:271260 | J79: Indiana Corporate | K79: 271260-CIAC-Tax Other-Water | L79: 0 | M79: 0
A80: 2020-11-01 | B80: 2021-06-01 | C80: 10C:271260 | D80: 3146 | E80: 2021-05-01 | F80: 0 | G80: 0.0261 | H80: 10C:271260 | J80: Indiana Corporate | K80: 271260-CIAC-Tax Other-Water | L80: 0 | M80: 0
A81: 2020-11-01 | B81: 2021-06-01 | C81: 10C:271260 | D81: 3146 | E81: 2021-06-01 | F81: 0 | G81: 0.0261 | H81: 10C:271260 | J81: Indiana Corporate | K81: 271260-CIAC-Tax Other-Water | L81: 0 | M81: 0
A82: 2020-11-01 | B82: 2021-06-01 | C82: 10C:252 271460 | D82: 5731 | E82: 2020-11-01 | F82: 0 | G82: 0 | H82: 10C:252 271460 | J82: Indiana Corporate | K82: 271460-CIAC-Tax Other FIT-Water | L82: 0 | M82: 0
A83: 2020-11-01 | B83: 2021-06-01 | C83: 10C:252 271460 | D83: 5731 | E83: 2020-12-01 | F83: 0 | G83: 0 | H83: 10C:252 271460 | J83: Indiana Corporate | K83: 271460-CIAC-Tax Other FIT-Water | L83: 0 | M83: 0
A84: 2020-11-01 | B84: 2021-06-01 | C84: 10C:252 271460 | D84: 5731 | E84: 2021-01-01 | F84: 0 | G84: 0 | H84: 10C:252 271460 | J84: Indiana Corporate | K84: 271460-CIAC-Tax Other FIT-Water | L84: 0 | M84: 0
A85: 2020-11-01 | B85: 2021-06-01 | C85: 10C:252 271460 | D85: 5731 | E85: 2021-02-01 | F85: 0 | G85: 0 | H85: 10C:252 271460 | J85: Indiana Corporate | K85: 271460-CIAC-Tax Other FIT-Water | L85: 0 | M85: 0
A86: 2020-11-01 | B86: 2021-06-01 | C86: 10C:252 271460 | D86: 5731 | E86: 2021-03-01 | F86: 0 | G86: 0 | H86: 10C:252 271460 | J86: Indiana Corporate | K86: 271460-CIAC-Tax Other FIT-Water | L86: 0 | M86: 0
A87: 2020-11-01 | B87: 2021-06-01 | C87: 10C:252 271460 | D87: 5731 | E87: 2021-04-01 | F87: 0 | G87: 0 | H87: 10C:252 271460 | J87: Indiana Corporate | K87: 271460-CIAC-Tax Other FIT-Water | L87: 0 | M87: 0
A88: 2020-11-01 | B88: 2021-06-01 | C88: 10C:252 271460 | D88: 5731 | E88: 2021-05-01 | F88: 0 | G88: 0 | H88: 10C:252 271460 | J88: Indiana Corporate | K88: 271460-CIAC-Tax Other FIT-Water | L88: 0 | M88: 0
A89: 2020-11-01 | B89: 2021-06-01 | C89: 10C:252 271460 | D89: 5731 | E89: 2021-06-01 | F89: 0 | G89: 0 | H89: 10C:252 271460 | J89: Indiana Corporate | K89: 271460-CIAC-Tax Other FIT-Water | L89: 0 | M89: 0
A90: 2020-11-01 | B90: 2021-06-01 | C90: 10C:271460 | D90: 2621 | E90: 2020-11-01 | F90: 0 | G90: 0 | H90: 10C:271460 | J90: Indiana Corporate | K90: 271460-CIAC-Tax Other FIT-Water | L90: 0 | M90: 0
A91: 2020-11-01 | B91: 2021-06-01 | C91: 10C:271460 | D91: 2621 | E91: 2020-12-01 | F91: 0 | G91: 0 | H91: 10C:271460 | J91: Indiana Corporate | K91: 271460-CIAC-Tax Other FIT-Water | L91: 0 | M91: 0
A92: 2020-11-01 | B92: 2021-06-01 | C92: 10C:271460 | D92: 2621 | E92: 2021-01-01 | F92: 0 | G92: 0 | H92: 10C:271460 | J92: Indiana Corporate | K92: 271460-CIAC-Tax Other FIT-Water | L92: 0 | M92: 0
A93: 2020-11-01 | B93: 2021-06-01 | C93: 10C:271460 | D93: 2621 | E93: 2021-02-01 | F93: 0 | G93: 0 | H93: 10C:271460 | J93: Indiana Corporate | K93: 271460-CIAC-Tax Other FIT-Water | L93: 0 | M93: 0
A94: 2020-11-01 | B94: 2021-06-01 | C94: 10C:271460 | D94: 2621 | E94: 2021-03-01 | F94: 0 | G94: 0 | H94: 10C:271460 | J94: Indiana Corporate | K94: 271460-CIAC-Tax Other FIT-Water | L94: 0 | M94: 0
A95: 2020-11-01 | B95: 2021-06-01 | C95: 10C:271460 | D95: 2621 | E95: 2021-04-01 | F95: 0 | G95: 0 | H95: 10C:271460 | J95: Indiana Corporate | K95: 271460-CIAC-Tax Other FIT-Water | L95: 0 | M95: 0
A96: 2020-11-01 | B96: 2021-06-01 | C96: 10C:271460 | D96: 2621 | E96: 2021-05-01 | F96: 0 | G96: 0 | H96: 10C:271460 | J96: Indiana Corporate | K96: 271460-CIAC-Tax Other FIT-Water | L96: 0 | M96: 0
A97: 2020-11-01 | B97: 2021-06-01 | C97: 10C:271460 | D97: 2621 | E97: 2021-06-01 | F97: 0 | G97: 0 | H97: 10C:271460 | J97: Indiana Corporate | K97: 271460-CIAC-Tax Other FIT-Water | L97: 0 | M97: 0
A98: 2020-11-01 | B98: 2021-06-01 | C98: 10C:301000 | D98: 4553 | E98: 2020-11-01 | F98: 122963.69 | G98: 0 | H98: 10C:301000 | J98: Indiana Corporate | K98: 301000-Organization | L98: 0 | M98: 0
A99: 2020-11-01 | B99: 2021-06-01 | C99: 10C:301000 | D99: 4553 | E99: 2020-12-01 | F99: 122963.69 | G99: 0 | H99: 10C:301000 | J99: Indiana Corporate | K99: 301000-Organization | L99: 0 | M99: 0
A100: 2020-11-01 | B100: 2021-06-01 | C100: 10C:301000 | D100: 4553 | E100: 2021-01-01 | F100: 122963.69 | G100: 0 | H100: 10C:301000 | J100: Indiana Corporate | K100: 301000-Organization | L100: 0 | M100: 0
A101: 2020-11-01 | B101: 2021-06-01 | C101: 10C:301000 | D101: 4553 | E101: 2021-02-01 | F101: 122963.69 | G101: 0 | H101: 10C:301000 | J101: Indiana Corporate | K101: 301000-Organization | L101: 0 | M101: 0
A102: 2020-11-01 | B102: 2021-06-01 | C102: 10C:301000 | D102: 4553 | E102: 2021-03-01 | F102: 122963.69 | G102: 0 | H102: 10C:301000 | J102: Indiana Corporate | K102: 301000-Organization | L102: 0 | M102: 0
A103: 2020-11-01 | B103: 2021-06-01 | C103: 10C:301000 | D103: 4553 | E103: 2021-04-01 | F103: 122963.69 | G103: 0 | H103: 10C:301000 | J103: Indiana Corporate | K103: 301000-Organization | L103: 0 | M103: 0
A104: 2020-11-01 | B104: 2021-06-01 | C104: 10C:301000 | D104: 4553 | E104: 2021-05-01 | F104: 122963.69 | G104: 0 | H104: 10C:301000 | J104: Indiana Corporate | K104: 301000-Organization | L104: 0 | M104: 0
A105: 2020-11-01 | B105: 2021-06-01 | C105: 10C:301000 | D105: 4553 | E105: 2021-06-01 | F105: 122963.69 | G105: 0 | H105: 10C:301000 | J105: Indiana Corporate | K105: 301000-Organization | L105: 0 | M105: 0
A106: 2020-11-01 | B106: 2021-06-01 | C106: 10C:302000 | D106: 3256 | E106: 2020-11-01 | F106: 0 | G106: 0 | H106: 10C:302000 | J106: Indiana Corporate | K106: 302000-Franchises | L106: 0 | M106: 0
A107: 2020-11-01 | B107: 2021-06-01 | C107: 10C:302000 | D107: 3256 | E107: 2020-12-01 | F107: 0 | G107: 0 | H107: 10C:302000 | J107: Indiana Corporate | K107: 302000-Franchises | L107: 0 | M107: 0
A108: 2020-11-01 | B108: 2021-06-01 | C108: 10C:302000 | D108: 3256 | E108: 2021-01-01 | F108: 0 | G108: 0 | H108: 10C:302000 | J108: Indiana Corporate | K108: 302000-Franchises | L108: 0 | M108: 0
A109: 2020-11-01 | B109: 2021-06-01 | C109: 10C:302000 | D109: 3256 | E109: 2021-02-01 | F109: 0 | G109: 0 | H109: 10C:302000 | J109: Indiana Corporate | K109: 302000-Franchises | L109: 0 | M109: 0
A110: 2020-11-01 | B110: 2021-06-01 | C110: 10C:302000 | D110: 3256 | E110: 2021-03-01 | F110: 0 | G110: 0 | H110: 10C:302000 | J110: Indiana Corporate | K110: 302000-Franchises | L110: 0 | M110: 0
A111: 2020-11-01 | B111: 2021-06-01 | C111: 10C:302000 | D111: 3256 | E111: 2021-04-01 | F111: 0 | G111: 0 | H111: 10C:302000 | J111: Indiana Corporate | K111: 302000-Franchises | L111: 0 | M111: 0
A112: 2020-11-01 | B112: 2021-06-01 | C112: 10C:302000 | D112: 3256 | E112: 2021-05-01 | F112: 0 | G112: 0 | H112: 10C:302000 | J112: Indiana Corporate | K112: 302000-Franchises | L112: 0 | M112: 0
A113: 2020-11-01 | B113: 2021-06-01 | C113: 10C:302000 | D113: 3256 | E113: 2021-06-01 | F113: 0 | G113: 0 | H113: 10C:302000 | J113: Indiana Corporate | K113: 302000-Franchises | L113: 0 | M113: 0
A114: 2020-11-01 | B114: 2021-06-01 | C114: 10C:303200 | D114: 6352 | E114: 2020-11-01 | F114: 0 | G114: 0 | H114: 10C:303200 | J114: Indiana Corporate | K114: 303200-Land & Land Rights-Supply | L114: 0 | M114: 0
A115: 2020-11-01 | B115: 2021-06-01 | C115: 10C:303200 | D115: 6352 | E115: 2020-12-01 | F115: 0 | G115: 0 | H115: 10C:303200 | J115: Indiana Corporate | K115: 303200-Land & Land Rights-Supply | L115: 0 | M115: 0
A116: 2020-11-01 | B116: 2021-06-01 | C116: 10C:303200 | D116: 6352 | E116: 2021-01-01 | F116: 0 | G116: 0 | H116: 10C:303200 | J116: Indiana Corporate | K116: 303200-Land & Land Rights-Supply | L116: 0 | M116: 0
A117: 2020-11-01 | B117: 2021-06-01 | C117: 10C:303200 | D117: 6352 | E117: 2021-02-01 | F117: 0 | G117: 0 | H117: 10C:303200 | J117: Indiana Corporate | K117: 303200-Land & Land Rights-Supply | L117: 0 | M117: 0
A118: 2020-11-01 | B118: 2021-06-01 | C118: 10C:303200 | D118: 6352 | E118: 2021-03-01 | F118: 0 | G118: 0 | H118: 10C:303200 | J118: Indiana Corporate | K118: 303200-Land & Land Rights-Supply | L118: 0 | M118: 0
A119: 2020-11-01 | B119: 2021-06-01 | C119: 10C:303200 | D119: 6352 | E119: 2021-04-01 | F119: 0 | G119: 0 | H119: 10C:303200 | J119: Indiana Corporate | K119: 303200-Land & Land Rights-Supply | L119: 0 | M119: 0
A120: 2020-11-01 | B120: 2021-06-01 | C120: 10C:303200 | D120: 6352 | E120: 2021-05-01 | F120: 0 | G120: 0 | H120: 10C:303200 | J120: Indiana Corporate | K120: 303200-Land & Land Rights-Supply | L120: 0 | M120: 0
A121: 2020-11-01 | B121: 2021-06-01 | C121: 10C:303200 | D121: 6352 | E121: 2021-06-01 | F121: 0 | G121: 0 | H121: 10C:303200 | J121: Indiana Corporate | K121: 303200-Land & Land Rights-Supply | L121: 0 | M121: 0
A122: 2020-11-01 | B122: 2021-06-01 | C122: 10C:303400 | D122: 3147 | E122: 2020-11-01 | F122: 0 | G122: 0 | H122: 10C:303400 | J122: Indiana Corporate | K122: 303400-Land & Land Rights-Treatment | L122: 0 | M122: 0
A123: 2020-11-01 | B123: 2021-06-01 | C123: 10C:303400 | D123: 3147 | E123: 2020-12-01 | F123: 0 | G123: 0 | H123: 10C:303400 | J123: Indiana Corporate | K123: 303400-Land & Land Rights-Treatment | L123: 0 | M123: 0
A124: 2020-11-01 | B124: 2021-06-01 | C124: 10C:303400 | D124: 3147 | E124: 2021-01-01 | F124: 0 | G124: 0 | H124: 10C:303400 | J124: Indiana Corporate | K124: 303400-Land & Land Rights-Treatment | L124: 0 | M124: 0
A125: 2020-11-01 | B125: 2021-06-01 | C125: 10C:303400 | D125: 3147 | E125: 2021-02-01 | F125: 0 | G125: 0 | H125: 10C:303400 | J125: Indiana Corporate | K125: 303400-Land & Land Rights-Treatment | L125: 0 | M125: 0
A126: 2020-11-01 | B126: 2021-06-01 | C126: 10C:303400 | D126: 3147 | E126: 2021-03-01 | F126: 0 | G126: 0 | H126: 10C:303400 | J126: Indiana Corporate | K126: 303400-Land & Land Rights-Treatment | L126: 0 | M126: 0
A127: 2020-11-01 | B127: 2021-06-01 | C127: 10C:303400 | D127: 3147 | E127: 2021-04-01 | F127: 0 | G127: 0 | H127: 10C:303400 | J127: Indiana Corporate | K127: 303400-Land & Land Rights-Treatment | L127: 0 | M127: 0
A128: 2020-11-01 | B128: 2021-06-01 | C128: 10C:303400 | D128: 3147 | E128: 2021-05-01 | F128: 0 | G128: 0 | H128: 10C:303400 | J128: Indiana Corporate | K128: 303400-Land & Land Rights-Treatment | L128: 0 | M128: 0
A129: 2020-11-01 | B129: 2021-06-01 | C129: 10C:303400 | D129: 3147 | E129: 2021-06-01 | F129: 0 | G129: 0 | H129: 10C:303400 | J129: Indiana Corporate | K129: 303400-Land & Land Rights-Treatment | L129: 0 | M129: 0
A130: 2020-11-01 | B130: 2021-06-01 | C130: 10C:303500 | D130: 5147 | E130: 2020-11-01 | F130: 0 | G130: 0 | H130: 10C:303500 | J130: Indiana Corporate | K130: 303500-Land & Land Rights-T&D | L130: 0 | M130: 0
A131: 2020-11-01 | B131: 2021-06-01 | C131: 10C:303500 | D131: 5147 | E131: 2020-12-01 | F131: 0 | G131: 0 | H131: 10C:303500 | J131: Indiana Corporate | K131: 303500-Land & Land Rights-T&D | L131: 0 | M131: 0
A132: 2020-11-01 | B132: 2021-06-01 | C132: 10C:303500 | D132: 5147 | E132: 2021-01-01 | F132: 0 | G132: 0 | H132: 10C:303500 | J132: Indiana Corporate | K132: 303500-Land & Land Rights-T&D | L132: 0 | M132: 0
A133: 2020-11-01 | B133: 2021-06-01 | C133: 10C:303500 | D133: 5147 | E133: 2021-02-01 | F133: 0 | G133: 0 | H133: 10C:303500 | J133: Indiana Corporate | K133: 303500-Land & Land Rights-T&D | L133: 0 | M133: 0
A134: 2020-11-01 | B134: 2021-06-01 | C134: 10C:303500 | D134: 5147 | E134: 2021-03-01 | F134: 0 | G134: 0 | H134: 10C:303500 | J134: Indiana Corporate | K134: 303500-Land & Land Rights-T&D | L134: 0 | M134: 0
A135: 2020-11-01 | B135: 2021-06-01 | C135: 10C:303500 | D135: 5147 | E135: 2021-04-01 | F135: 0 | G135: 0 | H135: 10C:303500 | J135: Indiana Corporate | K135: 303500-Land & Land Rights-T&D | L135: 0 | M135: 0
A136: 2020-11-01 | B136: 2021-06-01 | C136: 10C:303500 | D136: 5147 | E136: 2021-05-01 | F136: 0 | G136: 0 | H136: 10C:303500 | J136: Indiana Corporate | K136: 303500-Land & Land Rights-T&D | L136: 0 | M136: 0
A137: 2020-11-01 | B137: 2021-06-01 | C137: 10C:303500 | D137: 5147 | E137: 2021-06-01 | F137: 0 | G137: 0 | H137: 10C:303500 | J137: Indiana Corporate | K137: 303500-Land & Land Rights-T&D | L137: 0 | M137: 0
A138: 2020-11-01 | B138: 2021-06-01 | C138: 10C:303600 | D138: 6353 | E138: 2020-11-01 | F138: 0 | G138: 0 | H138: 10C:303600 | J138: Indiana Corporate | K138: 303600-Land & Land Rights-General | L138: 0 | M138: 0
A139: 2020-11-01 | B139: 2021-06-01 | C139: 10C:303600 | D139: 6353 | E139: 2020-12-01 | F139: 0 | G139: 0 | H139: 10C:303600 | J139: Indiana Corporate | K139: 303600-Land & Land Rights-General | L139: 0 | M139: 0
A140: 2020-11-01 | B140: 2021-06-01 | C140: 10C:303600 | D140: 6353 | E140: 2021-01-01 | F140: 0 | G140: 0 | H140: 10C:303600 | J140: Indiana Corporate | K140: 303600-Land & Land Rights-General | L140: 0 | M140: 0
A141: 2020-11-01 | B141: 2021-06-01 | C141: 10C:303600 | D141: 6353 | E141: 2021-02-01 | F141: 0 | G141: 0 | H141: 10C:303600 | J141: Indiana Corporate | K141: 303600-Land & Land Rights-General | L141: 0 | M141: 0
A142: 2020-11-01 | B142: 2021-06-01 | C142: 10C:303600 | D142: 6353 | E142: 2021-03-01 | F142: 0 | G142: 0 | H142: 10C:303600 | J142: Indiana Corporate | K142: 303600-Land & Land Rights-General | L142: 0 | M142: 0
A143: 2020-11-01 | B143: 2021-06-01 | C143: 10C:303600 | D143: 6353 | E143: 2021-04-01 | F143: 0 | G143: 0 | H143: 10C:303600 | J143: Indiana Corporate | K143: 303600-Land & Land Rights-General | L143: 0 | M143: 0
A144: 2020-11-01 | B144: 2021-06-01 | C144: 10C:303600 | D144: 6353 | E144: 2021-05-01 | F144: 0 | G144: 0 | H144: 10C:303600 | J144: Indiana Corporate | K144: 303600-Land & Land Rights-General | L144: 0 | M144: 0
A145: 2020-11-01 | B145: 2021-06-01 | C145: 10C:303600 | D145: 6353 | E145: 2021-06-01 | F145: 0 | G145: 0 | H145: 10C:303600 | J145: Indiana Corporate | K145: 303600-Land & Land Rights-General | L145: 0 | M145: 0
A146: 2020-11-01 | B146: 2021-06-01 | C146: 10C:304100 | D146: 3743 | E146: 2020-11-01 | F146: 0 | G146: 0.0258 | H146: 10C:304100 | J146: Indiana Corporate | K146: 304100-Struct & Imp-Supply | L146: 0.0064 | M146: 0
A147: 2020-11-01 | B147: 2021-06-01 | C147: 10C:304100 | D147: 3743 | E147: 2020-12-01 | F147: 0 | G147: 0.0258 | H147: 10C:304100 | J147: Indiana Corporate | K147: 304100-Struct & Imp-Supply | L147: 0.0064 | M147: 0
A148: 2020-11-01 | B148: 2021-06-01 | C148: 10C:304100 | D148: 3743 | E148: 2021-01-01 | F148: 0 | G148: 0.0258 | H148: 10C:304100 | J148: Indiana Corporate | K148: 304100-Struct & Imp-Supply | L148: 0.0064 | M148: 0
A149: 2020-11-01 | B149: 2021-06-01 | C149: 10C:304100 | D149: 3743 | E149: 2021-02-01 | F149: 0 | G149: 0.0258 | H149: 10C:304100 | J149: Indiana Corporate | K149: 304100-Struct & Imp-Supply | L149: 0.0064 | M149: 0
A150: 2020-11-01 | B150: 2021-06-01 | C150: 10C:304100 | D150: 3743 | E150: 2021-03-01 | F150: 0 | G150: 0.0258 | H150: 10C:304100 | J150: Indiana Corporate | K150: 304100-Struct & Imp-Supply | L150: 0.0064 | M150: 0
A151: 2020-11-01 | B151: 2021-06-01 | C151: 10C:304100 | D151: 3743 | E151: 2021-04-01 | F151: 0 | G151: 0.0258 | H151: 10C:304100 | J151: Indiana Corporate | K151: 304100-Struct & Imp-Supply | L151: 0.0064 | M151: 0
A152: 2020-11-01 | B152: 2021-06-01 | C152: 10C:304100 | D152: 3743 | E152: 2021-05-01 | F152: 0 | G152: 0.0258 | H152: 10C:304100 | J152: Indiana Corporate | K152: 304100-Struct & Imp-Supply | L152: 0.0064 | M152: 0
A153: 2020-11-01 | B153: 2021-06-01 | C153: 10C:304100 | D153: 3743 | E153: 2021-06-01 | F153: 0 | G153: 0.0258 | H153: 10C:304100 | J153: Indiana Corporate | K153: 304100-Struct & Imp-Supply | L153: 0.0064 | M153: 0
A154: 2020-11-01 | B154: 2021-06-01 | C154: 10C:304200 | D154: 5732 | E154: 2020-11-01 | F154: 0 | G154: 0.0211 | H154: 10C:304200 | J154: Indiana Corporate | K154: 304200-Struct & Imp-Pumping | L154: 0.0052 | M154: 0
A155: 2020-11-01 | B155: 2021-06-01 | C155: 10C:304200 | D155: 5732 | E155: 2020-12-01 | F155: 0 | G155: 0.0211 | H155: 10C:304200 | J155: Indiana Corporate | K155: 304200-Struct & Imp-Pumping | L155: 0.0052 | M155: 0
A156: 2020-11-01 | B156: 2021-06-01 | C156: 10C:304200 | D156: 5732 | E156: 2021-01-01 | F156: 0 | G156: 0.0211 | H156: 10C:304200 | J156: Indiana Corporate | K156: 304200-Struct & Imp-Pumping | L156: 0.0052 | M156: 0
A157: 2020-11-01 | B157: 2021-06-01 | C157: 10C:304200 | D157: 5732 | E157: 2021-02-01 | F157: 0 | G157: 0.0211 | H157: 10C:304200 | J157: Indiana Corporate | K157: 304200-Struct & Imp-Pumping | L157: 0.0052 | M157: 0
A158: 2020-11-01 | B158: 2021-06-01 | C158: 10C:304200 | D158: 5732 | E158: 2021-03-01 | F158: 0 | G158: 0.0211 | H158: 10C:304200 | J158: Indiana Corporate | K158: 304200-Struct & Imp-Pumping | L158: 0.0052 | M158: 0
A159: 2020-11-01 | B159: 2021-06-01 | C159: 10C:304200 | D159: 5732 | E159: 2021-04-01 | F159: 0 | G159: 0.0211 | H159: 10C:304200 | J159: Indiana Corporate | K159: 304200-Struct & Imp-Pumping | L159: 0.0052 | M159: 0
A160: 2020-11-01 | B160: 2021-06-01 | C160: 10C:304200 | D160: 5732 | E160: 2021-05-01 | F160: 0 | G160: 0.0211 | H160: 10C:304200 | J160: Indiana Corporate | K160: 304200-Struct & Imp-Pumping | L160: 0.0052 | M160: 0
A161: 2020-11-01 | B161: 2021-06-01 | C161: 10C:304200 | D161: 5732 | E161: 2021-06-01 | F161: 0 | G161: 0.0211 | H161: 10C:304200 | J161: Indiana Corporate | K161: 304200-Struct & Imp-Pumping | L161: 0.0052 | M161: 0
A162: 2020-11-01 | B162: 2021-06-01 | C162: 10C:304300 | D162: 3257 | E162: 2020-11-01 | F162: 17064.7 | G162: 0.0198 | H162: 10C:304300 | J162: Indiana Corporate | K162: 304300-Struct & Imp-Treatment | L162: 0.005 | M162: 0
A163: 2020-11-01 | B163: 2021-06-01 | C163: 10C:304300 | D163: 3257 | E163: 2020-12-01 | F163: 17064.7 | G163: 0.0198 | H163: 10C:304300 | J163: Indiana Corporate | K163: 304300-Struct & Imp-Treatment | L163: 0.005 | M163: 0
A164: 2020-11-01 | B164: 2021-06-01 | C164: 10C:304300 | D164: 3257 | E164: 2021-01-01 | F164: 17064.7 | G164: 0.0198 | H164: 10C:304300 | J164: Indiana Corporate | K164: 304300-Struct & Imp-Treatment | L164: 0.005 | M164: 0
A165: 2020-11-01 | B165: 2021-06-01 | C165: 10C:304300 | D165: 3257 | E165: 2021-02-01 | F165: 17064.7 | G165: 0.0198 | H165: 10C:304300 | J165: Indiana Corporate | K165: 304300-Struct & Imp-Treatment | L165: 0.005 | M165: 0
A166: 2020-11-01 | B166: 2021-06-01 | C166: 10C:304300 | D166: 3257 | E166: 2021-03-01 | F166: 17064.7 | G166: 0.0198 | H166: 10C:304300 | J166: Indiana Corporate | K166: 304300-Struct & Imp-Treatment | L166: 0.005 | M166: 0
A167: 2020-11-01 | B167: 2021-06-01 | C167: 10C:304300 | D167: 3257 | E167: 2021-04-01 | F167: 17064.7 | G167: 0.0198 | H167: 10C:304300 | J167: Indiana Corporate | K167: 304300-Struct & Imp-Treatment | L167: 0.005 | M167: 0
A168: 2020-11-01 | B168: 2021-06-01 | C168: 10C:304300 | D168: 3257 | E168: 2021-05-01 | F168: 17064.7 | G168: 0.0198 | H168: 10C:304300 | J168: Indiana Corporate | K168: 304300-Struct & Imp-Treatment | L168: 0.005 | M168: 0
A169: 2020-11-01 | B169: 2021-06-01 | C169: 10C:304300 | D169: 3257 | E169: 2021-06-01 | F169: 17064.7 | G169: 0.0198 | H169: 10C:304300 | J169: Indiana Corporate | K169: 304300-Struct & Imp-Treatment | L169: 0.005 | M169: 0
A170: 2020-11-01 | B170: 2021-06-01 | C170: 10C:304301 | D170: 6354 | E170: 2020-11-01 | F170: 0 | G170: 0.0252 | H170: 10C:304301 | J170: Indiana Corporate | K170: 304301-Struct & Imp-Treat-Dpr Paint | L170: 0 | M170: 0
A171: 2020-11-01 | B171: 2021-06-01 | C171: 10C:304301 | D171: 6354 | E171: 2020-12-01 | F171: 0 | G171: 0.0252 | H171: 10C:304301 | J171: Indiana Corporate | K171: 304301-Struct & Imp-Treat-Dpr Paint | L171: 0 | M171: 0
A172: 2020-11-01 | B172: 2021-06-01 | C172: 10C:304301 | D172: 6354 | E172: 2021-01-01 | F172: 0 | G172: 0.0252 | H172: 10C:304301 | J172: Indiana Corporate | K172: 304301-Struct & Imp-Treat-Dpr Paint | L172: 0 | M172: 0
A173: 2020-11-01 | B173: 2021-06-01 | C173: 10C:304301 | D173: 6354 | E173: 2021-02-01 | F173: 0 | G173: 0.0252 | H173: 10C:304301 | J173: Indiana Corporate | K173: 304301-Struct & Imp-Treat-Dpr Paint | L173: 0 | M173: 0
A174: 2020-11-01 | B174: 2021-06-01 | C174: 10C:304301 | D174: 6354 | E174: 2021-03-01 | F174: 0 | G174: 0.0252 | H174: 10C:304301 | J174: Indiana Corporate | K174: 304301-Struct & Imp-Treat-Dpr Paint | L174: 0 | M174: 0
A175: 2020-11-01 | B175: 2021-06-01 | C175: 10C:304301 | D175: 6354 | E175: 2021-04-01 | F175: 0 | G175: 0.0252 | H175: 10C:304301 | J175: Indiana Corporate | K175: 304301-Struct & Imp-Treat-Dpr Paint | L175: 0 | M175: 0
A176: 2020-11-01 | B176: 2021-06-01 | C176: 10C:304301 | D176: 6354 | E176: 2021-05-01 | F176: 0 | G176: 0.0252 | H176: 10C:304301 | J176: Indiana Corporate | K176: 304301-Struct & Imp-Treat-Dpr Paint | L176: 0 | M176: 0
A177: 2020-11-01 | B177: 2021-06-01 | C177: 10C:304301 | D177: 6354 | E177: 2021-06-01 | F177: 0 | G177: 0.0252 | H177: 10C:304301 | J177: Indiana Corporate | K177: 304301-Struct & Imp-Treat-Dpr Paint | L177: 0 | M177: 0
A178: 2020-11-01 | B178: 2021-06-01 | C178: 10C:304302 | D178: 3859 | E178: 2020-11-01 | F178: 0 | G178: 0.0252 | H178: 10C:304302 | J178: Indiana Corporate | K178: 304302-Struct & Imp-Treat-Painting | L178: 0 | M178: 0
A179: 2020-11-01 | B179: 2021-06-01 | C179: 10C:304302 | D179: 3859 | E179: 2020-12-01 | F179: 0 | G179: 0.0252 | H179: 10C:304302 | J179: Indiana Corporate | K179: 304302-Struct & Imp-Treat-Painting | L179: 0 | M179: 0
A180: 2020-11-01 | B180: 2021-06-01 | C180: 10C:304302 | D180: 3859 | E180: 2021-01-01 | F180: 0 | G180: 0.0252 | H180: 10C:304302 | J180: Indiana Corporate | K180: 304302-Struct & Imp-Treat-Painting | L180: 0 | M180: 0
A181: 2020-11-01 | B181: 2021-06-01 | C181: 10C:304302 | D181: 3859 | E181: 2021-02-01 | F181: 0 | G181: 0.0252 | H181: 10C:304302 | J181: Indiana Corporate | K181: 304302-Struct & Imp-Treat-Painting | L181: 0 | M181: 0
A182: 2020-11-01 | B182: 2021-06-01 | C182: 10C:304302 | D182: 3859 | E182: 2021-03-01 | F182: 0 | G182: 0.0252 | H182: 10C:304302 | J182: Indiana Corporate | K182: 304302-Struct & Imp-Treat-Painting | L182: 0 | M182: 0
A183: 2020-11-01 | B183: 2021-06-01 | C183: 10C:304302 | D183: 3859 | E183: 2021-04-01 | F183: 0 | G183: 0.0252 | H183: 10C:304302 | J183: Indiana Corporate | K183: 304302-Struct & Imp-Treat-Painting | L183: 0 | M183: 0
A184: 2020-11-01 | B184: 2021-06-01 | C184: 10C:304302 | D184: 3859 | E184: 2021-05-01 | F184: 0 | G184: 0.0252 | H184: 10C:304302 | J184: Indiana Corporate | K184: 304302-Struct & Imp-Treat-Painting | L184: 0 | M184: 0
A185: 2020-11-01 | B185: 2021-06-01 | C185: 10C:304302 | D185: 3859 | E185: 2021-06-01 | F185: 0 | G185: 0.0252 | H185: 10C:304302 | J185: Indiana Corporate | K185: 304302-Struct & Imp-Treat-Painting | L185: 0 | M185: 0
A186: 2020-11-01 | B186: 2021-06-01 | C186: 10C:304390 | D186: 6355 | E186: 2020-11-01 | F186: 0 | G186: 0.01664 | H186: 10C:304390 | J186: Indiana Corporate | K186: 304390-Struct & Imp-Treat-Mixing | L186: 0.00416 | M186: 0
A187: 2020-11-01 | B187: 2021-06-01 | C187: 10C:304390 | D187: 6355 | E187: 2020-12-01 | F187: 0 | G187: 0.01664 | H187: 10C:304390 | J187: Indiana Corporate | K187: 304390-Struct & Imp-Treat-Mixing | L187: 0.00416 | M187: 0
A188: 2020-11-01 | B188: 2021-06-01 | C188: 10C:304390 | D188: 6355 | E188: 2021-01-01 | F188: 0 | G188: 0.01664 | H188: 10C:304390 | J188: Indiana Corporate | K188: 304390-Struct & Imp-Treat-Mixing | L188: 0.00416 | M188: 0
A189: 2020-11-01 | B189: 2021-06-01 | C189: 10C:304390 | D189: 6355 | E189: 2021-02-01 | F189: 0 | G189: 0.01664 | H189: 10C:304390 | J189: Indiana Corporate | K189: 304390-Struct & Imp-Treat-Mixing | L189: 0.00416 | M189: 0
A190: 2020-11-01 | B190: 2021-06-01 | C190: 10C:304390 | D190: 6355 | E190: 2021-03-01 | F190: 0 | G190: 0.01664 | H190: 10C:304390 | J190: Indiana Corporate | K190: 304390-Struct & Imp-Treat-Mixing | L190: 0.00416 | M190: 0
A191: 2020-11-01 | B191: 2021-06-01 | C191: 10C:304390 | D191: 6355 | E191: 2021-04-01 | F191: 0 | G191: 0.01664 | H191: 10C:304390 | J191: Indiana Corporate | K191: 304390-Struct & Imp-Treat-Mixing | L191: 0.00416 | M191: 0
A192: 2020-11-01 | B192: 2021-06-01 | C192: 10C:304390 | D192: 6355 | E192: 2021-05-01 | F192: 0 | G192: 0.01664 | H192: 10C:304390 | J192: Indiana Corporate | K192: 304390-Struct & Imp-Treat-Mixing | L192: 0.00416 | M192: 0
A193: 2020-11-01 | B193: 2021-06-01 | C193: 10C:304390 | D193: 6355 | E193: 2021-06-01 | F193: 0 | G193: 0.01664 | H193: 10C:304390 | J193: Indiana Corporate | K193: 304390-Struct & Imp-Treat-Mixing | L193: 0.00416 | M193: 0
A194: 2020-11-01 | B194: 2021-06-01 | C194: 10C:304391 | D194: 2622 | E194: 2020-11-01 | F194: 0 | G194: 0.01664 | H194: 10C:304391 | J194: Indiana Corporate | K194: 304391-Struct & Imp-Treat-Purifictn | L194: 0.00416 | M194: 0
A195: 2020-11-01 | B195: 2021-06-01 | C195: 10C:304391 | D195: 2622 | E195: 2020-12-01 | F195: 0 | G195: 0.01664 | H195: 10C:304391 | J195: Indiana Corporate | K195: 304391-Struct & Imp-Treat-Purifictn | L195: 0.00416 | M195: 0
A196: 2020-11-01 | B196: 2021-06-01 | C196: 10C:304391 | D196: 2622 | E196: 2021-01-01 | F196: 0 | G196: 0.01664 | H196: 10C:304391 | J196: Indiana Corporate | K196: 304391-Struct & Imp-Treat-Purifictn | L196: 0.00416 | M196: 0
A197: 2020-11-01 | B197: 2021-06-01 | C197: 10C:304391 | D197: 2622 | E197: 2021-02-01 | F197: 0 | G197: 0.01664 | H197: 10C:304391 | J197: Indiana Corporate | K197: 304391-Struct & Imp-Treat-Purifictn | L197: 0.00416 | M197: 0
A198: 2020-11-01 | B198: 2021-06-01 | C198: 10C:304391 | D198: 2622 | E198: 2021-03-01 | F198: 0 | G198: 0.01664 | H198: 10C:304391 | J198: Indiana Corporate | K198: 304391-Struct & Imp-Treat-Purifictn | L198: 0.00416 | M198: 0
A199: 2020-11-01 | B199: 2021-06-01 | C199: 10C:304391 | D199: 2622 | E199: 2021-04-01 | F199: 0 | G199: 0.01664 | H199: 10C:304391 | J199: Indiana Corporate | K199: 304391-Struct & Imp-Treat-Purifictn | L199: 0.00416 | M199: 0
A200: 2020-11-01 | B200: 2021-06-01 | C200: 10C:304391 | D200: 2622 | E200: 2021-05-01 | F200: 0 | G200: 0.01664 | H200: 10C:304391 | J200: Indiana Corporate | K200: 304391-Struct & Imp-Treat-Purifictn | L200: 0.00416 | M200: 0
... 1889 more rows

Sheet Asset 1200 SEI (hidden)
A1: Asset 1200 report May 2020 to July 2022 Co 1010 filtered for just the 120 WBS' provided
M4: xx
A5: activity_cost | B5: activity_quantity | C5: description | D5: long_description | E5: eng_in_service_year | F5: start_month | G5: end_month | H5: description | I5: COS | J5: UA | K5: Depr group | L5: cpr_ledger_wo_number | M5: cpr_activity_wo_number | N5: description | O5: description | P5: description | Q5: description | R5: description | S5: asset_id
A6: 172430.46 | B6: 1 | C6: 340300-Computer Software | D6: VMWare Workspace One | E6: 2021-03-01 | F6: 2020-11-01 | G6: 2022-11-01 | H6: Indiana Corp-Specific | I6: 10C | J6: =LEFT(C6,6) -> 340300 | K6: =CONCATENATE(I6,":",J6) -> 10C:340300 | L6: R10-01K3.19-P-4031 | M6: R10-01K3.19-P-4031 | N6: 1010-Indiana American Water Co | O6: 340300-Computer Software | P6: 1 - Water | Q6: None | R6: 10100000-Utility Plant In Service | S6: 140901925
A7: 27091.5 | B7: 1 | C7: 340300-Computer Software | D7: New Authentication Platform (Okta) | E7: 2021-06-15 | F7: 2020-11-01 | G7: 2022-11-01 | H7: Indiana Corp-Specific | I7: 10C | J7: =LEFT(C7,6) -> 340300 | K7: =CONCATENATE(I7,":",J7) -> 10C:340300 | L7: T10-0185-P-1000 | M7: T10-0185-P-1000 | N7: 1010-Indiana American Water Co | O7: 340300-Computer Software | P7: 1 - Water | Q7: None | R7: 10100000-Utility Plant In Service | S7: 140768515
A8: 0 | B8: 0 | C8: 340300-Computer Software | D8: VMWare Workspace One | E8: 2021-03-01 | F8: 2020-11-01 | G8: 2022-11-01 | H8: Indiana Corp-Specific | I8: 10C | J8: 340300 | K8: 10C:340300 | L8: R10-01K3.19-P-4031 | M8: R10-01K3.19-P-4031 | N8: 1010-Indiana American Water Co | O8: 340300-Computer Software | P8: 1 - Water | Q8: None | R8: 10600000-Completed Not Classified | S8: 136066419
A9: 103039.69 | B9: 7 | C9: 340300-Computer Software | D9: SIEM Suite Implementation | E9: 2020-11-20 | F9: 2020-11-01 | G9: 2022-11-01 | H9: Indiana Corp-Specific | I9: 10C | J9: 340300 | K9: 10C:340300 | L9: T10-0184-P-1000 | M9: T10-0184-P-1000 | N9: 1010-Indiana American Water Co | O9: 340300-Computer Software | P9: 1 - Water | Q9: None | R9: 10600000-Completed Not Classified | S9: 134352638
A10: 0 | B10: 0 | C10: 340300-Computer Software | D10: New Authentication Platform (Okta) | E10: 2021-06-15 | F10: 2020-11-01 | G10: 2022-11-01 | H10: Indiana Corp-Specific | I10: 10C | J10: 340300 | K10: 10C:340300 | L10: T10-0185-P-1000 | M10: T10-0185-P-1000 | N10: 1010-Indiana American Water Co | O10: 340300-Computer Software | P10: 1 - Water | Q10: None | R10: 10600000-Completed Not Classified | S10: 136902032
K11: :
K12: :
K13: :
K14: :
K15: :
K16: :
K17: :
K18: :
K19: :
K20: :
K21: :
K22: :
K23: :
K24: :
K25: :
K26: :
K27: :
K28: :
K29: :
K30: :
K31: :
K32: :
K33: :
K34: :
K35: :
K36: :
K37: :
K38: :
K39: :
K40: :
K41: :
K42: :
K43: :
K44: :
K45: :
K46: :
K47: :
K48: :
K49: :
K50: :
K51: :
K52: :
K53: :
K54: :
K55: :
K56: :
K57: :
K58: :
K59: :
K60: :
K61: :
K62: :
K63: :
K64: :
K65: :
K66: :
K67: :
K68: :
K69: :
K70: :
J71: =LEFT(C71,6) ->  | K71: =CONCATENATE(I71,":",J71) -> :
K72: :
K73: :
K74: :
K75: :
K76: :
K77: :
K78: :
K79: :
K80: :
K81: :
K82: :
K83: :
K84: :
K85: :
K86: :
K87: :
K88: :
K89: :
K90: :
K91: :
K92: :
K93: :
K94: :
K95: :
K96: :
K97: :
K98: :
K99: :
K100: :
K101: :
K102: :
K103: :
K104: :
K105: :
K106: :
K107: :
K108: :
K109: :
K110: :
J111: =LEFT(C111,6) ->  | K111: =CONCATENATE(I111,":",J111) -> :
K112: :
K113: :
K114: :
K115: :
K116: :
K117: :
K118: :
K119: :
K120: :
K121: :
K122: :
K123: :
K124: :
K125: :
K126: :
K127: :
J128: =LEFT(C128,6) ->  | K128: =CONCATENATE(I128,":",J128) -> :
K129: :
K130: :
K131: :
K132: :
K133: :
K134: :
K135: :
K136: :
K137: :
K138: :
K139: :
K140: :
K141: :
K142: :
K143: :
K144: :
K145: :
K146: :
K147: :
K148: :

Sheet info (hidden)
A2: Assumptions CWIP query calc
A4: Ran Powerplant CR query for the CWIP activity so that the derivations to RWIP are eliminated. CJI3 will not list out the charges with just CWIP being in the population.
A5: Reworded
A6: Used CR query for CWIP vs CJI3 so just what settled as CWIP. Anything in cost elements 52801200,52805100,any 728xxxxx cost elements exclude from exported result
A8: Filter Cost element column for those values & delete those rows
A9: Due to the different in service dates the PIS AFUDC could not be calculated to WBS level in one tab.
A10: CWIP query data was grouped by common in service dates & separate calculations perfomed. This is only means to compound the PIS AFUDC.
A11: An allocation was created for the population of work orders with common in service dates; so anything in servicing Dece 2020 was grouped then based on spend on each wbs a % was generated & used to apply a % of the Debt, Equity & Equity Reduction
A12: The month of wbs in servcing the Calc was halved for the Debt & Equity. The Equity reduction halves naturally
A14: Dilution of the PIS AFUDC Equity is being done via difference of Debt & Equity calc; so Equity number equals the value of the debt but still record to 70510000.
A15: Equity Reduction credits the Reg Asset while Debt & Equity AFUDC debits Reg Asset
A17: Use Find Replace function to simply updates. Reminder column C is hidden in the PIS Summary tabs
A18: Check is in column J to ensure accurate formulas of the AFUDC base. Full population of the query used in each respective summary tab less last current base row plus PIS Equity & Debt sums should equal 0
A19: Equity Reduction is not compounded
A23: CR query for the Additions activity (unitization & autonon) this assigned prior month convention
A24: e.g. June 2020 in service date begins def depr July 2020 in line when depr is recognized
A25: based on word doc included life reserve, COR & salvage rates
A26: July 2022 in svc dates the month count was mannually changed to 0 so this column needs updating monthly all rows
A28: Ran Asset 1200 report to id which wbs' posted to which Depr groups
A29: Used Depr 1039 to translate major location to Cost of Service Area & pull Life, COR & Salvage Rates for calc; deleted unneeded columns to thin file
A30: be careful for low rates if use 2 decimals
A32: built the data points from both into Depr info tab
A33: Downloaded via comma macro the wbs' in svc dates
A35: Pulled CR query of the CWIP activity on these populations of wbs'
A37: back section houses the CWIP queries. One tab - one in service date - multiple work orders
A38: All months then oldest to newest sequence
A40: All months tab pulls in svc date from SEI ISD tab which is slimmed down of the PM > WO > Select screen with comma macro for all 120 wbs'
A41: Debt & Equity rates copied from prior file
A42: Column K-N are formulaed when have time see if can remove column M & N. Filter function in excel gives needed grouping of month & yr of the in scv dates
A43: Colors on tabs for eye ease only
A44: Asset 1200 "cpr_activity_wo_number" column is the column for consideration for the calc
A46: tabs were slimmed where possible & quick to do
A47: Grabbed in service dates from PP
A49: Total PIS the pivot table will need updating over time & formulas to the right will require updating accordingly
A50: Columns C-H are formulas. Its best to do find replace in JE tab at the end so profit center & cost center are easiest to manage
A51: Caution work orders where Depr group is not 1 to 1 relationship so far only one so eyeball SAP acct to ensure this flows
A52: Due to many rows having zeroes another tab was added to reduce number of zero rows in je tab for deferred depr
A53: JE ease tab was also used to simplify the pasting of the entry into JE tab
A54: Cell O3 has instructions & formulas added to weed out the decimals so blackline uploads this smooth. Use debit credit columns for je tab in case. Check totals & add penny variances to 1st wbs for each section so its easy to find.
A55: Tie out to Total PIS #s.
A58: Count of months
A59: 2020-05-01
A60: 2020-06-01
A61: 2020-07-01
A62: 2020-08-01
A63: 2020-09-01
A64: 2020-10-01
A65: 2020-11-01
A66: 2020-12-01
A67: 2021-01-01
A68: 2021-02-01
A69: 2021-03-01
A70: 2021-04-01
A71: 2021-05-01
A72: 2021-06-01
A73: 2021-07-01
A74: 2021-08-01
A75: 2021-09-01
A76: 2021-10-01
A77: 2021-11-01
A78: 2021-12-01
A79: 2022-01-01
A80: 2022-02-01
A81: 2022-03-01
A82: 2022-04-01
A83: 2022-05-01
A84: 2022-06-01
A85: 2022-07-01
A86: 2022-08-01
